Workbook

Sheet Makró1 (hidden)

Sheet Azonosítás
B2: Beszámoló típusa: | C2: Verzió: 2.0
A5: Szerződésszám:
A8: =IF(A9="","","Intézmény neve:") -> 
A9: =IFERROR(INDEX('Pályázói adatok'!A2:C10,MATCH($A$6,'Pályázói adatok'!A2:A10),3),"") -> 
A11: =IF(Erasmus_kod="","","Erasmus kód") -> 
A12: =IFERROR(INDEX(Alapadatok,MATCH($A$6,Szerzodesszam),2),"") -> 
A32: Benyújtási határidő : 2014. április 30.
A34: Benyújtási határidő : 2014. október 30.
A35: Erasmus évközi beszámoló 2013/2014
A36: Erasmus módosított évközi beszámoló 2013/2014
A37: Erasmus éves beszámoló 2013/2014

Sheet Nyilatkozat
A2: Nyilatkozat
A6: Alulírott, mint a pályázó intézmény hivatalos képviselője aláírásommal igazolom, hogy a beszámolóban megadott adatok – legjobb tudomásom és ismereteim szerint – valósak és helytállók, a mobilitásban részt vevőkkel a szükséges szerződéseket minden esetben megkötöttük.
A10: Aláírásommal hozzájárulok, hogy a Tempus Közalapítvány a beszámolóban megadott adatokat kizárólag a beszámoló feldolgozása érdekében kezelje, feldolgozza és azokat legalább 5 évig megőrizze. Hozzájárulok ahhoz, hogy az adatok feldolgozását követően az intézmény e beszámolóban feltüntetett főbb adatait a Tempus Közalapítvány nyilvánosságra hozza.
A15: Aláírásommal igazolom, hogy EGT mobilitásokat csak érvényes kétoldalú megállapodás birtokában hajtunk végre.
A20: Kelt:
A22: Név: | E22: Aláírás
A23: Beosztás:
A26: Név: | E26: Ellenjegyző aláírás (ha szükséges)
A27: Beosztás:
F28: PH.

Sheet Partnerek
C2: Intézményi partnerek
D4: EGT koordinátor aláírása
C5: Intézmény neve: | D5: =IFERROR(IF(Azonosítás!$A$9="","",Azonosítás!$A$9),"") -> 
C6: Szerződésszám: | D6: =IFERROR(Azonosítás!$A$6,"") -> 0 | E6: =TODAY() -> 2017-01-06
A8: Partnerazonosító | B8: Partner Erasmus-kódja | C8: Partner hivatalos neve (eredeti neve) | D8: Partner angol neve | E8: Intézmény típusa | F8: Tevékenység jellege | G8: Jogi státusz | H8: Gazdasági ágazat | I8: Irányító- szám | J8: Város | K8: Ország | L8: NUTS kód | M8: Adószám | N8: Kétoldalú egyezmény létrejötte (ÉÉÉÉ/HH/NN) | O8: Partner kontaktszemély neve | P8: Partnerszemély telefonszáma | Q8: Partner kontaktszemély e-mailcíme
A9: =IF(Azonosítás!A9="","",Azonosítás!$A$9) ->  | C9: =IF(Azonosítás!$A$9="","",Azonosítás!$A$9) ->  | K9: =IF(A9<>"","HU","") ->  | N9: =IF(C9<>"","---","") ->  | Q9: =IFERROR(IF(B9<>"",VLOOKUP(B9,'Pályázói adatok'!B:BD,52,FALSE),""),"") -> 
J11: =IFERROR(VLOOKUP(B11,Erasmus_kodok!C$1:F$64,4,FALSE),"") ->  | K11: =IFERROR(VLOOKUP(B11,Erasmus_kodok!C$1:F$64,3,FALSE),"") -> 
J12: =IFERROR(VLOOKUP(B12,Erasmus_kodok!C$1:F$64,4,FALSE),"") ->  | K12: =IFERROR(VLOOKUP(B12,Erasmus_kodok!C$1:F$64,3,FALSE),"") -> 
J13: =IFERROR(VLOOKUP(B13,Erasmus_kodok!C$1:F$64,4,FALSE),"") ->  | K13: =IFERROR(VLOOKUP(B13,Erasmus_kodok!C$1:F$64,3,FALSE),"") -> 
J14: =IFERROR(VLOOKUP(B14,Erasmus_kodok!C$1:F$64,4,FALSE),"") ->  | K14: =IFERROR(VLOOKUP(B14,Erasmus_kodok!C$1:F$64,3,FALSE),"") -> 
J15: =IFERROR(VLOOKUP(B15,Erasmus_kodok!C$1:F$64,4,FALSE),"") ->  | K15: =IFERROR(VLOOKUP(B15,Erasmus_kodok!C$1:F$64,3,FALSE),"") -> 
J16: =IFERROR(VLOOKUP(B16,Erasmus_kodok!C$1:F$64,4,FALSE),"") ->  | K16: =IFERROR(VLOOKUP(B16,Erasmus_kodok!C$1:F$64,3,FALSE),"") -> 
J17: =IFERROR(VLOOKUP(B17,Erasmus_kodok!C$1:F$64,4,FALSE),"") ->  | K17: =IFERROR(VLOOKUP(B17,Erasmus_kodok!C$1:F$64,3,FALSE),"") -> 
J18: =IFERROR(VLOOKUP(B18,Erasmus_kodok!C$1:F$64,4,FALSE),"") ->  | K18: =IFERROR(VLOOKUP(B18,Erasmus_kodok!C$1:F$64,3,FALSE),"") -> 
J19: =IFERROR(VLOOKUP(B19,Erasmus_kodok!C$1:F$64,4,FALSE),"") ->  | K19: =IFERROR(VLOOKUP(B19,Erasmus_kodok!C$1:F$64,3,FALSE),"") -> 
J20: =IFERROR(VLOOKUP(B20,Erasmus_kodok!C$1:F$64,4,FALSE),"") ->  | K20: =IFERROR(VLOOKUP(B20,Erasmus_kodok!C$1:F$64,3,FALSE),"") -> 
J21: =IFERROR(VLOOKUP(B21,Erasmus_kodok!C$1:F$64,4,FALSE),"") ->  | K21: =IFERROR(VLOOKUP(B21,Erasmus_kodok!C$1:F$64,3,FALSE),"") -> 
J22: =IFERROR(VLOOKUP(B22,Erasmus_kodok!C$1:F$64,4,FALSE),"") ->  | K22: =IFERROR(VLOOKUP(B22,Erasmus_kodok!C$1:F$64,3,FALSE),"") -> 
J23: =IFERROR(VLOOKUP(B23,Erasmus_kodok!C$1:F$64,4,FALSE),"") ->  | K23: =IFERROR(VLOOKUP(B23,Erasmus_kodok!C$1:F$64,3,FALSE),"") -> 
J24: =IFERROR(VLOOKUP(B24,Erasmus_kodok!C$1:F$64,4,FALSE),"") ->  | K24: =IFERROR(VLOOKUP(B24,Erasmus_kodok!C$1:F$64,3,FALSE),"") -> 
J25: =IFERROR(VLOOKUP(B25,Erasmus_kodok!C$1:F$64,4,FALSE),"") ->  | K25: =IFERROR(VLOOKUP(B25,Erasmus_kodok!C$1:F$64,3,FALSE),"") -> 
J26: =IFERROR(VLOOKUP(B26,Erasmus_kodok!C$1:F$64,4,FALSE),"") ->  | K26: =IFERROR(VLOOKUP(B26,Erasmus_kodok!C$1:F$64,3,FALSE),"") -> 
J27: =IFERROR(VLOOKUP(B27,Erasmus_kodok!C$1:F$64,4,FALSE),"") ->  | K27: =IFERROR(VLOOKUP(B27,Erasmus_kodok!C$1:F$64,3,FALSE),"") -> 
J28: =IFERROR(VLOOKUP(B28,Erasmus_kodok!C$1:F$64,4,FALSE),"") ->  | K28: =IFERROR(VLOOKUP(B28,Erasmus_kodok!C$1:F$64,3,FALSE),"") -> 
J29: =IFERROR(VLOOKUP(B29,Erasmus_kodok!C$1:F$64,4,FALSE),"") ->  | K29: =IFERROR(VLOOKUP(B29,Erasmus_kodok!C$1:F$64,3,FALSE),"") -> 
J30: =IFERROR(VLOOKUP(B30,Erasmus_kodok!C$1:F$64,4,FALSE),"") ->  | K30: =IFERROR(VLOOKUP(B30,Erasmus_kodok!C$1:F$64,3,FALSE),"") -> 
J31: =IFERROR(VLOOKUP(B31,Erasmus_kodok!C$1:F$64,4,FALSE),"") ->  | K31: =IFERROR(VLOOKUP(B31,Erasmus_kodok!C$1:F$64,3,FALSE),"") -> 
J32: =IFERROR(VLOOKUP(B32,Erasmus_kodok!C$1:F$64,4,FALSE),"") ->  | K32: =IFERROR(VLOOKUP(B32,Erasmus_kodok!C$1:F$64,3,FALSE),"") -> 
J33: =IFERROR(VLOOKUP(B33,Erasmus_kodok!C$1:F$64,4,FALSE),"") ->  | K33: =IFERROR(VLOOKUP(B33,Erasmus_kodok!C$1:F$64,3,FALSE),"") -> 
J34: =IFERROR(VLOOKUP(B34,Erasmus_kodok!C$1:F$64,4,FALSE),"") ->  | K34: =IFERROR(VLOOKUP(B34,Erasmus_kodok!C$1:F$64,3,FALSE),"") -> 
J35: =IFERROR(VLOOKUP(B35,Erasmus_kodok!C$1:F$64,4,FALSE),"") ->  | K35: =IFERROR(VLOOKUP(B35,Erasmus_kodok!C$1:F$64,3,FALSE),"") -> 
J36: =IFERROR(VLOOKUP(B36,Erasmus_kodok!C$1:F$64,4,FALSE),"") ->  | K36: =IFERROR(VLOOKUP(B36,Erasmus_kodok!C$1:F$64,3,FALSE),"") -> 
J37: =IFERROR(VLOOKUP(B37,Erasmus_kodok!C$1:F$64,4,FALSE),"") ->  | K37: =IFERROR(VLOOKUP(B37,Erasmus_kodok!C$1:F$64,3,FALSE),"") -> 
J38: =IFERROR(VLOOKUP(B38,Erasmus_kodok!C$1:F$64,4,FALSE),"") ->  | K38: =IFERROR(VLOOKUP(B38,Erasmus_kodok!C$1:F$64,3,FALSE),"") -> 
J39: =IFERROR(VLOOKUP(B39,Erasmus_kodok!C$1:F$64,4,FALSE),"") ->  | K39: =IFERROR(VLOOKUP(B39,Erasmus_kodok!C$1:F$64,3,FALSE),"") -> 
J40: =IFERROR(VLOOKUP(B40,Erasmus_kodok!C$1:F$64,4,FALSE),"") ->  | K40: =IFERROR(VLOOKUP(B40,Erasmus_kodok!C$1:F$64,3,FALSE),"") -> 
J41: =IFERROR(VLOOKUP(B41,Erasmus_kodok!C$1:F$64,4,FALSE),"") ->  | K41: =IFERROR(VLOOKUP(B41,Erasmus_kodok!C$1:F$64,3,FALSE),"") -> 
J42: =IFERROR(VLOOKUP(B42,Erasmus_kodok!C$1:F$64,4,FALSE),"") ->  | K42: =IFERROR(VLOOKUP(B42,Erasmus_kodok!C$1:F$64,3,FALSE),"") -> 
J43: =IFERROR(VLOOKUP(B43,Erasmus_kodok!C$1:F$64,4,FALSE),"") ->  | K43: =IFERROR(VLOOKUP(B43,Erasmus_kodok!C$1:F$64,3,FALSE),"") -> 
J44: =IFERROR(VLOOKUP(B44,Erasmus_kodok!C$1:F$64,4,FALSE),"") ->  | K44: =IFERROR(VLOOKUP(B44,Erasmus_kodok!C$1:F$64,3,FALSE),"") -> 
J45: =IFERROR(VLOOKUP(B45,Erasmus_kodok!C$1:F$64,4,FALSE),"") ->  | K45: =IFERROR(VLOOKUP(B45,Erasmus_kodok!C$1:F$64,3,FALSE),"") -> 
J46: =IFERROR(VLOOKUP(B46,Erasmus_kodok!C$1:F$64,4,FALSE),"") ->  | K46: =IFERROR(VLOOKUP(B46,Erasmus_kodok!C$1:F$64,3,FALSE),"") -> 
J47: =IFERROR(VLOOKUP(B47,Erasmus_kodok!C$1:F$64,4,FALSE),"") ->  | K47: =IFERROR(VLOOKUP(B47,Erasmus_kodok!C$1:F$64,3,FALSE),"") -> 
J48: =IFERROR(VLOOKUP(B48,Erasmus_kodok!C$1:F$64,4,FALSE),"") ->  | K48: =IFERROR(VLOOKUP(B48,Erasmus_kodok!C$1:F$64,3,FALSE),"") -> 
J49: =IFERROR(VLOOKUP(B49,Erasmus_kodok!C$1:F$64,4,FALSE),"") ->  | K49: =IFERROR(VLOOKUP(B49,Erasmus_kodok!C$1:F$64,3,FALSE),"") -> 
J50: =IFERROR(VLOOKUP(B50,Erasmus_kodok!C$1:F$64,4,FALSE),"") ->  | K50: =IFERROR(VLOOKUP(B50,Erasmus_kodok!C$1:F$64,3,FALSE),"") -> 
J51: =IFERROR(VLOOKUP(B51,Erasmus_kodok!C$1:F$64,4,FALSE),"") ->  | K51: =IFERROR(VLOOKUP(B51,Erasmus_kodok!C$1:F$64,3,FALSE),"") -> 
J52: =IFERROR(VLOOKUP(B52,Erasmus_kodok!C$1:F$64,4,FALSE),"") ->  | K52: =IFERROR(VLOOKUP(B52,Erasmus_kodok!C$1:F$64,3,FALSE),"") -> 
J53: =IFERROR(VLOOKUP(B53,Erasmus_kodok!C$1:F$64,4,FALSE),"") ->  | K53: =IFERROR(VLOOKUP(B53,Erasmus_kodok!C$1:F$64,3,FALSE),"") -> 
J54: =IFERROR(VLOOKUP(B54,Erasmus_kodok!C$1:F$64,4,FALSE),"") ->  | K54: =IFERROR(VLOOKUP(B54,Erasmus_kodok!C$1:F$64,3,FALSE),"") -> 
J55: =IFERROR(VLOOKUP(B55,Erasmus_kodok!C$1:F$64,4,FALSE),"") ->  | K55: =IFERROR(VLOOKUP(B55,Erasmus_kodok!C$1:F$64,3,FALSE),"") -> 
J56: =IFERROR(VLOOKUP(B56,Erasmus_kodok!C$1:F$64,4,FALSE),"") ->  | K56: =IFERROR(VLOOKUP(B56,Erasmus_kodok!C$1:F$64,3,FALSE),"") -> 
J57: =IFERROR(VLOOKUP(B57,Erasmus_kodok!C$1:F$64,4,FALSE),"") ->  | K57: =IFERROR(VLOOKUP(B57,Erasmus_kodok!C$1:F$64,3,FALSE),"") -> 
J58: =IFERROR(VLOOKUP(B58,Erasmus_kodok!C$1:F$64,4,FALSE),"") ->  | K58: =IFERROR(VLOOKUP(B58,Erasmus_kodok!C$1:F$64,3,FALSE),"") -> 
J59: =IFERROR(VLOOKUP(B59,Erasmus_kodok!C$1:F$64,4,FALSE),"") ->  | K59: =IFERROR(VLOOKUP(B59,Erasmus_kodok!C$1:F$64,3,FALSE),"") -> 
J60: =IFERROR(VLOOKUP(B60,Erasmus_kodok!C$1:F$64,4,FALSE),"") ->  | K60: =IFERROR(VLOOKUP(B60,Erasmus_kodok!C$1:F$64,3,FALSE),"") -> 
J61: =IFERROR(VLOOKUP(B61,Erasmus_kodok!C$1:F$64,4,FALSE),"") ->  | K61: =IFERROR(VLOOKUP(B61,Erasmus_kodok!C$1:F$64,3,FALSE),"") -> 
J62: =IFERROR(VLOOKUP(B62,Erasmus_kodok!C$1:F$64,4,FALSE),"") ->  | K62: =IFERROR(VLOOKUP(B62,Erasmus_kodok!C$1:F$64,3,FALSE),"") -> 
J63: =IFERROR(VLOOKUP(B63,Erasmus_kodok!C$1:F$64,4,FALSE),"") ->  | K63: =IFERROR(VLOOKUP(B63,Erasmus_kodok!C$1:F$64,3,FALSE),"") -> 
J64: =IFERROR(VLOOKUP(B64,Erasmus_kodok!C$1:F$64,4,FALSE),"") ->  | K64: =IFERROR(VLOOKUP(B64,Erasmus_kodok!C$1:F$64,3,FALSE),"") -> 
J65: =IFERROR(VLOOKUP(B65,Erasmus_kodok!C$1:F$64,4,FALSE),"") ->  | K65: =IFERROR(VLOOKUP(B65,Erasmus_kodok!C$1:F$64,3,FALSE),"") -> 
J66: =IFERROR(VLOOKUP(B66,Erasmus_kodok!C$1:F$64,4,FALSE),"") ->  | K66: =IFERROR(VLOOKUP(B66,Erasmus_kodok!C$1:F$64,3,FALSE),"") -> 
J67: =IFERROR(VLOOKUP(B67,Erasmus_kodok!C$1:F$64,4,FALSE),"") ->  | K67: =IFERROR(VLOOKUP(B67,Erasmus_kodok!C$1:F$64,3,FALSE),"") -> 
J68: =IFERROR(VLOOKUP(B68,Erasmus_kodok!C$1:F$64,4,FALSE),"") ->  | K68: =IFERROR(VLOOKUP(B68,Erasmus_kodok!C$1:F$64,3,FALSE),"") -> 
J69: =IFERROR(VLOOKUP(B69,Erasmus_kodok!C$1:F$64,4,FALSE),"") ->  | K69: =IFERROR(VLOOKUP(B69,Erasmus_kodok!C$1:F$64,3,FALSE),"") -> 
J70: =IFERROR(VLOOKUP(B70,Erasmus_kodok!C$1:F$64,4,FALSE),"") ->  | K70: =IFERROR(VLOOKUP(B70,Erasmus_kodok!C$1:F$64,3,FALSE),"") -> 
J71: =IFERROR(VLOOKUP(B71,Erasmus_kodok!C$1:F$64,4,FALSE),"") ->  | K71: =IFERROR(VLOOKUP(B71,Erasmus_kodok!C$1:F$64,3,FALSE),"") -> 
J72: =IFERROR(VLOOKUP(B72,Erasmus_kodok!C$1:F$64,4,FALSE),"") ->  | K72: =IFERROR(VLOOKUP(B72,Erasmus_kodok!C$1:F$64,3,FALSE),"") -> 
J73: =IFERROR(VLOOKUP(B73,Erasmus_kodok!C$1:F$64,4,FALSE),"") ->  | K73: =IFERROR(VLOOKUP(B73,Erasmus_kodok!C$1:F$64,3,FALSE),"") -> 
J74: =IFERROR(VLOOKUP(B74,Erasmus_kodok!C$1:F$64,4,FALSE),"") ->  | K74: =IFERROR(VLOOKUP(B74,Erasmus_kodok!C$1:F$64,3,FALSE),"") -> 
J75: =IFERROR(VLOOKUP(B75,Erasmus_kodok!C$1:F$64,4,FALSE),"") ->  | K75: =IFERROR(VLOOKUP(B75,Erasmus_kodok!C$1:F$64,3,FALSE),"") -> 
J76: =IFERROR(VLOOKUP(B76,Erasmus_kodok!C$1:F$64,4,FALSE),"") ->  | K76: =IFERROR(VLOOKUP(B76,Erasmus_kodok!C$1:F$64,3,FALSE),"") -> 
J77: =IFERROR(VLOOKUP(B77,Erasmus_kodok!C$1:F$64,4,FALSE),"") ->  | K77: =IFERROR(VLOOKUP(B77,Erasmus_kodok!C$1:F$64,3,FALSE),"") -> 
J78: =IFERROR(VLOOKUP(B78,Erasmus_kodok!C$1:F$64,4,FALSE),"") ->  | K78: =IFERROR(VLOOKUP(B78,Erasmus_kodok!C$1:F$64,3,FALSE),"") -> 
J79: =IFERROR(VLOOKUP(B79,Erasmus_kodok!C$1:F$64,4,FALSE),"") ->  | K79: =IFERROR(VLOOKUP(B79,Erasmus_kodok!C$1:F$64,3,FALSE),"") -> 
J80: =IFERROR(VLOOKUP(B80,Erasmus_kodok!C$1:F$64,4,FALSE),"") ->  | K80: =IFERROR(VLOOKUP(B80,Erasmus_kodok!C$1:F$64,3,FALSE),"") -> 
J81: =IFERROR(VLOOKUP(B81,Erasmus_kodok!C$1:F$64,4,FALSE),"") ->  | K81: =IFERROR(VLOOKUP(B81,Erasmus_kodok!C$1:F$64,3,FALSE),"") -> 
J82: =IFERROR(VLOOKUP(B82,Erasmus_kodok!C$1:F$64,4,FALSE),"") ->  | K82: =IFERROR(VLOOKUP(B82,Erasmus_kodok!C$1:F$64,3,FALSE),"") -> 
J83: =IFERROR(VLOOKUP(B83,Erasmus_kodok!C$1:F$64,4,FALSE),"") ->  | K83: =IFERROR(VLOOKUP(B83,Erasmus_kodok!C$1:F$64,3,FALSE),"") -> 
J84: =IFERROR(VLOOKUP(B84,Erasmus_kodok!C$1:F$64,4,FALSE),"") ->  | K84: =IFERROR(VLOOKUP(B84,Erasmus_kodok!C$1:F$64,3,FALSE),"") -> 
J85: =IFERROR(VLOOKUP(B85,Erasmus_kodok!C$1:F$64,4,FALSE),"") ->  | K85: =IFERROR(VLOOKUP(B85,Erasmus_kodok!C$1:F$64,3,FALSE),"") -> 
J86: =IFERROR(VLOOKUP(B86,Erasmus_kodok!C$1:F$64,4,FALSE),"") ->  | K86: =IFERROR(VLOOKUP(B86,Erasmus_kodok!C$1:F$64,3,FALSE),"") -> 
J87: =IFERROR(VLOOKUP(B87,Erasmus_kodok!C$1:F$64,4,FALSE),"") ->  | K87: =IFERROR(VLOOKUP(B87,Erasmus_kodok!C$1:F$64,3,FALSE),"") -> 
J88: =IFERROR(VLOOKUP(B88,Erasmus_kodok!C$1:F$64,4,FALSE),"") ->  | K88: =IFERROR(VLOOKUP(B88,Erasmus_kodok!C$1:F$64,3,FALSE),"") -> 
J89: =IFERROR(VLOOKUP(B89,Erasmus_kodok!C$1:F$64,4,FALSE),"") ->  | K89: =IFERROR(VLOOKUP(B89,Erasmus_kodok!C$1:F$64,3,FALSE),"") -> 
J90: =IFERROR(VLOOKUP(B90,Erasmus_kodok!C$1:F$64,4,FALSE),"") ->  | K90: =IFERROR(VLOOKUP(B90,Erasmus_kodok!C$1:F$64,3,FALSE),"") -> 
J91: =IFERROR(VLOOKUP(B91,Erasmus_kodok!C$1:F$64,4,FALSE),"") ->  | K91: =IFERROR(VLOOKUP(B91,Erasmus_kodok!C$1:F$64,3,FALSE),"") -> 
J92: =IFERROR(VLOOKUP(B92,Erasmus_kodok!C$1:F$64,4,FALSE),"") ->  | K92: =IFERROR(VLOOKUP(B92,Erasmus_kodok!C$1:F$64,3,FALSE),"") -> 
J93: =IFERROR(VLOOKUP(B93,Erasmus_kodok!C$1:F$64,4,FALSE),"") ->  | K93: =IFERROR(VLOOKUP(B93,Erasmus_kodok!C$1:F$64,3,FALSE),"") -> 
J94: =IFERROR(VLOOKUP(B94,Erasmus_kodok!C$1:F$64,4,FALSE),"") ->  | K94: =IFERROR(VLOOKUP(B94,Erasmus_kodok!C$1:F$64,3,FALSE),"") -> 
J95: =IFERROR(VLOOKUP(B95,Erasmus_kodok!C$1:F$64,4,FALSE),"") ->  | K95: =IFERROR(VLOOKUP(B95,Erasmus_kodok!C$1:F$64,3,FALSE),"") -> 
J96: =IFERROR(VLOOKUP(B96,Erasmus_kodok!C$1:F$64,4,FALSE),"") ->  | K96: =IFERROR(VLOOKUP(B96,Erasmus_kodok!C$1:F$64,3,FALSE),"") -> 
J97: =IFERROR(VLOOKUP(B97,Erasmus_kodok!C$1:F$64,4,FALSE),"") ->  | K97: =IFERROR(VLOOKUP(B97,Erasmus_kodok!C$1:F$64,3,FALSE),"") -> 
J98: =IFERROR(VLOOKUP(B98,Erasmus_kodok!C$1:F$64,4,FALSE),"") ->  | K98: =IFERROR(VLOOKUP(B98,Erasmus_kodok!C$1:F$64,3,FALSE),"") -> 
J99: =IFERROR(VLOOKUP(B99,Erasmus_kodok!C$1:F$64,4,FALSE),"") ->  | K99: =IFERROR(VLOOKUP(B99,Erasmus_kodok!C$1:F$64,3,FALSE),"") -> 
J100: =IFERROR(VLOOKUP(B100,Erasmus_kodok!C$1:F$64,4,FALSE),"") ->  | K100: =IFERROR(VLOOKUP(B100,Erasmus_kodok!C$1:F$64,3,FALSE),"") -> 
J101: =IFERROR(VLOOKUP(B101,Erasmus_kodok!C$1:F$64,4,FALSE),"") ->  | K101: =IFERROR(VLOOKUP(B101,Erasmus_kodok!C$1:F$64,3,FALSE),"") -> 
J102: =IFERROR(VLOOKUP(B102,Erasmus_kodok!C$1:F$64,4,FALSE),"") ->  | K102: =IFERROR(VLOOKUP(B102,Erasmus_kodok!C$1:F$64,3,FALSE),"") -> 
J103: =IFERROR(VLOOKUP(B103,Erasmus_kodok!C$1:F$64,4,FALSE),"") ->  | K103: =IFERROR(VLOOKUP(B103,Erasmus_kodok!C$1:F$64,3,FALSE),"") -> 
J104: =IFERROR(VLOOKUP(B104,Erasmus_kodok!C$1:F$64,4,FALSE),"") ->  | K104: =IFERROR(VLOOKUP(B104,Erasmus_kodok!C$1:F$64,3,FALSE),"") -> 
J105: =IFERROR(VLOOKUP(B105,Erasmus_kodok!C$1:F$64,4,FALSE),"") ->  | K105: =IFERROR(VLOOKUP(B105,Erasmus_kodok!C$1:F$64,3,FALSE),"") -> 
J106: =IFERROR(VLOOKUP(B106,Erasmus_kodok!C$1:F$64,4,FALSE),"") ->  | K106: =IFERROR(VLOOKUP(B106,Erasmus_kodok!C$1:F$64,3,FALSE),"") -> 
J107: =IFERROR(VLOOKUP(B107,Erasmus_kodok!C$1:F$64,4,FALSE),"") ->  | K107: =IFERROR(VLOOKUP(B107,Erasmus_kodok!C$1:F$64,3,FALSE),"") -> 
J108: =IFERROR(VLOOKUP(B108,Erasmus_kodok!C$1:F$64,4,FALSE),"") ->  | K108: =IFERROR(VLOOKUP(B108,Erasmus_kodok!C$1:F$64,3,FALSE),"") -> 

Sheet Ki- és beutazó hallgatók (hidden)
A1: =IF(Azonosítás!A3="","",Azonosítás!A3) -> 
A2: Ki- és beutazó hallgatói mobilitás - tanulmányi célú, szakmai gyakorlat, nyári egyetem
A4: Intézmény neve: | C4: =IF(Azonosítás!A9="","",Azonosítás!A9) ->  | E4: EGT koordinátor aláírása | O4: intézményi koordinátor aláírása
A5: Szerződésszám: | C5: =Azonosítás!A6 -> 0 | H5: =TODAY() -> 2017-01-06 | R5: =TODAY() -> 2017-01-06
Q6: 0
A8: Mobilitás jellege | B8: Egyéni támogatási szerződésszám | C8: Tanulmányi azonosító kód | D8: Családnév | E8: Keresztnév | F8: Születés időpontja (ÉÉÉÉ/HH/NN) | G8: Neme | H8: Állampolgárság | I8: Szakterület kódja | J8: Leendő végzettsége (magyarul) | K8: A tanulmányok szintje | L8: Évfolyam | M8: Küldő partner azonosítója | N8: Fogadó partner azonosítója | O8: Tanulmányi célú mobilitás kezdete (ÉÉÉÉ/HH/NN) | P8: Tanulmányi célú mobilitás vége (ÉÉÉÉ/HH/NN) | Q8: Tanulmányi célú mobilitás hossza | R8: Szakmai gyakorlat kezdete (ÉÉÉÉ/HH/NN) | S8: Szakmai gyakorlat vége (ÉÉÉÉ/HH/NN) | T8: Szakmai gyakorlat hossza | U8: Nyári egyetem kezdete (ÉÉÉÉ/HH/NN) | V8: Nyári egyetem vége (ÉÉÉÉ/HH/NN) | W8: Nyári egyetem hossza | X8: Tanulmányi ECTS kreditek száma | Y8: Gyakorlati ECTS kreditek száma | Z8: Oktatás vagy munka nyelve | AA8: Hallgatói felkészítés | AB8: EGT ösztöndíj összesen (EUR) | AC8: Intézményi forrás (HUF) | AD8: Hallgató e-mail címe | AE8: Költségtérítéses hallgató? | AF8: Megjegyzés | AG8: hosszabbítási igény (hónap) | AH8: kiegészítés-igény (euró) | AI8: Küldő ország | AJ8: Fogadó ország | AK8: TÁMOGATÁS
M9: =IF((IFERROR(RIGHT($A9,2),"")="KI"),Erasmus_kod,"") ->  | AB9: =IFERROR( IF( ((RIGHT(A9,2)="KI")*(AI9="HU")*(AJ9<>"HU"))+((RIGHT(A9,2)="BE")*(AJ9="HU")*(AJ9="HU")), IF(A9<>"",AK9,""),""),"") ->  | AI9: =IFERROR( IF(VLOOKUP($M9,Partnerek!$A$9:$K$108,11,FALSE)="","",VLOOKUP($M9,Partnerek!$A$9:$K$108,11,FALSE)),"") ->  | AJ9: =IFERROR( IF(VLOOKUP($N9,Partnerek!$A$9:$K$108,11,FALSE)="","",VLOOKUP($N9,Partnerek!$A$9:$K$108,11,FALSE)),"") ->  | AK9: =IFERROR(VLOOKUP(AJ9,ráták!$A$10:$AX$13,MATCH(Q9+T9+W9,ráták!$C$9:$AX$9,1)+2,FALSE),"") -> 
AB10: =IFERROR( IF( ((RIGHT(A10,2)="KI")*(AI10="HU")*(AJ10<>"HU"))+((RIGHT(A10,2)="BE")*(AJ10="HU")*(AJ10="HU")), IF(A10<>"",AK10,""),""),"") ->  | AI10: =IFERROR( IF(VLOOKUP($M10,Partnerek!$A$9:$K$108,11,FALSE)="","",VLOOKUP($M10,Partnerek!$A$9:$K$108,11,FALSE)),"") ->  | AJ10: =IFERROR( IF(RIGHT($A10,2)="BE","HU", IF(VLOOKUP($N10,Partnerek!$A$9:$K$108,11,FALSE)="","",VLOOKUP($N10,Partnerek!$A$9:$K$108,11,FALSE))),"") ->  | AK10: =IFERROR(VLOOKUP(AJ10,ráták!$A$10:$AX$13,MATCH(Q10+T10+W10,ráták!$C$9:$AX$9,1)+2,FALSE),"") -> 
AI11: =IFERROR( IF(VLOOKUP($M11,Partnerek!$A$9:$K$108,11,FALSE)="","",VLOOKUP($M11,Partnerek!$A$9:$K$108,11,FALSE)),"") ->  | AJ11: =IFERROR( IF(RIGHT($A11,2)="BE","HU", IF(VLOOKUP($N11,Partnerek!$A$9:$K$108,11,FALSE)="","",VLOOKUP($N11,Partnerek!$A$9:$K$108,11,FALSE))),"") ->  | AK11: =IFERROR(VLOOKUP(AJ11,ráták!$A$10:$AX$13,MATCH(Q11+T11+W11,ráták!$C$9:$AX$9,1)+2,FALSE),"") -> 
AI12: =IFERROR( IF(VLOOKUP($M12,Partnerek!$A$9:$K$108,11,FALSE)="","",VLOOKUP($M12,Partnerek!$A$9:$K$108,11,FALSE)),"") ->  | AJ12: =IFERROR( IF(RIGHT($A12,2)="BE","HU", IF(VLOOKUP($N12,Partnerek!$A$9:$K$108,11,FALSE)="","",VLOOKUP($N12,Partnerek!$A$9:$K$108,11,FALSE))),"") ->  | AK12: =IFERROR(VLOOKUP(AJ12,ráták!$A$10:$AX$13,MATCH(Q12+T12+W12,ráták!$C$9:$AX$9,1)+2,FALSE),"") -> 
AI13: =IFERROR( IF(VLOOKUP($M13,Partnerek!$A$9:$K$108,11,FALSE)="","",VLOOKUP($M13,Partnerek!$A$9:$K$108,11,FALSE)),"") ->  | AJ13: =IFERROR( IF(RIGHT($A13,2)="BE","HU", IF(VLOOKUP($N13,Partnerek!$A$9:$K$108,11,FALSE)="","",VLOOKUP($N13,Partnerek!$A$9:$K$108,11,FALSE))),"") ->  | AK13: =IFERROR(VLOOKUP(AJ13,ráták!$A$10:$AX$13,MATCH(Q13+T13+W13,ráták!$C$9:$AX$9,1)+2,FALSE),"") -> 
AI14: =IFERROR( IF(VLOOKUP($M14,Partnerek!$A$9:$K$108,11,FALSE)="","",VLOOKUP($M14,Partnerek!$A$9:$K$108,11,FALSE)),"") ->  | AJ14: =IFERROR( IF(RIGHT($A14,2)="BE","HU", IF(VLOOKUP($N14,Partnerek!$A$9:$K$108,11,FALSE)="","",VLOOKUP($N14,Partnerek!$A$9:$K$108,11,FALSE))),"") ->  | AK14: =IFERROR(VLOOKUP(AJ14,ráták!$A$10:$AX$13,MATCH(Q14+T14+W14,ráták!$C$9:$AX$9,1)+2,FALSE),"") -> 
AI15: =IFERROR( IF(VLOOKUP($M15,Partnerek!$A$9:$K$108,11,FALSE)="","",VLOOKUP($M15,Partnerek!$A$9:$K$108,11,FALSE)),"") ->  | AJ15: =IFERROR( IF(RIGHT($A15,2)="BE","HU", IF(VLOOKUP($N15,Partnerek!$A$9:$K$108,11,FALSE)="","",VLOOKUP($N15,Partnerek!$A$9:$K$108,11,FALSE))),"") ->  | AK15: =IFERROR(VLOOKUP(AJ15,ráták!$A$10:$AX$13,MATCH(Q15+T15+W15,ráták!$C$9:$AX$9,1)+2,FALSE),"") -> 
AI16: =IFERROR( IF(VLOOKUP($M16,Partnerek!$A$9:$K$108,11,FALSE)="","",VLOOKUP($M16,Partnerek!$A$9:$K$108,11,FALSE)),"") ->  | AJ16: =IFERROR( IF(RIGHT($A16,2)="BE","HU", IF(VLOOKUP($N16,Partnerek!$A$9:$K$108,11,FALSE)="","",VLOOKUP($N16,Partnerek!$A$9:$K$108,11,FALSE))),"") ->  | AK16: =IFERROR(VLOOKUP(AJ16,ráták!$A$10:$AX$13,MATCH(Q16+T16+W16,ráták!$C$9:$AX$9,1)+2,FALSE),"") -> 
AI17: =IFERROR( IF(VLOOKUP($M17,Partnerek!$A$9:$K$108,11,FALSE)="","",VLOOKUP($M17,Partnerek!$A$9:$K$108,11,FALSE)),"") ->  | AJ17: =IFERROR( IF(RIGHT($A17,2)="BE","HU", IF(VLOOKUP($N17,Partnerek!$A$9:$K$108,11,FALSE)="","",VLOOKUP($N17,Partnerek!$A$9:$K$108,11,FALSE))),"") ->  | AK17: =IFERROR(VLOOKUP(AJ17,ráták!$A$10:$AX$13,MATCH(Q17+T17+W17,ráták!$C$9:$AX$9,1)+2,FALSE),"") -> 
AI18: =IFERROR( IF(VLOOKUP($M18,Partnerek!$A$9:$K$108,11,FALSE)="","",VLOOKUP($M18,Partnerek!$A$9:$K$108,11,FALSE)),"") ->  | AJ18: =IFERROR( IF(RIGHT($A18,2)="BE","HU", IF(VLOOKUP($N18,Partnerek!$A$9:$K$108,11,FALSE)="","",VLOOKUP($N18,Partnerek!$A$9:$K$108,11,FALSE))),"") ->  | AK18: =IFERROR(VLOOKUP(AJ18,ráták!$A$10:$AX$13,MATCH(Q18+T18+W18,ráták!$C$9:$AX$9,1)+2,FALSE),"") -> 
AI19: =IFERROR( IF(VLOOKUP($M19,Partnerek!$A$9:$K$108,11,FALSE)="","",VLOOKUP($M19,Partnerek!$A$9:$K$108,11,FALSE)),"") ->  | AJ19: =IFERROR( IF(RIGHT($A19,2)="BE","HU", IF(VLOOKUP($N19,Partnerek!$A$9:$K$108,11,FALSE)="","",VLOOKUP($N19,Partnerek!$A$9:$K$108,11,FALSE))),"") ->  | AK19: =IFERROR(VLOOKUP(AJ19,ráták!$A$10:$AX$13,MATCH(Q19+T19+W19,ráták!$C$9:$AX$9,1)+2,FALSE),"") -> 
AI20: =IFERROR( IF(VLOOKUP($M20,Partnerek!$A$9:$K$108,11,FALSE)="","",VLOOKUP($M20,Partnerek!$A$9:$K$108,11,FALSE)),"") ->  | AJ20: =IFERROR( IF(RIGHT($A20,2)="BE","HU", IF(VLOOKUP($N20,Partnerek!$A$9:$K$108,11,FALSE)="","",VLOOKUP($N20,Partnerek!$A$9:$K$108,11,FALSE))),"") ->  | AK20: =IFERROR(VLOOKUP(AJ20,ráták!$A$10:$AX$13,MATCH(Q20+T20+W20,ráták!$C$9:$AX$9,1)+2,FALSE),"") -> 
AI21: =IFERROR( IF(VLOOKUP($M21,Partnerek!$A$9:$K$108,11,FALSE)="","",VLOOKUP($M21,Partnerek!$A$9:$K$108,11,FALSE)),"") ->  | AJ21: =IFERROR( IF(RIGHT($A21,2)="BE","HU", IF(VLOOKUP($N21,Partnerek!$A$9:$K$108,11,FALSE)="","",VLOOKUP($N21,Partnerek!$A$9:$K$108,11,FALSE))),"") ->  | AK21: =IFERROR(VLOOKUP(AJ21,ráták!$A$10:$AX$13,MATCH(Q21+T21+W21,ráták!$C$9:$AX$9,1)+2,FALSE),"") -> 
AI22: =IFERROR( IF(VLOOKUP($M22,Partnerek!$A$9:$K$108,11,FALSE)="","",VLOOKUP($M22,Partnerek!$A$9:$K$108,11,FALSE)),"") ->  | AJ22: =IFERROR( IF(RIGHT($A22,2)="BE","HU", IF(VLOOKUP($N22,Partnerek!$A$9:$K$108,11,FALSE)="","",VLOOKUP($N22,Partnerek!$A$9:$K$108,11,FALSE))),"") ->  | AK22: =IFERROR(VLOOKUP(AJ22,ráták!$A$10:$AX$13,MATCH(Q22+T22+W22,ráták!$C$9:$AX$9,1)+2,FALSE),"") -> 
AI23: =IFERROR( IF(VLOOKUP($M23,Partnerek!$A$9:$K$108,11,FALSE)="","",VLOOKUP($M23,Partnerek!$A$9:$K$108,11,FALSE)),"") ->  | AJ23: =IFERROR( IF(RIGHT($A23,2)="BE","HU", IF(VLOOKUP($N23,Partnerek!$A$9:$K$108,11,FALSE)="","",VLOOKUP($N23,Partnerek!$A$9:$K$108,11,FALSE))),"") ->  | AK23: =IFERROR(VLOOKUP(AJ23,ráták!$A$10:$AX$13,MATCH(Q23+T23+W23,ráták!$C$9:$AX$9,1)+2,FALSE),"") -> 
AI24: =IFERROR( IF(VLOOKUP($M24,Partnerek!$A$9:$K$108,11,FALSE)="","",VLOOKUP($M24,Partnerek!$A$9:$K$108,11,FALSE)),"") ->  | AJ24: =IFERROR( IF(RIGHT($A24,2)="BE","HU", IF(VLOOKUP($N24,Partnerek!$A$9:$K$108,11,FALSE)="","",VLOOKUP($N24,Partnerek!$A$9:$K$108,11,FALSE))),"") ->  | AK24: =IFERROR(VLOOKUP(AJ24,ráták!$A$10:$AX$13,MATCH(Q24+T24+W24,ráták!$C$9:$AX$9,1)+2,FALSE),"") -> 
AI25: =IFERROR( IF(VLOOKUP($M25,Partnerek!$A$9:$K$108,11,FALSE)="","",VLOOKUP($M25,Partnerek!$A$9:$K$108,11,FALSE)),"") ->  | AJ25: =IFERROR( IF(RIGHT($A25,2)="BE","HU", IF(VLOOKUP($N25,Partnerek!$A$9:$K$108,11,FALSE)="","",VLOOKUP($N25,Partnerek!$A$9:$K$108,11,FALSE))),"") ->  | AK25: =IFERROR(VLOOKUP(AJ25,ráták!$A$10:$AX$13,MATCH(Q25+T25+W25,ráták!$C$9:$AX$9,1)+2,FALSE),"") -> 
AI26: =IFERROR( IF(VLOOKUP($M26,Partnerek!$A$9:$K$108,11,FALSE)="","",VLOOKUP($M26,Partnerek!$A$9:$K$108,11,FALSE)),"") ->  | AJ26: =IFERROR( IF(RIGHT($A26,2)="BE","HU", IF(VLOOKUP($N26,Partnerek!$A$9:$K$108,11,FALSE)="","",VLOOKUP($N26,Partnerek!$A$9:$K$108,11,FALSE))),"") ->  | AK26: =IFERROR(VLOOKUP(AJ26,ráták!$A$10:$AX$13,MATCH(Q26+T26+W26,ráták!$C$9:$AX$9,1)+2,FALSE),"") -> 
AI27: =IFERROR( IF(VLOOKUP($M27,Partnerek!$A$9:$K$108,11,FALSE)="","",VLOOKUP($M27,Partnerek!$A$9:$K$108,11,FALSE)),"") ->  | AJ27: =IFERROR( IF(RIGHT($A27,2)="BE","HU", IF(VLOOKUP($N27,Partnerek!$A$9:$K$108,11,FALSE)="","",VLOOKUP($N27,Partnerek!$A$9:$K$108,11,FALSE))),"") ->  | AK27: =IFERROR(VLOOKUP(AJ27,ráták!$A$10:$AX$13,MATCH(Q27+T27+W27,ráták!$C$9:$AX$9,1)+2,FALSE),"") -> 
AI28: =IFERROR( IF(VLOOKUP($M28,Partnerek!$A$9:$K$108,11,FALSE)="","",VLOOKUP($M28,Partnerek!$A$9:$K$108,11,FALSE)),"") ->  | AJ28: =IFERROR( IF(RIGHT($A28,2)="BE","HU", IF(VLOOKUP($N28,Partnerek!$A$9:$K$108,11,FALSE)="","",VLOOKUP($N28,Partnerek!$A$9:$K$108,11,FALSE))),"") ->  | AK28: =IFERROR(VLOOKUP(AJ28,ráták!$A$10:$AX$13,MATCH(Q28+T28+W28,ráták!$C$9:$AX$9,1)+2,FALSE),"") -> 
AI29: =IFERROR( IF(VLOOKUP($M29,Partnerek!$A$9:$K$108,11,FALSE)="","",VLOOKUP($M29,Partnerek!$A$9:$K$108,11,FALSE)),"") ->  | AJ29: =IFERROR( IF(RIGHT($A29,2)="BE","HU", IF(VLOOKUP($N29,Partnerek!$A$9:$K$108,11,FALSE)="","",VLOOKUP($N29,Partnerek!$A$9:$K$108,11,FALSE))),"") ->  | AK29: =IFERROR(VLOOKUP(AJ29,ráták!$A$10:$AX$13,MATCH(Q29+T29+W29,ráták!$C$9:$AX$9,1)+2,FALSE),"") -> 
AI30: =IFERROR( IF(VLOOKUP($M30,Partnerek!$A$9:$K$108,11,FALSE)="","",VLOOKUP($M30,Partnerek!$A$9:$K$108,11,FALSE)),"") ->  | AJ30: =IFERROR( IF(RIGHT($A30,2)="BE","HU", IF(VLOOKUP($N30,Partnerek!$A$9:$K$108,11,FALSE)="","",VLOOKUP($N30,Partnerek!$A$9:$K$108,11,FALSE))),"") ->  | AK30: =IFERROR(VLOOKUP(AJ30,ráták!$A$10:$AX$13,MATCH(Q30+T30+W30,ráták!$C$9:$AX$9,1)+2,FALSE),"") -> 
AI31: =IFERROR( IF(VLOOKUP($M31,Partnerek!$A$9:$K$108,11,FALSE)="","",VLOOKUP($M31,Partnerek!$A$9:$K$108,11,FALSE)),"") ->  | AJ31: =IFERROR( IF(RIGHT($A31,2)="BE","HU", IF(VLOOKUP($N31,Partnerek!$A$9:$K$108,11,FALSE)="","",VLOOKUP($N31,Partnerek!$A$9:$K$108,11,FALSE))),"") ->  | AK31: =IFERROR(VLOOKUP(AJ31,ráták!$A$10:$AX$13,MATCH(Q31+T31+W31,ráták!$C$9:$AX$9,1)+2,FALSE),"") -> 
AI32: =IFERROR( IF(VLOOKUP($M32,Partnerek!$A$9:$K$108,11,FALSE)="","",VLOOKUP($M32,Partnerek!$A$9:$K$108,11,FALSE)),"") ->  | AJ32: =IFERROR( IF(RIGHT($A32,2)="BE","HU", IF(VLOOKUP($N32,Partnerek!$A$9:$K$108,11,FALSE)="","",VLOOKUP($N32,Partnerek!$A$9:$K$108,11,FALSE))),"") ->  | AK32: =IFERROR(VLOOKUP(AJ32,ráták!$A$10:$AX$13,MATCH(Q32+T32+W32,ráták!$C$9:$AX$9,1)+2,FALSE),"") -> 
AI33: =IFERROR( IF(VLOOKUP($M33,Partnerek!$A$9:$K$108,11,FALSE)="","",VLOOKUP($M33,Partnerek!$A$9:$K$108,11,FALSE)),"") ->  | AJ33: =IFERROR( IF(RIGHT($A33,2)="BE","HU", IF(VLOOKUP($N33,Partnerek!$A$9:$K$108,11,FALSE)="","",VLOOKUP($N33,Partnerek!$A$9:$K$108,11,FALSE))),"") ->  | AK33: =IFERROR(VLOOKUP(AJ33,ráták!$A$10:$AX$13,MATCH(Q33+T33+W33,ráták!$C$9:$AX$9,1)+2,FALSE),"") -> 
AI34: =IFERROR( IF(VLOOKUP($M34,Partnerek!$A$9:$K$108,11,FALSE)="","",VLOOKUP($M34,Partnerek!$A$9:$K$108,11,FALSE)),"") ->  | AJ34: =IFERROR( IF(RIGHT($A34,2)="BE","HU", IF(VLOOKUP($N34,Partnerek!$A$9:$K$108,11,FALSE)="","",VLOOKUP($N34,Partnerek!$A$9:$K$108,11,FALSE))),"") ->  | AK34: =IFERROR(VLOOKUP(AJ34,ráták!$A$10:$AX$13,MATCH(Q34+T34+W34,ráták!$C$9:$AX$9,1)+2,FALSE),"") -> 
AI35: =IFERROR( IF(VLOOKUP($M35,Partnerek!$A$9:$K$108,11,FALSE)="","",VLOOKUP($M35,Partnerek!$A$9:$K$108,11,FALSE)),"") ->  | AJ35: =IFERROR( IF(RIGHT($A35,2)="BE","HU", IF(VLOOKUP($N35,Partnerek!$A$9:$K$108,11,FALSE)="","",VLOOKUP($N35,Partnerek!$A$9:$K$108,11,FALSE))),"") ->  | AK35: =IFERROR(VLOOKUP(AJ35,ráták!$A$10:$AX$13,MATCH(Q35+T35+W35,ráták!$C$9:$AX$9,1)+2,FALSE),"") -> 
AI36: =IFERROR( IF(VLOOKUP($M36,Partnerek!$A$9:$K$108,11,FALSE)="","",VLOOKUP($M36,Partnerek!$A$9:$K$108,11,FALSE)),"") ->  | AJ36: =IFERROR( IF(RIGHT($A36,2)="BE","HU", IF(VLOOKUP($N36,Partnerek!$A$9:$K$108,11,FALSE)="","",VLOOKUP($N36,Partnerek!$A$9:$K$108,11,FALSE))),"") ->  | AK36: =IFERROR(VLOOKUP(AJ36,ráták!$A$10:$AX$13,MATCH(Q36+T36+W36,ráták!$C$9:$AX$9,1)+2,FALSE),"") -> 
AI37: =IFERROR( IF(VLOOKUP($M37,Partnerek!$A$9:$K$108,11,FALSE)="","",VLOOKUP($M37,Partnerek!$A$9:$K$108,11,FALSE)),"") ->  | AJ37: =IFERROR( IF(RIGHT($A37,2)="BE","HU", IF(VLOOKUP($N37,Partnerek!$A$9:$K$108,11,FALSE)="","",VLOOKUP($N37,Partnerek!$A$9:$K$108,11,FALSE))),"") ->  | AK37: =IFERROR(VLOOKUP(AJ37,ráták!$A$10:$AX$13,MATCH(Q37+T37+W37,ráták!$C$9:$AX$9,1)+2,FALSE),"") -> 
AI38: =IFERROR( IF(VLOOKUP($M38,Partnerek!$A$9:$K$108,11,FALSE)="","",VLOOKUP($M38,Partnerek!$A$9:$K$108,11,FALSE)),"") ->  | AJ38: =IFERROR( IF(RIGHT($A38,2)="BE","HU", IF(VLOOKUP($N38,Partnerek!$A$9:$K$108,11,FALSE)="","",VLOOKUP($N38,Partnerek!$A$9:$K$108,11,FALSE))),"") ->  | AK38: =IFERROR(VLOOKUP(AJ38,ráták!$A$10:$AX$13,MATCH(Q38+T38+W38,ráták!$C$9:$AX$9,1)+2,FALSE),"") -> 
AI39: =IFERROR( IF(VLOOKUP($M39,Partnerek!$A$9:$K$108,11,FALSE)="","",VLOOKUP($M39,Partnerek!$A$9:$K$108,11,FALSE)),"") ->  | AJ39: =IFERROR( IF(RIGHT($A39,2)="BE","HU", IF(VLOOKUP($N39,Partnerek!$A$9:$K$108,11,FALSE)="","",VLOOKUP($N39,Partnerek!$A$9:$K$108,11,FALSE))),"") ->  | AK39: =IFERROR(VLOOKUP(AJ39,ráták!$A$10:$AX$13,MATCH(Q39+T39+W39,ráták!$C$9:$AX$9,1)+2,FALSE),"") -> 
AI40: =IFERROR( IF(VLOOKUP($M40,Partnerek!$A$9:$K$108,11,FALSE)="","",VLOOKUP($M40,Partnerek!$A$9:$K$108,11,FALSE)),"") ->  | AJ40: =IFERROR( IF(RIGHT($A40,2)="BE","HU", IF(VLOOKUP($N40,Partnerek!$A$9:$K$108,11,FALSE)="","",VLOOKUP($N40,Partnerek!$A$9:$K$108,11,FALSE))),"") ->  | AK40: =IFERROR(VLOOKUP(AJ40,ráták!$A$10:$AX$13,MATCH(Q40+T40+W40,ráták!$C$9:$AX$9,1)+2,FALSE),"") -> 
AI41: =IFERROR( IF(VLOOKUP($M41,Partnerek!$A$9:$K$108,11,FALSE)="","",VLOOKUP($M41,Partnerek!$A$9:$K$108,11,FALSE)),"") ->  | AJ41: =IFERROR( IF(RIGHT($A41,2)="BE","HU", IF(VLOOKUP($N41,Partnerek!$A$9:$K$108,11,FALSE)="","",VLOOKUP($N41,Partnerek!$A$9:$K$108,11,FALSE))),"") ->  | AK41: =IFERROR(VLOOKUP(AJ41,ráták!$A$10:$AX$13,MATCH(Q41+T41+W41,ráták!$C$9:$AX$9,1)+2,FALSE),"") -> 
AI42: =IFERROR( IF(VLOOKUP($M42,Partnerek!$A$9:$K$108,11,FALSE)="","",VLOOKUP($M42,Partnerek!$A$9:$K$108,11,FALSE)),"") ->  | AJ42: =IFERROR( IF(RIGHT($A42,2)="BE","HU", IF(VLOOKUP($N42,Partnerek!$A$9:$K$108,11,FALSE)="","",VLOOKUP($N42,Partnerek!$A$9:$K$108,11,FALSE))),"") ->  | AK42: =IFERROR(VLOOKUP(AJ42,ráták!$A$10:$AX$13,MATCH(Q42+T42+W42,ráták!$C$9:$AX$9,1)+2,FALSE),"") -> 
AI43: =IFERROR( IF(VLOOKUP($M43,Partnerek!$A$9:$K$108,11,FALSE)="","",VLOOKUP($M43,Partnerek!$A$9:$K$108,11,FALSE)),"") ->  | AJ43: =IFERROR( IF(RIGHT($A43,2)="BE","HU", IF(VLOOKUP($N43,Partnerek!$A$9:$K$108,11,FALSE)="","",VLOOKUP($N43,Partnerek!$A$9:$K$108,11,FALSE))),"") ->  | AK43: =IFERROR(VLOOKUP(AJ43,ráták!$A$10:$AX$13,MATCH(Q43+T43+W43,ráták!$C$9:$AX$9,1)+2,FALSE),"") -> 
AI44: =IFERROR( IF(VLOOKUP($M44,Partnerek!$A$9:$K$108,11,FALSE)="","",VLOOKUP($M44,Partnerek!$A$9:$K$108,11,FALSE)),"") ->  | AJ44: =IFERROR( IF(RIGHT($A44,2)="BE","HU", IF(VLOOKUP($N44,Partnerek!$A$9:$K$108,11,FALSE)="","",VLOOKUP($N44,Partnerek!$A$9:$K$108,11,FALSE))),"") ->  | AK44: =IFERROR(VLOOKUP(AJ44,ráták!$A$10:$AX$13,MATCH(Q44+T44+W44,ráták!$C$9:$AX$9,1)+2,FALSE),"") -> 
AI45: =IFERROR( IF(VLOOKUP($M45,Partnerek!$A$9:$K$108,11,FALSE)="","",VLOOKUP($M45,Partnerek!$A$9:$K$108,11,FALSE)),"") ->  | AJ45: =IFERROR( IF(RIGHT($A45,2)="BE","HU", IF(VLOOKUP($N45,Partnerek!$A$9:$K$108,11,FALSE)="","",VLOOKUP($N45,Partnerek!$A$9:$K$108,11,FALSE))),"") ->  | AK45: =IFERROR(VLOOKUP(AJ45,ráták!$A$10:$AX$13,MATCH(Q45+T45+W45,ráták!$C$9:$AX$9,1)+2,FALSE),"") -> 
AI46: =IFERROR( IF(VLOOKUP($M46,Partnerek!$A$9:$K$108,11,FALSE)="","",VLOOKUP($M46,Partnerek!$A$9:$K$108,11,FALSE)),"") ->  | AJ46: =IFERROR( IF(RIGHT($A46,2)="BE","HU", IF(VLOOKUP($N46,Partnerek!$A$9:$K$108,11,FALSE)="","",VLOOKUP($N46,Partnerek!$A$9:$K$108,11,FALSE))),"") ->  | AK46: =IFERROR(VLOOKUP(AJ46,ráták!$A$10:$AX$13,MATCH(Q46+T46+W46,ráták!$C$9:$AX$9,1)+2,FALSE),"") -> 
AI47: =IFERROR( IF(VLOOKUP($M47,Partnerek!$A$9:$K$108,11,FALSE)="","",VLOOKUP($M47,Partnerek!$A$9:$K$108,11,FALSE)),"") ->  | AJ47: =IFERROR( IF(RIGHT($A47,2)="BE","HU", IF(VLOOKUP($N47,Partnerek!$A$9:$K$108,11,FALSE)="","",VLOOKUP($N47,Partnerek!$A$9:$K$108,11,FALSE))),"") ->  | AK47: =IFERROR(VLOOKUP(AJ47,ráták!$A$10:$AX$13,MATCH(Q47+T47+W47,ráták!$C$9:$AX$9,1)+2,FALSE),"") -> 
AI48: =IFERROR( IF(VLOOKUP($M48,Partnerek!$A$9:$K$108,11,FALSE)="","",VLOOKUP($M48,Partnerek!$A$9:$K$108,11,FALSE)),"") ->  | AJ48: =IFERROR( IF(RIGHT($A48,2)="BE","HU", IF(VLOOKUP($N48,Partnerek!$A$9:$K$108,11,FALSE)="","",VLOOKUP($N48,Partnerek!$A$9:$K$108,11,FALSE))),"") ->  | AK48: =IFERROR(VLOOKUP(AJ48,ráták!$A$10:$AX$13,MATCH(Q48+T48+W48,ráták!$C$9:$AX$9,1)+2,FALSE),"") -> 
AI49: =IFERROR( IF(VLOOKUP($M49,Partnerek!$A$9:$K$108,11,FALSE)="","",VLOOKUP($M49,Partnerek!$A$9:$K$108,11,FALSE)),"") ->  | AJ49: =IFERROR( IF(RIGHT($A49,2)="BE","HU", IF(VLOOKUP($N49,Partnerek!$A$9:$K$108,11,FALSE)="","",VLOOKUP($N49,Partnerek!$A$9:$K$108,11,FALSE))),"") ->  | AK49: =IFERROR(VLOOKUP(AJ49,ráták!$A$10:$AX$13,MATCH(Q49+T49+W49,ráták!$C$9:$AX$9,1)+2,FALSE),"") -> 
AI50: =IFERROR( IF(VLOOKUP($M50,Partnerek!$A$9:$K$108,11,FALSE)="","",VLOOKUP($M50,Partnerek!$A$9:$K$108,11,FALSE)),"") ->  | AJ50: =IFERROR( IF(RIGHT($A50,2)="BE","HU", IF(VLOOKUP($N50,Partnerek!$A$9:$K$108,11,FALSE)="","",VLOOKUP($N50,Partnerek!$A$9:$K$108,11,FALSE))),"") ->  | AK50: =IFERROR(VLOOKUP(AJ50,ráták!$A$10:$AX$13,MATCH(Q50+T50+W50,ráták!$C$9:$AX$9,1)+2,FALSE),"") -> 
AI51: =IFERROR( IF(VLOOKUP($M51,Partnerek!$A$9:$K$108,11,FALSE)="","",VLOOKUP($M51,Partnerek!$A$9:$K$108,11,FALSE)),"") ->  | AJ51: =IFERROR( IF(RIGHT($A51,2)="BE","HU", IF(VLOOKUP($N51,Partnerek!$A$9:$K$108,11,FALSE)="","",VLOOKUP($N51,Partnerek!$A$9:$K$108,11,FALSE))),"") ->  | AK51: =IFERROR(VLOOKUP(AJ51,ráták!$A$10:$AX$13,MATCH(Q51+T51+W51,ráták!$C$9:$AX$9,1)+2,FALSE),"") -> 
AI52: =IFERROR( IF(VLOOKUP($M52,Partnerek!$A$9:$K$108,11,FALSE)="","",VLOOKUP($M52,Partnerek!$A$9:$K$108,11,FALSE)),"") ->  | AJ52: =IFERROR( IF(RIGHT($A52,2)="BE","HU", IF(VLOOKUP($N52,Partnerek!$A$9:$K$108,11,FALSE)="","",VLOOKUP($N52,Partnerek!$A$9:$K$108,11,FALSE))),"") ->  | AK52: =IFERROR(VLOOKUP(AJ52,ráták!$A$10:$AX$13,MATCH(Q52+T52+W52,ráták!$C$9:$AX$9,1)+2,FALSE),"") -> 
AI53: =IFERROR( IF(VLOOKUP($M53,Partnerek!$A$9:$K$108,11,FALSE)="","",VLOOKUP($M53,Partnerek!$A$9:$K$108,11,FALSE)),"") ->  | AJ53: =IFERROR( IF(RIGHT($A53,2)="BE","HU", IF(VLOOKUP($N53,Partnerek!$A$9:$K$108,11,FALSE)="","",VLOOKUP($N53,Partnerek!$A$9:$K$108,11,FALSE))),"") ->  | AK53: =IFERROR(VLOOKUP(AJ53,ráták!$A$10:$AX$13,MATCH(Q53+T53+W53,ráták!$C$9:$AX$9,1)+2,FALSE),"") -> 
AI54: =IFERROR( IF(VLOOKUP($M54,Partnerek!$A$9:$K$108,11,FALSE)="","",VLOOKUP($M54,Partnerek!$A$9:$K$108,11,FALSE)),"") ->  | AJ54: =IFERROR( IF(RIGHT($A54,2)="BE","HU", IF(VLOOKUP($N54,Partnerek!$A$9:$K$108,11,FALSE)="","",VLOOKUP($N54,Partnerek!$A$9:$K$108,11,FALSE))),"") ->  | AK54: =IFERROR(VLOOKUP(AJ54,ráták!$A$10:$AX$13,MATCH(Q54+T54+W54,ráták!$C$9:$AX$9,1)+2,FALSE),"") -> 
AI55: =IFERROR( IF(VLOOKUP($M55,Partnerek!$A$9:$K$108,11,FALSE)="","",VLOOKUP($M55,Partnerek!$A$9:$K$108,11,FALSE)),"") ->  | AJ55: =IFERROR( IF(RIGHT($A55,2)="BE","HU", IF(VLOOKUP($N55,Partnerek!$A$9:$K$108,11,FALSE)="","",VLOOKUP($N55,Partnerek!$A$9:$K$108,11,FALSE))),"") ->  | AK55: =IFERROR(VLOOKUP(AJ55,ráták!$A$10:$AX$13,MATCH(Q55+T55+W55,ráták!$C$9:$AX$9,1)+2,FALSE),"") -> 
AI56: =IFERROR( IF(VLOOKUP($M56,Partnerek!$A$9:$K$108,11,FALSE)="","",VLOOKUP($M56,Partnerek!$A$9:$K$108,11,FALSE)),"") ->  | AJ56: =IFERROR( IF(RIGHT($A56,2)="BE","HU", IF(VLOOKUP($N56,Partnerek!$A$9:$K$108,11,FALSE)="","",VLOOKUP($N56,Partnerek!$A$9:$K$108,11,FALSE))),"") ->  | AK56: =IFERROR(VLOOKUP(AJ56,ráták!$A$10:$AX$13,MATCH(Q56+T56+W56,ráták!$C$9:$AX$9,1)+2,FALSE),"") -> 
AI57: =IFERROR( IF(VLOOKUP($M57,Partnerek!$A$9:$K$108,11,FALSE)="","",VLOOKUP($M57,Partnerek!$A$9:$K$108,11,FALSE)),"") ->  | AJ57: =IFERROR( IF(RIGHT($A57,2)="BE","HU", IF(VLOOKUP($N57,Partnerek!$A$9:$K$108,11,FALSE)="","",VLOOKUP($N57,Partnerek!$A$9:$K$108,11,FALSE))),"") ->  | AK57: =IFERROR(VLOOKUP(AJ57,ráták!$A$10:$AX$13,MATCH(Q57+T57+W57,ráták!$C$9:$AX$9,1)+2,FALSE),"") -> 
AI58: =IFERROR( IF(VLOOKUP($M58,Partnerek!$A$9:$K$108,11,FALSE)="","",VLOOKUP($M58,Partnerek!$A$9:$K$108,11,FALSE)),"") ->  | AJ58: =IFERROR( IF(RIGHT($A58,2)="BE","HU", IF(VLOOKUP($N58,Partnerek!$A$9:$K$108,11,FALSE)="","",VLOOKUP($N58,Partnerek!$A$9:$K$108,11,FALSE))),"") ->  | AK58: =IFERROR(VLOOKUP(AJ58,ráták!$A$10:$AX$13,MATCH(Q58+T58+W58,ráták!$C$9:$AX$9,1)+2,FALSE),"") -> 
AI59: =IFERROR( IF(VLOOKUP($M59,Partnerek!$A$9:$K$108,11,FALSE)="","",VLOOKUP($M59,Partnerek!$A$9:$K$108,11,FALSE)),"") ->  | AJ59: =IFERROR( IF(RIGHT($A59,2)="BE","HU", IF(VLOOKUP($N59,Partnerek!$A$9:$K$108,11,FALSE)="","",VLOOKUP($N59,Partnerek!$A$9:$K$108,11,FALSE))),"") ->  | AK59: =IFERROR(VLOOKUP(AJ59,ráták!$A$10:$AX$13,MATCH(Q59+T59+W59,ráták!$C$9:$AX$9,1)+2,FALSE),"") -> 
AI60: =IFERROR( IF(VLOOKUP($M60,Partnerek!$A$9:$K$108,11,FALSE)="","",VLOOKUP($M60,Partnerek!$A$9:$K$108,11,FALSE)),"") ->  | AJ60: =IFERROR( IF(RIGHT($A60,2)="BE","HU", IF(VLOOKUP($N60,Partnerek!$A$9:$K$108,11,FALSE)="","",VLOOKUP($N60,Partnerek!$A$9:$K$108,11,FALSE))),"") ->  | AK60: =IFERROR(VLOOKUP(AJ60,ráták!$A$10:$AX$13,MATCH(Q60+T60+W60,ráták!$C$9:$AX$9,1)+2,FALSE),"") -> 
AI61: =IFERROR( IF(VLOOKUP($M61,Partnerek!$A$9:$K$108,11,FALSE)="","",VLOOKUP($M61,Partnerek!$A$9:$K$108,11,FALSE)),"") ->  | AJ61: =IFERROR( IF(RIGHT($A61,2)="BE","HU", IF(VLOOKUP($N61,Partnerek!$A$9:$K$108,11,FALSE)="","",VLOOKUP($N61,Partnerek!$A$9:$K$108,11,FALSE))),"") ->  | AK61: =IFERROR(VLOOKUP(AJ61,ráták!$A$10:$AX$13,MATCH(Q61+T61+W61,ráták!$C$9:$AX$9,1)+2,FALSE),"") -> 
AI62: =IFERROR( IF(VLOOKUP($M62,Partnerek!$A$9:$K$108,11,FALSE)="","",VLOOKUP($M62,Partnerek!$A$9:$K$108,11,FALSE)),"") ->  | AJ62: =IFERROR( IF(RIGHT($A62,2)="BE","HU", IF(VLOOKUP($N62,Partnerek!$A$9:$K$108,11,FALSE)="","",VLOOKUP($N62,Partnerek!$A$9:$K$108,11,FALSE))),"") ->  | AK62: =IFERROR(VLOOKUP(AJ62,ráták!$A$10:$AX$13,MATCH(Q62+T62+W62,ráták!$C$9:$AX$9,1)+2,FALSE),"") -> 
AI63: =IFERROR( IF(VLOOKUP($M63,Partnerek!$A$9:$K$108,11,FALSE)="","",VLOOKUP($M63,Partnerek!$A$9:$K$108,11,FALSE)),"") ->  | AJ63: =IFERROR( IF(RIGHT($A63,2)="BE","HU", IF(VLOOKUP($N63,Partnerek!$A$9:$K$108,11,FALSE)="","",VLOOKUP($N63,Partnerek!$A$9:$K$108,11,FALSE))),"") ->  | AK63: =IFERROR(VLOOKUP(AJ63,ráták!$A$10:$AX$13,MATCH(Q63+T63+W63,ráták!$C$9:$AX$9,1)+2,FALSE),"") -> 
AI64: =IFERROR( IF(VLOOKUP($M64,Partnerek!$A$9:$K$108,11,FALSE)="","",VLOOKUP($M64,Partnerek!$A$9:$K$108,11,FALSE)),"") ->  | AJ64: =IFERROR( IF(RIGHT($A64,2)="BE","HU", IF(VLOOKUP($N64,Partnerek!$A$9:$K$108,11,FALSE)="","",VLOOKUP($N64,Partnerek!$A$9:$K$108,11,FALSE))),"") ->  | AK64: =IFERROR(VLOOKUP(AJ64,ráták!$A$10:$AX$13,MATCH(Q64+T64+W64,ráták!$C$9:$AX$9,1)+2,FALSE),"") -> 
AI65: =IFERROR( IF(VLOOKUP($M65,Partnerek!$A$9:$K$108,11,FALSE)="","",VLOOKUP($M65,Partnerek!$A$9:$K$108,11,FALSE)),"") ->  | AJ65: =IFERROR( IF(RIGHT($A65,2)="BE","HU", IF(VLOOKUP($N65,Partnerek!$A$9:$K$108,11,FALSE)="","",VLOOKUP($N65,Partnerek!$A$9:$K$108,11,FALSE))),"") ->  | AK65: =IFERROR(VLOOKUP(AJ65,ráták!$A$10:$AX$13,MATCH(Q65+T65+W65,ráták!$C$9:$AX$9,1)+2,FALSE),"") -> 
AI66: =IFERROR( IF(VLOOKUP($M66,Partnerek!$A$9:$K$108,11,FALSE)="","",VLOOKUP($M66,Partnerek!$A$9:$K$108,11,FALSE)),"") ->  | AJ66: =IFERROR( IF(RIGHT($A66,2)="BE","HU", IF(VLOOKUP($N66,Partnerek!$A$9:$K$108,11,FALSE)="","",VLOOKUP($N66,Partnerek!$A$9:$K$108,11,FALSE))),"") ->  | AK66: =IFERROR(VLOOKUP(AJ66,ráták!$A$10:$AX$13,MATCH(Q66+T66+W66,ráták!$C$9:$AX$9,1)+2,FALSE),"") -> 
AI67: =IFERROR( IF(VLOOKUP($M67,Partnerek!$A$9:$K$108,11,FALSE)="","",VLOOKUP($M67,Partnerek!$A$9:$K$108,11,FALSE)),"") ->  | AJ67: =IFERROR( IF(RIGHT($A67,2)="BE","HU", IF(VLOOKUP($N67,Partnerek!$A$9:$K$108,11,FALSE)="","",VLOOKUP($N67,Partnerek!$A$9:$K$108,11,FALSE))),"") ->  | AK67: =IFERROR(VLOOKUP(AJ67,ráták!$A$10:$AX$13,MATCH(Q67+T67+W67,ráták!$C$9:$AX$9,1)+2,FALSE),"") -> 
AI68: =IFERROR( IF(VLOOKUP($M68,Partnerek!$A$9:$K$108,11,FALSE)="","",VLOOKUP($M68,Partnerek!$A$9:$K$108,11,FALSE)),"") ->  | AJ68: =IFERROR( IF(RIGHT($A68,2)="BE","HU", IF(VLOOKUP($N68,Partnerek!$A$9:$K$108,11,FALSE)="","",VLOOKUP($N68,Partnerek!$A$9:$K$108,11,FALSE))),"") ->  | AK68: =IFERROR(VLOOKUP(AJ68,ráták!$A$10:$AX$13,MATCH(Q68+T68+W68,ráták!$C$9:$AX$9,1)+2,FALSE),"") -> 
AI69: =IFERROR( IF(VLOOKUP($M69,Partnerek!$A$9:$K$108,11,FALSE)="","",VLOOKUP($M69,Partnerek!$A$9:$K$108,11,FALSE)),"") ->  | AJ69: =IFERROR( IF(RIGHT($A69,2)="BE","HU", IF(VLOOKUP($N69,Partnerek!$A$9:$K$108,11,FALSE)="","",VLOOKUP($N69,Partnerek!$A$9:$K$108,11,FALSE))),"") ->  | AK69: =IFERROR(VLOOKUP(AJ69,ráták!$A$10:$AX$13,MATCH(Q69+T69+W69,ráták!$C$9:$AX$9,1)+2,FALSE),"") -> 
AI70: =IFERROR( IF(VLOOKUP($M70,Partnerek!$A$9:$K$108,11,FALSE)="","",VLOOKUP($M70,Partnerek!$A$9:$K$108,11,FALSE)),"") ->  | AJ70: =IFERROR( IF(RIGHT($A70,2)="BE","HU", IF(VLOOKUP($N70,Partnerek!$A$9:$K$108,11,FALSE)="","",VLOOKUP($N70,Partnerek!$A$9:$K$108,11,FALSE))),"") ->  | AK70: =IFERROR(VLOOKUP(AJ70,ráták!$A$10:$AX$13,MATCH(Q70+T70+W70,ráták!$C$9:$AX$9,1)+2,FALSE),"") -> 
AI71: =IFERROR( IF(VLOOKUP($M71,Partnerek!$A$9:$K$108,11,FALSE)="","",VLOOKUP($M71,Partnerek!$A$9:$K$108,11,FALSE)),"") ->  | AJ71: =IFERROR( IF(RIGHT($A71,2)="BE","HU", IF(VLOOKUP($N71,Partnerek!$A$9:$K$108,11,FALSE)="","",VLOOKUP($N71,Partnerek!$A$9:$K$108,11,FALSE))),"") ->  | AK71: =IFERROR(VLOOKUP(AJ71,ráták!$A$10:$AX$13,MATCH(Q71+T71+W71,ráták!$C$9:$AX$9,1)+2,FALSE),"") -> 
AI72: =IFERROR( IF(VLOOKUP($M72,Partnerek!$A$9:$K$108,11,FALSE)="","",VLOOKUP($M72,Partnerek!$A$9:$K$108,11,FALSE)),"") ->  | AJ72: =IFERROR( IF(RIGHT($A72,2)="BE","HU", IF(VLOOKUP($N72,Partnerek!$A$9:$K$108,11,FALSE)="","",VLOOKUP($N72,Partnerek!$A$9:$K$108,11,FALSE))),"") ->  | AK72: =IFERROR(VLOOKUP(AJ72,ráták!$A$10:$AX$13,MATCH(Q72+T72+W72,ráták!$C$9:$AX$9,1)+2,FALSE),"") -> 
M73: =IF((IFERROR(RIGHT($A73,2),"")="KI"),Erasmus_kod,"") ->  | AI73: =IFERROR( IF(VLOOKUP($M73,Partnerek!$A$9:$K$108,11,FALSE)="","",VLOOKUP($M73,Partnerek!$A$9:$K$108,11,FALSE)),"") ->  | AJ73: =IFERROR( IF(RIGHT($A73,2)="BE","HU", IF(VLOOKUP($N73,Partnerek!$A$9:$K$108,11,FALSE)="","",VLOOKUP($N73,Partnerek!$A$9:$K$108,11,FALSE))),"") ->  | AK73: =IFERROR(VLOOKUP(AJ73,ráták!$A$10:$AX$13,MATCH(Q73+T73+W73,ráták!$C$9:$AX$9,1)+2,FALSE),"") -> 
AB74: =IFERROR( IF( ((RIGHT(A74,2)="KI")*(AI74="HU")*(AJ74<>"HU"))+((RIGHT(A74,2)="BE")*(AJ74="HU")*(AJ74="HU")), IF(A74<>"",AK74,""),""),"") ->  | AI74: =IFERROR( IF(VLOOKUP($M74,Partnerek!$A$9:$K$108,11,FALSE)="","",VLOOKUP($M74,Partnerek!$A$9:$K$108,11,FALSE)),"") ->  | AJ74: =IFERROR( IF(RIGHT($A74,2)="BE","HU", IF(VLOOKUP($N74,Partnerek!$A$9:$K$108,11,FALSE)="","",VLOOKUP($N74,Partnerek!$A$9:$K$108,11,FALSE))),"") ->  | AK74: =IFERROR(VLOOKUP(AJ74,ráták!$A$10:$AX$13,MATCH(Q74+T74+W74,ráták!$C$9:$AX$9,1)+2,FALSE),"") -> 
AI75: =IFERROR( IF(VLOOKUP($M75,Partnerek!$A$9:$K$108,11,FALSE)="","",VLOOKUP($M75,Partnerek!$A$9:$K$108,11,FALSE)),"") ->  | AJ75: =IFERROR( IF(RIGHT($A75,2)="BE","HU", IF(VLOOKUP($N75,Partnerek!$A$9:$K$108,11,FALSE)="","",VLOOKUP($N75,Partnerek!$A$9:$K$108,11,FALSE))),"") ->  | AK75: =IFERROR(VLOOKUP(AJ75,ráták!$A$10:$AX$13,MATCH(Q75+T75+W75,ráták!$C$9:$AX$9,1)+2,FALSE),"") -> 
AI76: =IFERROR( IF(VLOOKUP($M76,Partnerek!$A$9:$K$108,11,FALSE)="","",VLOOKUP($M76,Partnerek!$A$9:$K$108,11,FALSE)),"") ->  | AJ76: =IFERROR( IF(RIGHT($A76,2)="BE","HU", IF(VLOOKUP($N76,Partnerek!$A$9:$K$108,11,FALSE)="","",VLOOKUP($N76,Partnerek!$A$9:$K$108,11,FALSE))),"") ->  | AK76: =IFERROR(VLOOKUP(AJ76,ráták!$A$10:$AX$13,MATCH(Q76+T76+W76,ráták!$C$9:$AX$9,1)+2,FALSE),"") -> 
AI77: =IFERROR( IF(VLOOKUP($M77,Partnerek!$A$9:$K$108,11,FALSE)="","",VLOOKUP($M77,Partnerek!$A$9:$K$108,11,FALSE)),"") ->  | AJ77: =IFERROR( IF(RIGHT($A77,2)="BE","HU", IF(VLOOKUP($N77,Partnerek!$A$9:$K$108,11,FALSE)="","",VLOOKUP($N77,Partnerek!$A$9:$K$108,11,FALSE))),"") ->  | AK77: =IFERROR(VLOOKUP(AJ77,ráták!$A$10:$AX$13,MATCH(Q77+T77+W77,ráták!$C$9:$AX$9,1)+2,FALSE),"") -> 
AI78: =IFERROR( IF(VLOOKUP($M78,Partnerek!$A$9:$K$108,11,FALSE)="","",VLOOKUP($M78,Partnerek!$A$9:$K$108,11,FALSE)),"") ->  | AJ78: =IFERROR( IF(RIGHT($A78,2)="BE","HU", IF(VLOOKUP($N78,Partnerek!$A$9:$K$108,11,FALSE)="","",VLOOKUP($N78,Partnerek!$A$9:$K$108,11,FALSE))),"") ->  | AK78: =IFERROR(VLOOKUP(AJ78,ráták!$A$10:$AX$13,MATCH(Q78+T78+W78,ráták!$C$9:$AX$9,1)+2,FALSE),"") -> 
AI79: =IFERROR( IF(VLOOKUP($M79,Partnerek!$A$9:$K$108,11,FALSE)="","",VLOOKUP($M79,Partnerek!$A$9:$K$108,11,FALSE)),"") ->  | AJ79: =IFERROR( IF(RIGHT($A79,2)="BE","HU", IF(VLOOKUP($N79,Partnerek!$A$9:$K$108,11,FALSE)="","",VLOOKUP($N79,Partnerek!$A$9:$K$108,11,FALSE))),"") ->  | AK79: =IFERROR(VLOOKUP(AJ79,ráták!$A$10:$AX$13,MATCH(Q79+T79+W79,ráták!$C$9:$AX$9,1)+2,FALSE),"") -> 
AI80: =IFERROR( IF(VLOOKUP($M80,Partnerek!$A$9:$K$108,11,FALSE)="","",VLOOKUP($M80,Partnerek!$A$9:$K$108,11,FALSE)),"") ->  | AJ80: =IFERROR( IF(RIGHT($A80,2)="BE","HU", IF(VLOOKUP($N80,Partnerek!$A$9:$K$108,11,FALSE)="","",VLOOKUP($N80,Partnerek!$A$9:$K$108,11,FALSE))),"") ->  | AK80: =IFERROR(VLOOKUP(AJ80,ráták!$A$10:$AX$13,MATCH(Q80+T80+W80,ráták!$C$9:$AX$9,1)+2,FALSE),"") -> 
AI81: =IFERROR( IF(VLOOKUP($M81,Partnerek!$A$9:$K$108,11,FALSE)="","",VLOOKUP($M81,Partnerek!$A$9:$K$108,11,FALSE)),"") ->  | AJ81: =IFERROR( IF(RIGHT($A81,2)="BE","HU", IF(VLOOKUP($N81,Partnerek!$A$9:$K$108,11,FALSE)="","",VLOOKUP($N81,Partnerek!$A$9:$K$108,11,FALSE))),"") ->  | AK81: =IFERROR(VLOOKUP(AJ81,ráták!$A$10:$AX$13,MATCH(Q81+T81+W81,ráták!$C$9:$AX$9,1)+2,FALSE),"") -> 
AI82: =IFERROR( IF(VLOOKUP($M82,Partnerek!$A$9:$K$108,11,FALSE)="","",VLOOKUP($M82,Partnerek!$A$9:$K$108,11,FALSE)),"") ->  | AJ82: =IFERROR( IF(RIGHT($A82,2)="BE","HU", IF(VLOOKUP($N82,Partnerek!$A$9:$K$108,11,FALSE)="","",VLOOKUP($N82,Partnerek!$A$9:$K$108,11,FALSE))),"") ->  | AK82: =IFERROR(VLOOKUP(AJ82,ráták!$A$10:$AX$13,MATCH(Q82+T82+W82,ráták!$C$9:$AX$9,1)+2,FALSE),"") -> 
AI83: =IFERROR( IF(VLOOKUP($M83,Partnerek!$A$9:$K$108,11,FALSE)="","",VLOOKUP($M83,Partnerek!$A$9:$K$108,11,FALSE)),"") ->  | AJ83: =IFERROR( IF(RIGHT($A83,2)="BE","HU", IF(VLOOKUP($N83,Partnerek!$A$9:$K$108,11,FALSE)="","",VLOOKUP($N83,Partnerek!$A$9:$K$108,11,FALSE))),"") ->  | AK83: =IFERROR(VLOOKUP(AJ83,ráták!$A$10:$AX$13,MATCH(Q83+T83+W83,ráták!$C$9:$AX$9,1)+2,FALSE),"") -> 
AI84: =IFERROR( IF(VLOOKUP($M84,Partnerek!$A$9:$K$108,11,FALSE)="","",VLOOKUP($M84,Partnerek!$A$9:$K$108,11,FALSE)),"") ->  | AJ84: =IFERROR( IF(RIGHT($A84,2)="BE","HU", IF(VLOOKUP($N84,Partnerek!$A$9:$K$108,11,FALSE)="","",VLOOKUP($N84,Partnerek!$A$9:$K$108,11,FALSE))),"") ->  | AK84: =IFERROR(VLOOKUP(AJ84,ráták!$A$10:$AX$13,MATCH(Q84+T84+W84,ráták!$C$9:$AX$9,1)+2,FALSE),"") -> 
AI85: =IFERROR( IF(VLOOKUP($M85,Partnerek!$A$9:$K$108,11,FALSE)="","",VLOOKUP($M85,Partnerek!$A$9:$K$108,11,FALSE)),"") ->  | AJ85: =IFERROR( IF(RIGHT($A85,2)="BE","HU", IF(VLOOKUP($N85,Partnerek!$A$9:$K$108,11,FALSE)="","",VLOOKUP($N85,Partnerek!$A$9:$K$108,11,FALSE))),"") ->  | AK85: =IFERROR(VLOOKUP(AJ85,ráták!$A$10:$AX$13,MATCH(Q85+T85+W85,ráták!$C$9:$AX$9,1)+2,FALSE),"") -> 
AI86: =IFERROR( IF(VLOOKUP($M86,Partnerek!$A$9:$K$108,11,FALSE)="","",VLOOKUP($M86,Partnerek!$A$9:$K$108,11,FALSE)),"") ->  | AJ86: =IFERROR( IF(RIGHT($A86,2)="BE","HU", IF(VLOOKUP($N86,Partnerek!$A$9:$K$108,11,FALSE)="","",VLOOKUP($N86,Partnerek!$A$9:$K$108,11,FALSE))),"") ->  | AK86: =IFERROR(VLOOKUP(AJ86,ráták!$A$10:$AX$13,MATCH(Q86+T86+W86,ráták!$C$9:$AX$9,1)+2,FALSE),"") -> 
AI87: =IFERROR( IF(VLOOKUP($M87,Partnerek!$A$9:$K$108,11,FALSE)="","",VLOOKUP($M87,Partnerek!$A$9:$K$108,11,FALSE)),"") ->  | AJ87: =IFERROR( IF(RIGHT($A87,2)="BE","HU", IF(VLOOKUP($N87,Partnerek!$A$9:$K$108,11,FALSE)="","",VLOOKUP($N87,Partnerek!$A$9:$K$108,11,FALSE))),"") ->  | AK87: =IFERROR(VLOOKUP(AJ87,ráták!$A$10:$AX$13,MATCH(Q87+T87+W87,ráták!$C$9:$AX$9,1)+2,FALSE),"") -> 
AI88: =IFERROR( IF(VLOOKUP($M88,Partnerek!$A$9:$K$108,11,FALSE)="","",VLOOKUP($M88,Partnerek!$A$9:$K$108,11,FALSE)),"") ->  | AJ88: =IFERROR( IF(RIGHT($A88,2)="BE","HU", IF(VLOOKUP($N88,Partnerek!$A$9:$K$108,11,FALSE)="","",VLOOKUP($N88,Partnerek!$A$9:$K$108,11,FALSE))),"") ->  | AK88: =IFERROR(VLOOKUP(AJ88,ráták!$A$10:$AX$13,MATCH(Q88+T88+W88,ráták!$C$9:$AX$9,1)+2,FALSE),"") -> 
AI89: =IFERROR( IF(VLOOKUP($M89,Partnerek!$A$9:$K$108,11,FALSE)="","",VLOOKUP($M89,Partnerek!$A$9:$K$108,11,FALSE)),"") ->  | AJ89: =IFERROR( IF(RIGHT($A89,2)="BE","HU", IF(VLOOKUP($N89,Partnerek!$A$9:$K$108,11,FALSE)="","",VLOOKUP($N89,Partnerek!$A$9:$K$108,11,FALSE))),"") ->  | AK89: =IFERROR(VLOOKUP(AJ89,ráták!$A$10:$AX$13,MATCH(Q89+T89+W89,ráták!$C$9:$AX$9,1)+2,FALSE),"") -> 
AI90: =IFERROR( IF(VLOOKUP($M90,Partnerek!$A$9:$K$108,11,FALSE)="","",VLOOKUP($M90,Partnerek!$A$9:$K$108,11,FALSE)),"") ->  | AJ90: =IFERROR( IF(RIGHT($A90,2)="BE","HU", IF(VLOOKUP($N90,Partnerek!$A$9:$K$108,11,FALSE)="","",VLOOKUP($N90,Partnerek!$A$9:$K$108,11,FALSE))),"") ->  | AK90: =IFERROR(VLOOKUP(AJ90,ráták!$A$10:$AX$13,MATCH(Q90+T90+W90,ráták!$C$9:$AX$9,1)+2,FALSE),"") -> 
AI91: =IFERROR( IF(VLOOKUP($M91,Partnerek!$A$9:$K$108,11,FALSE)="","",VLOOKUP($M91,Partnerek!$A$9:$K$108,11,FALSE)),"") ->  | AJ91: =IFERROR( IF(RIGHT($A91,2)="BE","HU", IF(VLOOKUP($N91,Partnerek!$A$9:$K$108,11,FALSE)="","",VLOOKUP($N91,Partnerek!$A$9:$K$108,11,FALSE))),"") ->  | AK91: =IFERROR(VLOOKUP(AJ91,ráták!$A$10:$AX$13,MATCH(Q91+T91+W91,ráták!$C$9:$AX$9,1)+2,FALSE),"") -> 
AI92: =IFERROR( IF(VLOOKUP($M92,Partnerek!$A$9:$K$108,11,FALSE)="","",VLOOKUP($M92,Partnerek!$A$9:$K$108,11,FALSE)),"") ->  | AJ92: =IFERROR( IF(RIGHT($A92,2)="BE","HU", IF(VLOOKUP($N92,Partnerek!$A$9:$K$108,11,FALSE)="","",VLOOKUP($N92,Partnerek!$A$9:$K$108,11,FALSE))),"") ->  | AK92: =IFERROR(VLOOKUP(AJ92,ráták!$A$10:$AX$13,MATCH(Q92+T92+W92,ráták!$C$9:$AX$9,1)+2,FALSE),"") -> 
AI93: =IFERROR( IF(VLOOKUP($M93,Partnerek!$A$9:$K$108,11,FALSE)="","",VLOOKUP($M93,Partnerek!$A$9:$K$108,11,FALSE)),"") ->  | AJ93: =IFERROR( IF(RIGHT($A93,2)="BE","HU", IF(VLOOKUP($N93,Partnerek!$A$9:$K$108,11,FALSE)="","",VLOOKUP($N93,Partnerek!$A$9:$K$108,11,FALSE))),"") ->  | AK93: =IFERROR(VLOOKUP(AJ93,ráták!$A$10:$AX$13,MATCH(Q93+T93+W93,ráták!$C$9:$AX$9,1)+2,FALSE),"") -> 
AI94: =IFERROR( IF(VLOOKUP($M94,Partnerek!$A$9:$K$108,11,FALSE)="","",VLOOKUP($M94,Partnerek!$A$9:$K$108,11,FALSE)),"") ->  | AJ94: =IFERROR( IF(RIGHT($A94,2)="BE","HU", IF(VLOOKUP($N94,Partnerek!$A$9:$K$108,11,FALSE)="","",VLOOKUP($N94,Partnerek!$A$9:$K$108,11,FALSE))),"") ->  | AK94: =IFERROR(VLOOKUP(AJ94,ráták!$A$10:$AX$13,MATCH(Q94+T94+W94,ráták!$C$9:$AX$9,1)+2,FALSE),"") -> 
AI95: =IFERROR( IF(VLOOKUP($M95,Partnerek!$A$9:$K$108,11,FALSE)="","",VLOOKUP($M95,Partnerek!$A$9:$K$108,11,FALSE)),"") ->  | AJ95: =IFERROR( IF(RIGHT($A95,2)="BE","HU", IF(VLOOKUP($N95,Partnerek!$A$9:$K$108,11,FALSE)="","",VLOOKUP($N95,Partnerek!$A$9:$K$108,11,FALSE))),"") ->  | AK95: =IFERROR(VLOOKUP(AJ95,ráták!$A$10:$AX$13,MATCH(Q95+T95+W95,ráták!$C$9:$AX$9,1)+2,FALSE),"") -> 
AI96: =IFERROR( IF(VLOOKUP($M96,Partnerek!$A$9:$K$108,11,FALSE)="","",VLOOKUP($M96,Partnerek!$A$9:$K$108,11,FALSE)),"") ->  | AJ96: =IFERROR( IF(RIGHT($A96,2)="BE","HU", IF(VLOOKUP($N96,Partnerek!$A$9:$K$108,11,FALSE)="","",VLOOKUP($N96,Partnerek!$A$9:$K$108,11,FALSE))),"") ->  | AK96: =IFERROR(VLOOKUP(AJ96,ráták!$A$10:$AX$13,MATCH(Q96+T96+W96,ráták!$C$9:$AX$9,1)+2,FALSE),"") -> 
AI97: =IFERROR( IF(VLOOKUP($M97,Partnerek!$A$9:$K$108,11,FALSE)="","",VLOOKUP($M97,Partnerek!$A$9:$K$108,11,FALSE)),"") ->  | AJ97: =IFERROR( IF(RIGHT($A97,2)="BE","HU", IF(VLOOKUP($N97,Partnerek!$A$9:$K$108,11,FALSE)="","",VLOOKUP($N97,Partnerek!$A$9:$K$108,11,FALSE))),"") ->  | AK97: =IFERROR(VLOOKUP(AJ97,ráták!$A$10:$AX$13,MATCH(Q97+T97+W97,ráták!$C$9:$AX$9,1)+2,FALSE),"") -> 
AI98: =IFERROR( IF(VLOOKUP($M98,Partnerek!$A$9:$K$108,11,FALSE)="","",VLOOKUP($M98,Partnerek!$A$9:$K$108,11,FALSE)),"") ->  | AJ98: =IFERROR( IF(RIGHT($A98,2)="BE","HU", IF(VLOOKUP($N98,Partnerek!$A$9:$K$108,11,FALSE)="","",VLOOKUP($N98,Partnerek!$A$9:$K$108,11,FALSE))),"") ->  | AK98: =IFERROR(VLOOKUP(AJ98,ráták!$A$10:$AX$13,MATCH(Q98+T98+W98,ráták!$C$9:$AX$9,1)+2,FALSE),"") -> 
AI99: =IFERROR( IF(VLOOKUP($M99,Partnerek!$A$9:$K$108,11,FALSE)="","",VLOOKUP($M99,Partnerek!$A$9:$K$108,11,FALSE)),"") ->  | AJ99: =IFERROR( IF(RIGHT($A99,2)="BE","HU", IF(VLOOKUP($N99,Partnerek!$A$9:$K$108,11,FALSE)="","",VLOOKUP($N99,Partnerek!$A$9:$K$108,11,FALSE))),"") ->  | AK99: =IFERROR(VLOOKUP(AJ99,ráták!$A$10:$AX$13,MATCH(Q99+T99+W99,ráták!$C$9:$AX$9,1)+2,FALSE),"") -> 
AI100: =IFERROR( IF(VLOOKUP($M100,Partnerek!$A$9:$K$108,11,FALSE)="","",VLOOKUP($M100,Partnerek!$A$9:$K$108,11,FALSE)),"") ->  | AJ100: =IFERROR( IF(RIGHT($A100,2)="BE","HU", IF(VLOOKUP($N100,Partnerek!$A$9:$K$108,11,FALSE)="","",VLOOKUP($N100,Partnerek!$A$9:$K$108,11,FALSE))),"") ->  | AK100: =IFERROR(VLOOKUP(AJ100,ráták!$A$10:$AX$13,MATCH(Q100+T100+W100,ráták!$C$9:$AX$9,1)+2,FALSE),"") -> 
AI101: =IFERROR( IF(VLOOKUP($M101,Partnerek!$A$9:$K$108,11,FALSE)="","",VLOOKUP($M101,Partnerek!$A$9:$K$108,11,FALSE)),"") ->  | AJ101: =IFERROR( IF(RIGHT($A101,2)="BE","HU", IF(VLOOKUP($N101,Partnerek!$A$9:$K$108,11,FALSE)="","",VLOOKUP($N101,Partnerek!$A$9:$K$108,11,FALSE))),"") ->  | AK101: =IFERROR(VLOOKUP(AJ101,ráták!$A$10:$AX$13,MATCH(Q101+T101+W101,ráták!$C$9:$AX$9,1)+2,FALSE),"") -> 
AI102: =IFERROR( IF(VLOOKUP($M102,Partnerek!$A$9:$K$108,11,FALSE)="","",VLOOKUP($M102,Partnerek!$A$9:$K$108,11,FALSE)),"") ->  | AJ102: =IFERROR( IF(RIGHT($A102,2)="BE","HU", IF(VLOOKUP($N102,Partnerek!$A$9:$K$108,11,FALSE)="","",VLOOKUP($N102,Partnerek!$A$9:$K$108,11,FALSE))),"") ->  | AK102: =IFERROR(VLOOKUP(AJ102,ráták!$A$10:$AX$13,MATCH(Q102+T102+W102,ráták!$C$9:$AX$9,1)+2,FALSE),"") -> 
AI103: =IFERROR( IF(VLOOKUP($M103,Partnerek!$A$9:$K$108,11,FALSE)="","",VLOOKUP($M103,Partnerek!$A$9:$K$108,11,FALSE)),"") ->  | AJ103: =IFERROR( IF(RIGHT($A103,2)="BE","HU", IF(VLOOKUP($N103,Partnerek!$A$9:$K$108,11,FALSE)="","",VLOOKUP($N103,Partnerek!$A$9:$K$108,11,FALSE))),"") ->  | AK103: =IFERROR(VLOOKUP(AJ103,ráták!$A$10:$AX$13,MATCH(Q103+T103+W103,ráták!$C$9:$AX$9,1)+2,FALSE),"") -> 
AI104: =IFERROR( IF(VLOOKUP($M104,Partnerek!$A$9:$K$108,11,FALSE)="","",VLOOKUP($M104,Partnerek!$A$9:$K$108,11,FALSE)),"") ->  | AJ104: =IFERROR( IF(RIGHT($A104,2)="BE","HU", IF(VLOOKUP($N104,Partnerek!$A$9:$K$108,11,FALSE)="","",VLOOKUP($N104,Partnerek!$A$9:$K$108,11,FALSE))),"") ->  | AK104: =IFERROR(VLOOKUP(AJ104,ráták!$A$10:$AX$13,MATCH(Q104+T104+W104,ráták!$C$9:$AX$9,1)+2,FALSE),"") -> 
AI105: =IFERROR( IF(VLOOKUP($M105,Partnerek!$A$9:$K$108,11,FALSE)="","",VLOOKUP($M105,Partnerek!$A$9:$K$108,11,FALSE)),"") ->  | AJ105: =IFERROR( IF(RIGHT($A105,2)="BE","HU", IF(VLOOKUP($N105,Partnerek!$A$9:$K$108,11,FALSE)="","",VLOOKUP($N105,Partnerek!$A$9:$K$108,11,FALSE))),"") ->  | AK105: =IFERROR(VLOOKUP(AJ105,ráták!$A$10:$AX$13,MATCH(Q105+T105+W105,ráták!$C$9:$AX$9,1)+2,FALSE),"") -> 
AI106: =IFERROR( IF(VLOOKUP($M106,Partnerek!$A$9:$K$108,11,FALSE)="","",VLOOKUP($M106,Partnerek!$A$9:$K$108,11,FALSE)),"") ->  | AJ106: =IFERROR( IF(RIGHT($A106,2)="BE","HU", IF(VLOOKUP($N106,Partnerek!$A$9:$K$108,11,FALSE)="","",VLOOKUP($N106,Partnerek!$A$9:$K$108,11,FALSE))),"") ->  | AK106: =IFERROR(VLOOKUP(AJ106,ráták!$A$10:$AX$13,MATCH(Q106+T106+W106,ráták!$C$9:$AX$9,1)+2,FALSE),"") -> 
AI107: =IFERROR( IF(VLOOKUP($M107,Partnerek!$A$9:$K$108,11,FALSE)="","",VLOOKUP($M107,Partnerek!$A$9:$K$108,11,FALSE)),"") ->  | AJ107: =IFERROR( IF(RIGHT($A107,2)="BE","HU", IF(VLOOKUP($N107,Partnerek!$A$9:$K$108,11,FALSE)="","",VLOOKUP($N107,Partnerek!$A$9:$K$108,11,FALSE))),"") ->  | AK107: =IFERROR(VLOOKUP(AJ107,ráták!$A$10:$AX$13,MATCH(Q107+T107+W107,ráták!$C$9:$AX$9,1)+2,FALSE),"") -> 
AI108: =IFERROR( IF(VLOOKUP($M108,Partnerek!$A$9:$K$108,11,FALSE)="","",VLOOKUP($M108,Partnerek!$A$9:$K$108,11,FALSE)),"") ->  | AJ108: =IFERROR( IF(RIGHT($A108,2)="BE","HU", IF(VLOOKUP($N108,Partnerek!$A$9:$K$108,11,FALSE)="","",VLOOKUP($N108,Partnerek!$A$9:$K$108,11,FALSE))),"") ->  | AK108: =IFERROR(VLOOKUP(AJ108,ráták!$A$10:$AX$13,MATCH(Q108+T108+W108,ráták!$C$9:$AX$9,1)+2,FALSE),"") -> 

Sheet Ki- és beutazó okt, személyzet
A1: =IF(Azonosítás!A3="","",Azonosítás!A3) -> 
A2: Oktatói mobilitás - ki- és beutazó oktatók, személyzet
A4: Intézmény neve: | C4: =IF(Azonosítás!A9="","",Azonosítás!A9) ->  | F4: EGT koordinátor aláírása
A5: Szerződésszám: | C5: =Azonosítás!A6 -> 0 | I5: =TODAY() -> 2017-01-06
A8: Mobilitás jellege | B8: Tevékenység jellege | C8: Egyéni támogatási szerződésszám | D8: Családnév | E8: Keresztnév | F8: Születés időpontja (ÉÉÉÉ/HH/NN) | G8: Neme | H8: Állampolgárság | I8: Szakterület kódja | J8: Tapasztaltság (csak oktatás!) | K8: Feladatkör | L8: Oktatás szintje a küldő intézményben | M8: Küldő partner azonosítója | N8: Fogadó partner azonosítója | O8: Mobilitás kezdete (ÉÉÉÉ/HH/NN) | P8: Mobilitás vége (ÉÉÉÉ/HH/NN) | Q8: Mobilitás időtartama napokban (utazással együtt) | R8: Oktatott órák száma összesen | S8: A külföldi oktatás szintje | T8: Oktatás vagy munka nyelve | U8: EGT támogatás összesen (euró) | V8: Intézményi forrás (HUF), ha volt | W8: Résztvevő e-mail címe | X8: Megjegyzés | Y8: Küldő ország | Z8: Fogadó ország | AA8: TÁMOGATÁS
Q9: =IFERROR(IF(P9<=O9,"",IF( (P9-O9+1)>42,"",P9-O9+1)),"") ->  | U9: =IFERROR( IF( ((RIGHT(A9,2)="KI")*(Y9="HU")*(Z9<>"HU"))+((RIGHT(A9,2)="BE")*(Y9<>"HU")*(Z9="HU")), IF(A9<>"",AA9,""),""),"") ->  | Y9: =IFERROR( IF(VLOOKUP($M9,Partnerek!$A$9:$K$108,11,FALSE)="","",VLOOKUP($M9,Partnerek!$A$9:$K$108,11,FALSE)),"") ->  | Z9: =IFERROR( IF(VLOOKUP($N9,Partnerek!$A$9:$K$108,11,FALSE)="","",VLOOKUP($N9,Partnerek!$A$9:$K$108,11,FALSE)),"") ->  | AA9: =IFERROR(VLOOKUP(Z9,ráták!$A$3:$AR$6,MATCH($Q9,ráták!$C$2:$AR$2,1)+2,FALSE),"") -> 
M10: =IF((IFERROR(RIGHT($A10,2),"")="KI"),Azonosítás!$A$9,"") ->  | Q10: =IFERROR(IF(P10<=O10,"",IF( (P10-O10+1)>42,"",P10-O10+1)),"") ->  | U10: =IFERROR( IF( ((RIGHT(A10,2)="KI")*(Y10="HU")*(Z10<>"HU"))+((RIGHT(A10,2)="BE")*(Y10<>"HU")*(Z10="HU")), IF(A10<>"",AA10,""),""),"") ->  | Y10: =IFERROR( IF(VLOOKUP($M10,Partnerek!$A$9:$K$108,11,FALSE)="","",VLOOKUP($M10,Partnerek!$A$9:$K$108,11,FALSE)),"") ->  | Z10: =IFERROR( IF(VLOOKUP($N10,Partnerek!$A$9:$K$108,11,FALSE)="","",VLOOKUP($N10,Partnerek!$A$9:$K$108,11,FALSE)),"") ->  | AA10: =IFERROR(VLOOKUP(Z10,ráták!$A$3:$AR$6,MATCH($Q10,ráták!$C$2:$AR$2,1)+2,FALSE),"") -> 
M11: =IF((IFERROR(RIGHT($A11,2),"")="KI"),Azonosítás!$A$9,"") ->  | Y11: =IFERROR( IF(VLOOKUP($M11,Partnerek!$A$9:$K$108,11,FALSE)="","",VLOOKUP($M11,Partnerek!$A$9:$K$108,11,FALSE)),"") ->  | Z11: =IFERROR( IF(VLOOKUP($N11,Partnerek!$A$9:$K$108,11,FALSE)="","",VLOOKUP($N11,Partnerek!$A$9:$K$108,11,FALSE)),"") ->  | AA11: =IFERROR(VLOOKUP(Z11,ráták!$A$3:$AR$6,MATCH($Q11,ráták!$C$2:$AR$2,1)+2,FALSE),"") -> 
M12: =IF((IFERROR(RIGHT($A12,2),"")="KI"),Azonosítás!$A$9,"") ->  | Y12: =IFERROR( IF(VLOOKUP($M12,Partnerek!$A$9:$K$108,11,FALSE)="","",VLOOKUP($M12,Partnerek!$A$9:$K$108,11,FALSE)),"") ->  | Z12: =IFERROR( IF(VLOOKUP($N12,Partnerek!$A$9:$K$108,11,FALSE)="","",VLOOKUP($N12,Partnerek!$A$9:$K$108,11,FALSE)),"") ->  | AA12: =IFERROR(VLOOKUP(Z12,ráták!$A$3:$AR$6,MATCH($Q12,ráták!$C$2:$AR$2,1)+2,FALSE),"") -> 
M13: =IF((IFERROR(RIGHT($A13,2),"")="KI"),Azonosítás!$A$9,"") ->  | Y13: =IFERROR( IF(VLOOKUP($M13,Partnerek!$A$9:$K$108,11,FALSE)="","",VLOOKUP($M13,Partnerek!$A$9:$K$108,11,FALSE)),"") ->  | Z13: =IFERROR( IF(VLOOKUP($N13,Partnerek!$A$9:$K$108,11,FALSE)="","",VLOOKUP($N13,Partnerek!$A$9:$K$108,11,FALSE)),"") ->  | AA13: =IFERROR(VLOOKUP(Z13,ráták!$A$3:$AR$6,MATCH($Q13,ráták!$C$2:$AR$2,1)+2,FALSE),"") -> 
M14: =IF((IFERROR(RIGHT($A14,2),"")="KI"),Azonosítás!$A$9,"") ->  | Y14: =IFERROR( IF(VLOOKUP($M14,Partnerek!$A$9:$K$108,11,FALSE)="","",VLOOKUP($M14,Partnerek!$A$9:$K$108,11,FALSE)),"") ->  | Z14: =IFERROR( IF(VLOOKUP($N14,Partnerek!$A$9:$K$108,11,FALSE)="","",VLOOKUP($N14,Partnerek!$A$9:$K$108,11,FALSE)),"") ->  | AA14: =IFERROR(VLOOKUP(Z14,ráták!$A$3:$AR$6,MATCH($Q14,ráták!$C$2:$AR$2,1)+2,FALSE),"") -> 
M15: =IF((IFERROR(RIGHT($A15,2),"")="KI"),Azonosítás!$A$9,"") ->  | Y15: =IFERROR( IF(VLOOKUP($M15,Partnerek!$A$9:$K$108,11,FALSE)="","",VLOOKUP($M15,Partnerek!$A$9:$K$108,11,FALSE)),"") ->  | Z15: =IFERROR( IF(VLOOKUP($N15,Partnerek!$A$9:$K$108,11,FALSE)="","",VLOOKUP($N15,Partnerek!$A$9:$K$108,11,FALSE)),"") ->  | AA15: =IFERROR(VLOOKUP(Z15,ráták!$A$3:$AR$6,MATCH($Q15,ráták!$C$2:$AR$2,1)+2,FALSE),"") -> 
M16: =IF((IFERROR(RIGHT($A16,2),"")="KI"),Azonosítás!$A$9,"") ->  | Y16: =IFERROR( IF(VLOOKUP($M16,Partnerek!$A$9:$K$108,11,FALSE)="","",VLOOKUP($M16,Partnerek!$A$9:$K$108,11,FALSE)),"") ->  | Z16: =IFERROR( IF(VLOOKUP($N16,Partnerek!$A$9:$K$108,11,FALSE)="","",VLOOKUP($N16,Partnerek!$A$9:$K$108,11,FALSE)),"") ->  | AA16: =IFERROR(VLOOKUP(Z16,ráták!$A$3:$AR$6,MATCH($Q16,ráták!$C$2:$AR$2,1)+2,FALSE),"") -> 
M17: =IF((IFERROR(RIGHT($A17,2),"")="KI"),Azonosítás!$A$9,"") ->  | Y17: =IFERROR( IF(VLOOKUP($M17,Partnerek!$A$9:$K$108,11,FALSE)="","",VLOOKUP($M17,Partnerek!$A$9:$K$108,11,FALSE)),"") ->  | Z17: =IFERROR( IF(VLOOKUP($N17,Partnerek!$A$9:$K$108,11,FALSE)="","",VLOOKUP($N17,Partnerek!$A$9:$K$108,11,FALSE)),"") ->  | AA17: =IFERROR(VLOOKUP(Z17,ráták!$A$3:$AR$6,MATCH($Q17,ráták!$C$2:$AR$2,1)+2,FALSE),"") -> 
M18: =IF((IFERROR(RIGHT($A18,2),"")="KI"),Azonosítás!$A$9,"") ->  | Y18: =IFERROR( IF(VLOOKUP($M18,Partnerek!$A$9:$K$108,11,FALSE)="","",VLOOKUP($M18,Partnerek!$A$9:$K$108,11,FALSE)),"") ->  | Z18: =IFERROR( IF(VLOOKUP($N18,Partnerek!$A$9:$K$108,11,FALSE)="","",VLOOKUP($N18,Partnerek!$A$9:$K$108,11,FALSE)),"") ->  | AA18: =IFERROR(VLOOKUP(Z18,ráták!$A$3:$AR$6,MATCH($Q18,ráták!$C$2:$AR$2,1)+2,FALSE),"") -> 
M19: =IF((IFERROR(RIGHT($A19,2),"")="KI"),Azonosítás!$A$9,"") ->  | Y19: =IFERROR( IF(VLOOKUP($M19,Partnerek!$A$9:$K$108,11,FALSE)="","",VLOOKUP($M19,Partnerek!$A$9:$K$108,11,FALSE)),"") ->  | Z19: =IFERROR( IF(VLOOKUP($N19,Partnerek!$A$9:$K$108,11,FALSE)="","",VLOOKUP($N19,Partnerek!$A$9:$K$108,11,FALSE)),"") ->  | AA19: =IFERROR(VLOOKUP(Z19,ráták!$A$3:$AR$6,MATCH($Q19,ráták!$C$2:$AR$2,1)+2,FALSE),"") -> 
M20: =IF((IFERROR(RIGHT($A20,2),"")="KI"),Azonosítás!$A$9,"") ->  | Y20: =IFERROR( IF(VLOOKUP($M20,Partnerek!$A$9:$K$108,11,FALSE)="","",VLOOKUP($M20,Partnerek!$A$9:$K$108,11,FALSE)),"") ->  | Z20: =IFERROR( IF(VLOOKUP($N20,Partnerek!$A$9:$K$108,11,FALSE)="","",VLOOKUP($N20,Partnerek!$A$9:$K$108,11,FALSE)),"") ->  | AA20: =IFERROR(VLOOKUP(Z20,ráták!$A$3:$AR$6,MATCH($Q20,ráták!$C$2:$AR$2,1)+2,FALSE),"") -> 
M21: =IF((IFERROR(RIGHT($A21,2),"")="KI"),Azonosítás!$A$9,"") ->  | Y21: =IFERROR( IF(VLOOKUP($M21,Partnerek!$A$9:$K$108,11,FALSE)="","",VLOOKUP($M21,Partnerek!$A$9:$K$108,11,FALSE)),"") ->  | Z21: =IFERROR( IF(VLOOKUP($N21,Partnerek!$A$9:$K$108,11,FALSE)="","",VLOOKUP($N21,Partnerek!$A$9:$K$108,11,FALSE)),"") ->  | AA21: =IFERROR(VLOOKUP(Z21,ráták!$A$3:$AR$6,MATCH($Q21,ráták!$C$2:$AR$2,1)+2,FALSE),"") -> 
M22: =IF((IFERROR(RIGHT($A22,2),"")="KI"),Azonosítás!$A$9,"") ->  | Y22: =IFERROR( IF(VLOOKUP($M22,Partnerek!$A$9:$K$108,11,FALSE)="","",VLOOKUP($M22,Partnerek!$A$9:$K$108,11,FALSE)),"") ->  | Z22: =IFERROR( IF(VLOOKUP($N22,Partnerek!$A$9:$K$108,11,FALSE)="","",VLOOKUP($N22,Partnerek!$A$9:$K$108,11,FALSE)),"") ->  | AA22: =IFERROR(VLOOKUP(Z22,ráták!$A$3:$AR$6,MATCH($Q22,ráták!$C$2:$AR$2,1)+2,FALSE),"") -> 
M23: =IF((IFERROR(RIGHT($A23,2),"")="KI"),Azonosítás!$A$9,"") ->  | Y23: =IFERROR( IF(VLOOKUP($M23,Partnerek!$A$9:$K$108,11,FALSE)="","",VLOOKUP($M23,Partnerek!$A$9:$K$108,11,FALSE)),"") ->  | Z23: =IFERROR( IF(VLOOKUP($N23,Partnerek!$A$9:$K$108,11,FALSE)="","",VLOOKUP($N23,Partnerek!$A$9:$K$108,11,FALSE)),"") ->  | AA23: =IFERROR(VLOOKUP(Z23,ráták!$A$3:$AR$6,MATCH($Q23,ráták!$C$2:$AR$2,1)+2,FALSE),"") -> 
M24: =IF((IFERROR(RIGHT($A24,2),"")="KI"),Azonosítás!$A$9,"") ->  | Y24: =IFERROR( IF(VLOOKUP($M24,Partnerek!$A$9:$K$108,11,FALSE)="","",VLOOKUP($M24,Partnerek!$A$9:$K$108,11,FALSE)),"") ->  | Z24: =IFERROR( IF(VLOOKUP($N24,Partnerek!$A$9:$K$108,11,FALSE)="","",VLOOKUP($N24,Partnerek!$A$9:$K$108,11,FALSE)),"") ->  | AA24: =IFERROR(VLOOKUP(Z24,ráták!$A$3:$AR$6,MATCH($Q24,ráták!$C$2:$AR$2,1)+2,FALSE),"") -> 
M25: =IF((IFERROR(RIGHT($A25,2),"")="KI"),Azonosítás!$A$9,"") ->  | Y25: =IFERROR( IF(VLOOKUP($M25,Partnerek!$A$9:$K$108,11,FALSE)="","",VLOOKUP($M25,Partnerek!$A$9:$K$108,11,FALSE)),"") ->  | Z25: =IFERROR( IF(VLOOKUP($N25,Partnerek!$A$9:$K$108,11,FALSE)="","",VLOOKUP($N25,Partnerek!$A$9:$K$108,11,FALSE)),"") ->  | AA25: =IFERROR(VLOOKUP(Z25,ráták!$A$3:$AR$6,MATCH($Q25,ráták!$C$2:$AR$2,1)+2,FALSE),"") -> 
M26: =IF((IFERROR(RIGHT($A26,2),"")="KI"),Azonosítás!$A$9,"") ->  | Y26: =IFERROR( IF(VLOOKUP($M26,Partnerek!$A$9:$K$108,11,FALSE)="","",VLOOKUP($M26,Partnerek!$A$9:$K$108,11,FALSE)),"") ->  | Z26: =IFERROR( IF(VLOOKUP($N26,Partnerek!$A$9:$K$108,11,FALSE)="","",VLOOKUP($N26,Partnerek!$A$9:$K$108,11,FALSE)),"") ->  | AA26: =IFERROR(VLOOKUP(Z26,ráták!$A$3:$AR$6,MATCH($Q26,ráták!$C$2:$AR$2,1)+2,FALSE),"") -> 
M27: =IF((IFERROR(RIGHT($A27,2),"")="KI"),Azonosítás!$A$9,"") ->  | Y27: =IFERROR( IF(VLOOKUP($M27,Partnerek!$A$9:$K$108,11,FALSE)="","",VLOOKUP($M27,Partnerek!$A$9:$K$108,11,FALSE)),"") ->  | Z27: =IFERROR( IF(VLOOKUP($N27,Partnerek!$A$9:$K$108,11,FALSE)="","",VLOOKUP($N27,Partnerek!$A$9:$K$108,11,FALSE)),"") ->  | AA27: =IFERROR(VLOOKUP(Z27,ráták!$A$3:$AR$6,MATCH($Q27,ráták!$C$2:$AR$2,1)+2,FALSE),"") -> 
M28: =IF((IFERROR(RIGHT($A28,2),"")="KI"),Azonosítás!$A$9,"") ->  | Y28: =IFERROR( IF(VLOOKUP($M28,Partnerek!$A$9:$K$108,11,FALSE)="","",VLOOKUP($M28,Partnerek!$A$9:$K$108,11,FALSE)),"") ->  | Z28: =IFERROR( IF(VLOOKUP($N28,Partnerek!$A$9:$K$108,11,FALSE)="","",VLOOKUP($N28,Partnerek!$A$9:$K$108,11,FALSE)),"") ->  | AA28: =IFERROR(VLOOKUP(Z28,ráták!$A$3:$AR$6,MATCH($Q28,ráták!$C$2:$AR$2,1)+2,FALSE),"") -> 
M29: =IF((IFERROR(RIGHT($A29,2),"")="KI"),Azonosítás!$A$9,"") ->  | Y29: =IFERROR( IF(VLOOKUP($M29,Partnerek!$A$9:$K$108,11,FALSE)="","",VLOOKUP($M29,Partnerek!$A$9:$K$108,11,FALSE)),"") ->  | Z29: =IFERROR( IF(VLOOKUP($N29,Partnerek!$A$9:$K$108,11,FALSE)="","",VLOOKUP($N29,Partnerek!$A$9:$K$108,11,FALSE)),"") ->  | AA29: =IFERROR(VLOOKUP(Z29,ráták!$A$3:$AR$6,MATCH($Q29,ráták!$C$2:$AR$2,1)+2,FALSE),"") -> 
M30: =IF((IFERROR(RIGHT($A30,2),"")="KI"),Azonosítás!$A$9,"") ->  | Y30: =IFERROR( IF(VLOOKUP($M30,Partnerek!$A$9:$K$108,11,FALSE)="","",VLOOKUP($M30,Partnerek!$A$9:$K$108,11,FALSE)),"") ->  | Z30: =IFERROR( IF(VLOOKUP($N30,Partnerek!$A$9:$K$108,11,FALSE)="","",VLOOKUP($N30,Partnerek!$A$9:$K$108,11,FALSE)),"") ->  | AA30: =IFERROR(VLOOKUP(Z30,ráták!$A$3:$AR$6,MATCH($Q30,ráták!$C$2:$AR$2,1)+2,FALSE),"") -> 
M31: =IF((IFERROR(RIGHT($A31,2),"")="KI"),Azonosítás!$A$9,"") ->  | Y31: =IFERROR( IF(VLOOKUP($M31,Partnerek!$A$9:$K$108,11,FALSE)="","",VLOOKUP($M31,Partnerek!$A$9:$K$108,11,FALSE)),"") ->  | Z31: =IFERROR( IF(VLOOKUP($N31,Partnerek!$A$9:$K$108,11,FALSE)="","",VLOOKUP($N31,Partnerek!$A$9:$K$108,11,FALSE)),"") ->  | AA31: =IFERROR(VLOOKUP(Z31,ráták!$A$3:$AR$6,MATCH($Q31,ráták!$C$2:$AR$2,1)+2,FALSE),"") -> 
M32: =IF((IFERROR(RIGHT($A32,2),"")="KI"),Azonosítás!$A$9,"") ->  | Y32: =IFERROR( IF(VLOOKUP($M32,Partnerek!$A$9:$K$108,11,FALSE)="","",VLOOKUP($M32,Partnerek!$A$9:$K$108,11,FALSE)),"") ->  | Z32: =IFERROR( IF(VLOOKUP($N32,Partnerek!$A$9:$K$108,11,FALSE)="","",VLOOKUP($N32,Partnerek!$A$9:$K$108,11,FALSE)),"") ->  | AA32: =IFERROR(VLOOKUP(Z32,ráták!$A$3:$AR$6,MATCH($Q32,ráták!$C$2:$AR$2,1)+2,FALSE),"") -> 
M33: =IF((IFERROR(RIGHT($A33,2),"")="KI"),Azonosítás!$A$9,"") ->  | Y33: =IFERROR( IF(VLOOKUP($M33,Partnerek!$A$9:$K$108,11,FALSE)="","",VLOOKUP($M33,Partnerek!$A$9:$K$108,11,FALSE)),"") ->  | Z33: =IFERROR( IF(VLOOKUP($N33,Partnerek!$A$9:$K$108,11,FALSE)="","",VLOOKUP($N33,Partnerek!$A$9:$K$108,11,FALSE)),"") ->  | AA33: =IFERROR(VLOOKUP(Z33,ráták!$A$3:$AR$6,MATCH($Q33,ráták!$C$2:$AR$2,1)+2,FALSE),"") -> 
M34: =IF((IFERROR(RIGHT($A34,2),"")="KI"),Azonosítás!$A$9,"") ->  | Y34: =IFERROR( IF(VLOOKUP($M34,Partnerek!$A$9:$K$108,11,FALSE)="","",VLOOKUP($M34,Partnerek!$A$9:$K$108,11,FALSE)),"") ->  | Z34: =IFERROR( IF(VLOOKUP($N34,Partnerek!$A$9:$K$108,11,FALSE)="","",VLOOKUP($N34,Partnerek!$A$9:$K$108,11,FALSE)),"") ->  | AA34: =IFERROR(VLOOKUP(Z34,ráták!$A$3:$AR$6,MATCH($Q34,ráták!$C$2:$AR$2,1)+2,FALSE),"") -> 
M35: =IF((IFERROR(RIGHT($A35,2),"")="KI"),Azonosítás!$A$9,"") ->  | Y35: =IFERROR( IF(VLOOKUP($M35,Partnerek!$A$9:$K$108,11,FALSE)="","",VLOOKUP($M35,Partnerek!$A$9:$K$108,11,FALSE)),"") ->  | Z35: =IFERROR( IF(VLOOKUP($N35,Partnerek!$A$9:$K$108,11,FALSE)="","",VLOOKUP($N35,Partnerek!$A$9:$K$108,11,FALSE)),"") ->  | AA35: =IFERROR(VLOOKUP(Z35,ráták!$A$3:$AR$6,MATCH($Q35,ráták!$C$2:$AR$2,1)+2,FALSE),"") -> 
M36: =IF((IFERROR(RIGHT($A36,2),"")="KI"),Azonosítás!$A$9,"") ->  | Y36: =IFERROR( IF(VLOOKUP($M36,Partnerek!$A$9:$K$108,11,FALSE)="","",VLOOKUP($M36,Partnerek!$A$9:$K$108,11,FALSE)),"") ->  | Z36: =IFERROR( IF(VLOOKUP($N36,Partnerek!$A$9:$K$108,11,FALSE)="","",VLOOKUP($N36,Partnerek!$A$9:$K$108,11,FALSE)),"") ->  | AA36: =IFERROR(VLOOKUP(Z36,ráták!$A$3:$AR$6,MATCH($Q36,ráták!$C$2:$AR$2,1)+2,FALSE),"") -> 
M37: =IF((IFERROR(RIGHT($A37,2),"")="KI"),Azonosítás!$A$9,"") ->  | Y37: =IFERROR( IF(VLOOKUP($M37,Partnerek!$A$9:$K$108,11,FALSE)="","",VLOOKUP($M37,Partnerek!$A$9:$K$108,11,FALSE)),"") ->  | Z37: =IFERROR( IF(VLOOKUP($N37,Partnerek!$A$9:$K$108,11,FALSE)="","",VLOOKUP($N37,Partnerek!$A$9:$K$108,11,FALSE)),"") ->  | AA37: =IFERROR(VLOOKUP(Z37,ráták!$A$3:$AR$6,MATCH($Q37,ráták!$C$2:$AR$2,1)+2,FALSE),"") -> 
M38: =IF((IFERROR(RIGHT($A38,2),"")="KI"),Azonosítás!$A$9,"") ->  | Y38: =IFERROR( IF(VLOOKUP($M38,Partnerek!$A$9:$K$108,11,FALSE)="","",VLOOKUP($M38,Partnerek!$A$9:$K$108,11,FALSE)),"") ->  | Z38: =IFERROR( IF(VLOOKUP($N38,Partnerek!$A$9:$K$108,11,FALSE)="","",VLOOKUP($N38,Partnerek!$A$9:$K$108,11,FALSE)),"") ->  | AA38: =IFERROR(VLOOKUP(Z38,ráták!$A$3:$AR$6,MATCH($Q38,ráták!$C$2:$AR$2,1)+2,FALSE),"") -> 
M39: =IF((IFERROR(RIGHT($A39,2),"")="KI"),Azonosítás!$A$9,"") ->  | Y39: =IFERROR( IF(VLOOKUP($M39,Partnerek!$A$9:$K$108,11,FALSE)="","",VLOOKUP($M39,Partnerek!$A$9:$K$108,11,FALSE)),"") ->  | Z39: =IFERROR( IF(VLOOKUP($N39,Partnerek!$A$9:$K$108,11,FALSE)="","",VLOOKUP($N39,Partnerek!$A$9:$K$108,11,FALSE)),"") ->  | AA39: =IFERROR(VLOOKUP(Z39,ráták!$A$3:$AR$6,MATCH($Q39,ráták!$C$2:$AR$2,1)+2,FALSE),"") -> 
M40: =IF((IFERROR(RIGHT($A40,2),"")="KI"),Azonosítás!$A$9,"") ->  | Y40: =IFERROR( IF(VLOOKUP($M40,Partnerek!$A$9:$K$108,11,FALSE)="","",VLOOKUP($M40,Partnerek!$A$9:$K$108,11,FALSE)),"") ->  | Z40: =IFERROR( IF(VLOOKUP($N40,Partnerek!$A$9:$K$108,11,FALSE)="","",VLOOKUP($N40,Partnerek!$A$9:$K$108,11,FALSE)),"") ->  | AA40: =IFERROR(VLOOKUP(Z40,ráták!$A$3:$AR$6,MATCH($Q40,ráták!$C$2:$AR$2,1)+2,FALSE),"") -> 
M41: =IF((IFERROR(RIGHT($A41,2),"")="KI"),Azonosítás!$A$9,"") ->  | Y41: =IFERROR( IF(VLOOKUP($M41,Partnerek!$A$9:$K$108,11,FALSE)="","",VLOOKUP($M41,Partnerek!$A$9:$K$108,11,FALSE)),"") ->  | Z41: =IFERROR( IF(VLOOKUP($N41,Partnerek!$A$9:$K$108,11,FALSE)="","",VLOOKUP($N41,Partnerek!$A$9:$K$108,11,FALSE)),"") ->  | AA41: =IFERROR(VLOOKUP(Z41,ráták!$A$3:$AR$6,MATCH($Q41,ráták!$C$2:$AR$2,1)+2,FALSE),"") -> 
M42: =IF((IFERROR(RIGHT($A42,2),"")="KI"),Azonosítás!$A$9,"") ->  | Y42: =IFERROR( IF(VLOOKUP($M42,Partnerek!$A$9:$K$108,11,FALSE)="","",VLOOKUP($M42,Partnerek!$A$9:$K$108,11,FALSE)),"") ->  | Z42: =IFERROR( IF(VLOOKUP($N42,Partnerek!$A$9:$K$108,11,FALSE)="","",VLOOKUP($N42,Partnerek!$A$9:$K$108,11,FALSE)),"") ->  | AA42: =IFERROR(VLOOKUP(Z42,ráták!$A$3:$AR$6,MATCH($Q42,ráták!$C$2:$AR$2,1)+2,FALSE),"") -> 
M43: =IF((IFERROR(RIGHT($A43,2),"")="KI"),Azonosítás!$A$9,"") ->  | Y43: =IFERROR( IF(VLOOKUP($M43,Partnerek!$A$9:$K$108,11,FALSE)="","",VLOOKUP($M43,Partnerek!$A$9:$K$108,11,FALSE)),"") ->  | Z43: =IFERROR( IF(VLOOKUP($N43,Partnerek!$A$9:$K$108,11,FALSE)="","",VLOOKUP($N43,Partnerek!$A$9:$K$108,11,FALSE)),"") ->  | AA43: =IFERROR(VLOOKUP(Z43,ráták!$A$3:$AR$6,MATCH($Q43,ráták!$C$2:$AR$2,1)+2,FALSE),"") -> 
M44: =IF((IFERROR(RIGHT($A44,2),"")="KI"),Azonosítás!$A$9,"") ->  | Y44: =IFERROR( IF(VLOOKUP($M44,Partnerek!$A$9:$K$108,11,FALSE)="","",VLOOKUP($M44,Partnerek!$A$9:$K$108,11,FALSE)),"") ->  | Z44: =IFERROR( IF(VLOOKUP($N44,Partnerek!$A$9:$K$108,11,FALSE)="","",VLOOKUP($N44,Partnerek!$A$9:$K$108,11,FALSE)),"") ->  | AA44: =IFERROR(VLOOKUP(Z44,ráták!$A$3:$AR$6,MATCH($Q44,ráták!$C$2:$AR$2,1)+2,FALSE),"") -> 
M45: =IF((IFERROR(RIGHT($A45,2),"")="KI"),Azonosítás!$A$9,"") ->  | Y45: =IFERROR( IF(VLOOKUP($M45,Partnerek!$A$9:$K$108,11,FALSE)="","",VLOOKUP($M45,Partnerek!$A$9:$K$108,11,FALSE)),"") ->  | Z45: =IFERROR( IF(VLOOKUP($N45,Partnerek!$A$9:$K$108,11,FALSE)="","",VLOOKUP($N45,Partnerek!$A$9:$K$108,11,FALSE)),"") ->  | AA45: =IFERROR(VLOOKUP(Z45,ráták!$A$3:$AR$6,MATCH($Q45,ráták!$C$2:$AR$2,1)+2,FALSE),"") -> 
M46: =IF((IFERROR(RIGHT($A46,2),"")="KI"),Azonosítás!$A$9,"") ->  | Y46: =IFERROR( IF(VLOOKUP($M46,Partnerek!$A$9:$K$108,11,FALSE)="","",VLOOKUP($M46,Partnerek!$A$9:$K$108,11,FALSE)),"") ->  | Z46: =IFERROR( IF(VLOOKUP($N46,Partnerek!$A$9:$K$108,11,FALSE)="","",VLOOKUP($N46,Partnerek!$A$9:$K$108,11,FALSE)),"") ->  | AA46: =IFERROR(VLOOKUP(Z46,ráták!$A$3:$AR$6,MATCH($Q46,ráták!$C$2:$AR$2,1)+2,FALSE),"") -> 
M47: =IF((IFERROR(RIGHT($A47,2),"")="KI"),Azonosítás!$A$9,"") ->  | Y47: =IFERROR( IF(VLOOKUP($M47,Partnerek!$A$9:$K$108,11,FALSE)="","",VLOOKUP($M47,Partnerek!$A$9:$K$108,11,FALSE)),"") ->  | Z47: =IFERROR( IF(VLOOKUP($N47,Partnerek!$A$9:$K$108,11,FALSE)="","",VLOOKUP($N47,Partnerek!$A$9:$K$108,11,FALSE)),"") ->  | AA47: =IFERROR(VLOOKUP(Z47,ráták!$A$3:$AR$6,MATCH($Q47,ráták!$C$2:$AR$2,1)+2,FALSE),"") -> 
M48: =IF((IFERROR(RIGHT($A48,2),"")="KI"),Azonosítás!$A$9,"") ->  | Y48: =IFERROR( IF(VLOOKUP($M48,Partnerek!$A$9:$K$108,11,FALSE)="","",VLOOKUP($M48,Partnerek!$A$9:$K$108,11,FALSE)),"") ->  | Z48: =IFERROR( IF(VLOOKUP($N48,Partnerek!$A$9:$K$108,11,FALSE)="","",VLOOKUP($N48,Partnerek!$A$9:$K$108,11,FALSE)),"") ->  | AA48: =IFERROR(VLOOKUP(Z48,ráták!$A$3:$AR$6,MATCH($Q48,ráták!$C$2:$AR$2,1)+2,FALSE),"") -> 
M49: =IF((IFERROR(RIGHT($A49,2),"")="KI"),Azonosítás!$A$9,"") ->  | Y49: =IFERROR( IF(VLOOKUP($M49,Partnerek!$A$9:$K$108,11,FALSE)="","",VLOOKUP($M49,Partnerek!$A$9:$K$108,11,FALSE)),"") ->  | Z49: =IFERROR( IF(VLOOKUP($N49,Partnerek!$A$9:$K$108,11,FALSE)="","",VLOOKUP($N49,Partnerek!$A$9:$K$108,11,FALSE)),"") ->  | AA49: =IFERROR(VLOOKUP(Z49,ráták!$A$3:$AR$6,MATCH($Q49,ráták!$C$2:$AR$2,1)+2,FALSE),"") -> 
M50: =IF((IFERROR(RIGHT($A50,2),"")="KI"),Azonosítás!$A$9,"") ->  | Y50: =IFERROR( IF(VLOOKUP($M50,Partnerek!$A$9:$K$108,11,FALSE)="","",VLOOKUP($M50,Partnerek!$A$9:$K$108,11,FALSE)),"") ->  | Z50: =IFERROR( IF(VLOOKUP($N50,Partnerek!$A$9:$K$108,11,FALSE)="","",VLOOKUP($N50,Partnerek!$A$9:$K$108,11,FALSE)),"") ->  | AA50: =IFERROR(VLOOKUP(Z50,ráták!$A$3:$AR$6,MATCH($Q50,ráták!$C$2:$AR$2,1)+2,FALSE),"") -> 
M51: =IF((IFERROR(RIGHT($A51,2),"")="KI"),Azonosítás!$A$9,"") ->  | Y51: =IFERROR( IF(VLOOKUP($M51,Partnerek!$A$9:$K$108,11,FALSE)="","",VLOOKUP($M51,Partnerek!$A$9:$K$108,11,FALSE)),"") ->  | Z51: =IFERROR( IF(VLOOKUP($N51,Partnerek!$A$9:$K$108,11,FALSE)="","",VLOOKUP($N51,Partnerek!$A$9:$K$108,11,FALSE)),"") ->  | AA51: =IFERROR(VLOOKUP(Z51,ráták!$A$3:$AR$6,MATCH($Q51,ráták!$C$2:$AR$2,1)+2,FALSE),"") -> 
M52: =IF((IFERROR(RIGHT($A52,2),"")="KI"),Azonosítás!$A$9,"") ->  | Y52: =IFERROR( IF(VLOOKUP($M52,Partnerek!$A$9:$K$108,11,FALSE)="","",VLOOKUP($M52,Partnerek!$A$9:$K$108,11,FALSE)),"") ->  | Z52: =IFERROR( IF(VLOOKUP($N52,Partnerek!$A$9:$K$108,11,FALSE)="","",VLOOKUP($N52,Partnerek!$A$9:$K$108,11,FALSE)),"") ->  | AA52: =IFERROR(VLOOKUP(Z52,ráták!$A$3:$AR$6,MATCH($Q52,ráták!$C$2:$AR$2,1)+2,FALSE),"") -> 
M53: =IF((IFERROR(RIGHT($A53,2),"")="KI"),Azonosítás!$A$9,"") ->  | Y53: =IFERROR( IF(VLOOKUP($M53,Partnerek!$A$9:$K$108,11,FALSE)="","",VLOOKUP($M53,Partnerek!$A$9:$K$108,11,FALSE)),"") ->  | Z53: =IFERROR( IF(VLOOKUP($N53,Partnerek!$A$9:$K$108,11,FALSE)="","",VLOOKUP($N53,Partnerek!$A$9:$K$108,11,FALSE)),"") ->  | AA53: =IFERROR(VLOOKUP(Z53,ráták!$A$3:$AR$6,MATCH($Q53,ráták!$C$2:$AR$2,1)+2,FALSE),"") -> 
M54: =IF((IFERROR(RIGHT($A54,2),"")="KI"),Azonosítás!$A$9,"") ->  | Y54: =IFERROR( IF(VLOOKUP($M54,Partnerek!$A$9:$K$108,11,FALSE)="","",VLOOKUP($M54,Partnerek!$A$9:$K$108,11,FALSE)),"") ->  | Z54: =IFERROR( IF(VLOOKUP($N54,Partnerek!$A$9:$K$108,11,FALSE)="","",VLOOKUP($N54,Partnerek!$A$9:$K$108,11,FALSE)),"") ->  | AA54: =IFERROR(VLOOKUP(Z54,ráták!$A$3:$AR$6,MATCH($Q54,ráták!$C$2:$AR$2,1)+2,FALSE),"") -> 
M55: =IF((IFERROR(RIGHT($A55,2),"")="KI"),Azonosítás!$A$9,"") ->  | Y55: =IFERROR( IF(VLOOKUP($M55,Partnerek!$A$9:$K$108,11,FALSE)="","",VLOOKUP($M55,Partnerek!$A$9:$K$108,11,FALSE)),"") ->  | Z55: =IFERROR( IF(VLOOKUP($N55,Partnerek!$A$9:$K$108,11,FALSE)="","",VLOOKUP($N55,Partnerek!$A$9:$K$108,11,FALSE)),"") ->  | AA55: =IFERROR(VLOOKUP(Z55,ráták!$A$3:$AR$6,MATCH($Q55,ráták!$C$2:$AR$2,1)+2,FALSE),"") -> 
M56: =IF((IFERROR(RIGHT($A56,2),"")="KI"),Azonosítás!$A$9,"") ->  | Y56: =IFERROR( IF(VLOOKUP($M56,Partnerek!$A$9:$K$108,11,FALSE)="","",VLOOKUP($M56,Partnerek!$A$9:$K$108,11,FALSE)),"") ->  | Z56: =IFERROR( IF(VLOOKUP($N56,Partnerek!$A$9:$K$108,11,FALSE)="","",VLOOKUP($N56,Partnerek!$A$9:$K$108,11,FALSE)),"") ->  | AA56: =IFERROR(VLOOKUP(Z56,ráták!$A$3:$AR$6,MATCH($Q56,ráták!$C$2:$AR$2,1)+2,FALSE),"") -> 
M57: =IF((IFERROR(RIGHT($A57,2),"")="KI"),Azonosítás!$A$9,"") ->  | Y57: =IFERROR( IF(VLOOKUP($M57,Partnerek!$A$9:$K$108,11,FALSE)="","",VLOOKUP($M57,Partnerek!$A$9:$K$108,11,FALSE)),"") ->  | Z57: =IFERROR( IF(VLOOKUP($N57,Partnerek!$A$9:$K$108,11,FALSE)="","",VLOOKUP($N57,Partnerek!$A$9:$K$108,11,FALSE)),"") ->  | AA57: =IFERROR(VLOOKUP(Z57,ráták!$A$3:$AR$6,MATCH($Q57,ráták!$C$2:$AR$2,1)+2,FALSE),"") -> 
M58: =IF((IFERROR(RIGHT($A58,2),"")="KI"),Azonosítás!$A$9,"") ->  | Y58: =IFERROR( IF(VLOOKUP($M58,Partnerek!$A$9:$K$108,11,FALSE)="","",VLOOKUP($M58,Partnerek!$A$9:$K$108,11,FALSE)),"") ->  | Z58: =IFERROR( IF(VLOOKUP($N58,Partnerek!$A$9:$K$108,11,FALSE)="","",VLOOKUP($N58,Partnerek!$A$9:$K$108,11,FALSE)),"") ->  | AA58: =IFERROR(VLOOKUP(Z58,ráták!$A$3:$AR$6,MATCH($Q58,ráták!$C$2:$AR$2,1)+2,FALSE),"") -> 
M59: =IF((IFERROR(RIGHT($A59,2),"")="KI"),Azonosítás!$A$9,"") ->  | Y59: =IFERROR( IF(VLOOKUP($M59,Partnerek!$A$9:$K$108,11,FALSE)="","",VLOOKUP($M59,Partnerek!$A$9:$K$108,11,FALSE)),"") ->  | Z59: =IFERROR( IF(VLOOKUP($N59,Partnerek!$A$9:$K$108,11,FALSE)="","",VLOOKUP($N59,Partnerek!$A$9:$K$108,11,FALSE)),"") ->  | AA59: =IFERROR(VLOOKUP(Z59,ráták!$A$3:$AR$6,MATCH($Q59,ráták!$C$2:$AR$2,1)+2,FALSE),"") -> 
M60: =IF((IFERROR(RIGHT($A60,2),"")="KI"),Azonosítás!$A$9,"") ->  | Y60: =IFERROR( IF(VLOOKUP($M60,Partnerek!$A$9:$K$108,11,FALSE)="","",VLOOKUP($M60,Partnerek!$A$9:$K$108,11,FALSE)),"") ->  | Z60: =IFERROR( IF(VLOOKUP($N60,Partnerek!$A$9:$K$108,11,FALSE)="","",VLOOKUP($N60,Partnerek!$A$9:$K$108,11,FALSE)),"") ->  | AA60: =IFERROR(VLOOKUP(Z60,ráták!$A$3:$AR$6,MATCH($Q60,ráták!$C$2:$AR$2,1)+2,FALSE),"") -> 
M61: =IF((IFERROR(RIGHT($A61,2),"")="KI"),Azonosítás!$A$9,"") ->  | Y61: =IFERROR( IF(VLOOKUP($M61,Partnerek!$A$9:$K$108,11,FALSE)="","",VLOOKUP($M61,Partnerek!$A$9:$K$108,11,FALSE)),"") ->  | Z61: =IFERROR( IF(VLOOKUP($N61,Partnerek!$A$9:$K$108,11,FALSE)="","",VLOOKUP($N61,Partnerek!$A$9:$K$108,11,FALSE)),"") ->  | AA61: =IFERROR(VLOOKUP(Z61,ráták!$A$3:$AR$6,MATCH($Q61,ráták!$C$2:$AR$2,1)+2,FALSE),"") -> 
M62: =IF((IFERROR(RIGHT($A62,2),"")="KI"),Azonosítás!$A$9,"") ->  | Y62: =IFERROR( IF(VLOOKUP($M62,Partnerek!$A$9:$K$108,11,FALSE)="","",VLOOKUP($M62,Partnerek!$A$9:$K$108,11,FALSE)),"") ->  | Z62: =IFERROR( IF(VLOOKUP($N62,Partnerek!$A$9:$K$108,11,FALSE)="","",VLOOKUP($N62,Partnerek!$A$9:$K$108,11,FALSE)),"") ->  | AA62: =IFERROR(VLOOKUP(Z62,ráták!$A$3:$AR$6,MATCH($Q62,ráták!$C$2:$AR$2,1)+2,FALSE),"") -> 
M63: =IF((IFERROR(RIGHT($A63,2),"")="KI"),Azonosítás!$A$9,"") ->  | Q63: =IFERROR(IF(P63<=O63,"",IF( (P63-O63+1)>42,"",P63-O63+1)),"") ->  | Y63: =IFERROR( IF(VLOOKUP($M63,Partnerek!$A$9:$K$108,11,FALSE)="","",VLOOKUP($M63,Partnerek!$A$9:$K$108,11,FALSE)),"") ->  | Z63: =IFERROR( IF(VLOOKUP($N63,Partnerek!$A$9:$K$108,11,FALSE)="","",VLOOKUP($N63,Partnerek!$A$9:$K$108,11,FALSE)),"") ->  | AA63: =IFERROR(VLOOKUP(Z63,ráták!$A$3:$AR$6,MATCH($Q63,ráták!$C$2:$AR$2,1)+2,FALSE),"") -> 
M64: =IF((IFERROR(RIGHT($A64,2),"")="KI"),Azonosítás!$A$9,"") ->  | Y64: =IFERROR( IF(VLOOKUP($M64,Partnerek!$A$9:$K$108,11,FALSE)="","",VLOOKUP($M64,Partnerek!$A$9:$K$108,11,FALSE)),"") ->  | Z64: =IFERROR( IF(VLOOKUP($N64,Partnerek!$A$9:$K$108,11,FALSE)="","",VLOOKUP($N64,Partnerek!$A$9:$K$108,11,FALSE)),"") ->  | AA64: =IFERROR(VLOOKUP(Z64,ráták!$A$3:$AR$6,MATCH($Q64,ráták!$C$2:$AR$2,1)+2,FALSE),"") -> 
M65: =IF((IFERROR(RIGHT($A65,2),"")="KI"),Azonosítás!$A$9,"") ->  | Y65: =IFERROR( IF(VLOOKUP($M65,Partnerek!$A$9:$K$108,11,FALSE)="","",VLOOKUP($M65,Partnerek!$A$9:$K$108,11,FALSE)),"") ->  | Z65: =IFERROR( IF(VLOOKUP($N65,Partnerek!$A$9:$K$108,11,FALSE)="","",VLOOKUP($N65,Partnerek!$A$9:$K$108,11,FALSE)),"") ->  | AA65: =IFERROR(VLOOKUP(Z65,ráták!$A$3:$AR$6,MATCH($Q65,ráták!$C$2:$AR$2,1)+2,FALSE),"") -> 
M66: =IF((IFERROR(RIGHT($A66,2),"")="KI"),Azonosítás!$A$9,"") ->  | Y66: =IFERROR( IF(VLOOKUP($M66,Partnerek!$A$9:$K$108,11,FALSE)="","",VLOOKUP($M66,Partnerek!$A$9:$K$108,11,FALSE)),"") ->  | Z66: =IFERROR( IF(VLOOKUP($N66,Partnerek!$A$9:$K$108,11,FALSE)="","",VLOOKUP($N66,Partnerek!$A$9:$K$108,11,FALSE)),"") ->  | AA66: =IFERROR(VLOOKUP(Z66,ráták!$A$3:$AR$6,MATCH($Q66,ráták!$C$2:$AR$2,1)+2,FALSE),"") -> 
M67: =IF((IFERROR(RIGHT($A67,2),"")="KI"),Azonosítás!$A$9,"") ->  | Y67: =IFERROR( IF(VLOOKUP($M67,Partnerek!$A$9:$K$108,11,FALSE)="","",VLOOKUP($M67,Partnerek!$A$9:$K$108,11,FALSE)),"") ->  | Z67: =IFERROR( IF(VLOOKUP($N67,Partnerek!$A$9:$K$108,11,FALSE)="","",VLOOKUP($N67,Partnerek!$A$9:$K$108,11,FALSE)),"") ->  | AA67: =IFERROR(VLOOKUP(Z67,ráták!$A$3:$AR$6,MATCH($Q67,ráták!$C$2:$AR$2,1)+2,FALSE),"") -> 
M68: =IF((IFERROR(RIGHT($A68,2),"")="KI"),Azonosítás!$A$9,"") ->  | Y68: =IFERROR( IF(VLOOKUP($M68,Partnerek!$A$9:$K$108,11,FALSE)="","",VLOOKUP($M68,Partnerek!$A$9:$K$108,11,FALSE)),"") ->  | Z68: =IFERROR( IF(VLOOKUP($N68,Partnerek!$A$9:$K$108,11,FALSE)="","",VLOOKUP($N68,Partnerek!$A$9:$K$108,11,FALSE)),"") ->  | AA68: =IFERROR(VLOOKUP(Z68,ráták!$A$3:$AR$6,MATCH($Q68,ráták!$C$2:$AR$2,1)+2,FALSE),"") -> 
M69: =IF((IFERROR(RIGHT($A69,2),"")="KI"),Azonosítás!$A$9,"") ->  | Y69: =IFERROR( IF(VLOOKUP($M69,Partnerek!$A$9:$K$108,11,FALSE)="","",VLOOKUP($M69,Partnerek!$A$9:$K$108,11,FALSE)),"") ->  | Z69: =IFERROR( IF(VLOOKUP($N69,Partnerek!$A$9:$K$108,11,FALSE)="","",VLOOKUP($N69,Partnerek!$A$9:$K$108,11,FALSE)),"") ->  | AA69: =IFERROR(VLOOKUP(Z69,ráták!$A$3:$AR$6,MATCH($Q69,ráták!$C$2:$AR$2,1)+2,FALSE),"") -> 
M70: =IF((IFERROR(RIGHT($A70,2),"")="KI"),Azonosítás!$A$9,"") ->  | Y70: =IFERROR( IF(VLOOKUP($M70,Partnerek!$A$9:$K$108,11,FALSE)="","",VLOOKUP($M70,Partnerek!$A$9:$K$108,11,FALSE)),"") ->  | Z70: =IFERROR( IF(VLOOKUP($N70,Partnerek!$A$9:$K$108,11,FALSE)="","",VLOOKUP($N70,Partnerek!$A$9:$K$108,11,FALSE)),"") ->  | AA70: =IFERROR(VLOOKUP(Z70,ráták!$A$3:$AR$6,MATCH($Q70,ráták!$C$2:$AR$2,1)+2,FALSE),"") -> 
M71: =IF((IFERROR(RIGHT($A71,2),"")="KI"),Azonosítás!$A$9,"") ->  | Y71: =IFERROR( IF(VLOOKUP($M71,Partnerek!$A$9:$K$108,11,FALSE)="","",VLOOKUP($M71,Partnerek!$A$9:$K$108,11,FALSE)),"") ->  | Z71: =IFERROR( IF(VLOOKUP($N71,Partnerek!$A$9:$K$108,11,FALSE)="","",VLOOKUP($N71,Partnerek!$A$9:$K$108,11,FALSE)),"") ->  | AA71: =IFERROR(VLOOKUP(Z71,ráták!$A$3:$AR$6,MATCH($Q71,ráták!$C$2:$AR$2,1)+2,FALSE),"") -> 
M72: =IF((IFERROR(RIGHT($A72,2),"")="KI"),Azonosítás!$A$9,"") ->  | Y72: =IFERROR( IF(VLOOKUP($M72,Partnerek!$A$9:$K$108,11,FALSE)="","",VLOOKUP($M72,Partnerek!$A$9:$K$108,11,FALSE)),"") ->  | Z72: =IFERROR( IF(VLOOKUP($N72,Partnerek!$A$9:$K$108,11,FALSE)="","",VLOOKUP($N72,Partnerek!$A$9:$K$108,11,FALSE)),"") ->  | AA72: =IFERROR(VLOOKUP(Z72,ráták!$A$3:$AR$6,MATCH($Q72,ráták!$C$2:$AR$2,1)+2,FALSE),"") -> 
M73: =IF((IFERROR(RIGHT($A73,2),"")="KI"),Azonosítás!$A$9,"") ->  | Y73: =IFERROR( IF(VLOOKUP($M73,Partnerek!$A$9:$K$108,11,FALSE)="","",VLOOKUP($M73,Partnerek!$A$9:$K$108,11,FALSE)),"") ->  | Z73: =IFERROR( IF(VLOOKUP($N73,Partnerek!$A$9:$K$108,11,FALSE)="","",VLOOKUP($N73,Partnerek!$A$9:$K$108,11,FALSE)),"") ->  | AA73: =IFERROR(VLOOKUP(Z73,ráták!$A$3:$AR$6,MATCH($Q73,ráták!$C$2:$AR$2,1)+2,FALSE),"") -> 
M74: =IF((IFERROR(RIGHT($A74,2),"")="KI"),Azonosítás!$A$9,"") ->  | Q74: =IFERROR(IF(P74<=O74,"",IF( (P74-O74+1)>42,"",P74-O74+1)),"") ->  | U74: =IFERROR( IF( ((RIGHT(A74,2)="KI")*(Y74="HU")*(Z74<>"HU"))+((RIGHT(A74,2)="BE")*(Y74<>"HU")*(Z74="HU")), IF(A74<>"",AA74,""),""),"") ->  | Y74: =IFERROR( IF(VLOOKUP($M74,Partnerek!$A$9:$K$108,11,FALSE)="","",VLOOKUP($M74,Partnerek!$A$9:$K$108,11,FALSE)),"") ->  | Z74: =IFERROR( IF(VLOOKUP($N74,Partnerek!$A$9:$K$108,11,FALSE)="","",VLOOKUP($N74,Partnerek!$A$9:$K$108,11,FALSE)),"") ->  | AA74: =IFERROR(VLOOKUP(Z74,ráták!$A$3:$AR$6,MATCH($Q74,ráták!$C$2:$AR$2,1)+2,FALSE),"") -> 
M75: =IF((IFERROR(RIGHT($A75,2),"")="KI"),Azonosítás!$A$9,"") ->  | Y75: =IFERROR( IF(VLOOKUP($M75,Partnerek!$A$9:$K$108,11,FALSE)="","",VLOOKUP($M75,Partnerek!$A$9:$K$108,11,FALSE)),"") ->  | Z75: =IFERROR( IF(VLOOKUP($N75,Partnerek!$A$9:$K$108,11,FALSE)="","",VLOOKUP($N75,Partnerek!$A$9:$K$108,11,FALSE)),"") ->  | AA75: =IFERROR(VLOOKUP(Z75,ráták!$A$3:$AR$6,MATCH($Q75,ráták!$C$2:$AR$2,1)+2,FALSE),"") -> 
M76: =IF((IFERROR(RIGHT($A76,2),"")="KI"),Azonosítás!$A$9,"") ->  | Y76: =IFERROR( IF(VLOOKUP($M76,Partnerek!$A$9:$K$108,11,FALSE)="","",VLOOKUP($M76,Partnerek!$A$9:$K$108,11,FALSE)),"") ->  | Z76: =IFERROR( IF(VLOOKUP($N76,Partnerek!$A$9:$K$108,11,FALSE)="","",VLOOKUP($N76,Partnerek!$A$9:$K$108,11,FALSE)),"") ->  | AA76: =IFERROR(VLOOKUP(Z76,ráták!$A$3:$AR$6,MATCH($Q76,ráták!$C$2:$AR$2,1)+2,FALSE),"") -> 
M77: =IF((IFERROR(RIGHT($A77,2),"")="KI"),Azonosítás!$A$9,"") ->  | Y77: =IFERROR( IF(VLOOKUP($M77,Partnerek!$A$9:$K$108,11,FALSE)="","",VLOOKUP($M77,Partnerek!$A$9:$K$108,11,FALSE)),"") ->  | Z77: =IFERROR( IF(VLOOKUP($N77,Partnerek!$A$9:$K$108,11,FALSE)="","",VLOOKUP($N77,Partnerek!$A$9:$K$108,11,FALSE)),"") ->  | AA77: =IFERROR(VLOOKUP(Z77,ráták!$A$3:$AR$6,MATCH($Q77,ráták!$C$2:$AR$2,1)+2,FALSE),"") -> 
M78: =IF((IFERROR(RIGHT($A78,2),"")="KI"),Azonosítás!$A$9,"") ->  | Y78: =IFERROR( IF(VLOOKUP($M78,Partnerek!$A$9:$K$108,11,FALSE)="","",VLOOKUP($M78,Partnerek!$A$9:$K$108,11,FALSE)),"") ->  | Z78: =IFERROR( IF(VLOOKUP($N78,Partnerek!$A$9:$K$108,11,FALSE)="","",VLOOKUP($N78,Partnerek!$A$9:$K$108,11,FALSE)),"") ->  | AA78: =IFERROR(VLOOKUP(Z78,ráták!$A$3:$AR$6,MATCH($Q78,ráták!$C$2:$AR$2,1)+2,FALSE),"") -> 
M79: =IF((IFERROR(RIGHT($A79,2),"")="KI"),Azonosítás!$A$9,"") ->  | Y79: =IFERROR( IF(VLOOKUP($M79,Partnerek!$A$9:$K$108,11,FALSE)="","",VLOOKUP($M79,Partnerek!$A$9:$K$108,11,FALSE)),"") ->  | Z79: =IFERROR( IF(VLOOKUP($N79,Partnerek!$A$9:$K$108,11,FALSE)="","",VLOOKUP($N79,Partnerek!$A$9:$K$108,11,FALSE)),"") ->  | AA79: =IFERROR(VLOOKUP(Z79,ráták!$A$3:$AR$6,MATCH($Q79,ráták!$C$2:$AR$2,1)+2,FALSE),"") -> 
M80: =IF((IFERROR(RIGHT($A80,2),"")="KI"),Azonosítás!$A$9,"") ->  | Y80: =IFERROR( IF(VLOOKUP($M80,Partnerek!$A$9:$K$108,11,FALSE)="","",VLOOKUP($M80,Partnerek!$A$9:$K$108,11,FALSE)),"") ->  | Z80: =IFERROR( IF(VLOOKUP($N80,Partnerek!$A$9:$K$108,11,FALSE)="","",VLOOKUP($N80,Partnerek!$A$9:$K$108,11,FALSE)),"") ->  | AA80: =IFERROR(VLOOKUP(Z80,ráták!$A$3:$AR$6,MATCH($Q80,ráták!$C$2:$AR$2,1)+2,FALSE),"") -> 
M81: =IF((IFERROR(RIGHT($A81,2),"")="KI"),Azonosítás!$A$9,"") ->  | Y81: =IFERROR( IF(VLOOKUP($M81,Partnerek!$A$9:$K$108,11,FALSE)="","",VLOOKUP($M81,Partnerek!$A$9:$K$108,11,FALSE)),"") ->  | Z81: =IFERROR( IF(VLOOKUP($N81,Partnerek!$A$9:$K$108,11,FALSE)="","",VLOOKUP($N81,Partnerek!$A$9:$K$108,11,FALSE)),"") ->  | AA81: =IFERROR(VLOOKUP(Z81,ráták!$A$3:$AR$6,MATCH($Q81,ráták!$C$2:$AR$2,1)+2,FALSE),"") -> 
M82: =IF((IFERROR(RIGHT($A82,2),"")="KI"),Azonosítás!$A$9,"") ->  | Y82: =IFERROR( IF(VLOOKUP($M82,Partnerek!$A$9:$K$108,11,FALSE)="","",VLOOKUP($M82,Partnerek!$A$9:$K$108,11,FALSE)),"") ->  | Z82: =IFERROR( IF(VLOOKUP($N82,Partnerek!$A$9:$K$108,11,FALSE)="","",VLOOKUP($N82,Partnerek!$A$9:$K$108,11,FALSE)),"") ->  | AA82: =IFERROR(VLOOKUP(Z82,ráták!$A$3:$AR$6,MATCH($Q82,ráták!$C$2:$AR$2,1)+2,FALSE),"") -> 
M83: =IF((IFERROR(RIGHT($A83,2),"")="KI"),Azonosítás!$A$9,"") ->  | Y83: =IFERROR( IF(VLOOKUP($M83,Partnerek!$A$9:$K$108,11,FALSE)="","",VLOOKUP($M83,Partnerek!$A$9:$K$108,11,FALSE)),"") ->  | Z83: =IFERROR( IF(VLOOKUP($N83,Partnerek!$A$9:$K$108,11,FALSE)="","",VLOOKUP($N83,Partnerek!$A$9:$K$108,11,FALSE)),"") ->  | AA83: =IFERROR(VLOOKUP(Z83,ráták!$A$3:$AR$6,MATCH($Q83,ráták!$C$2:$AR$2,1)+2,FALSE),"") -> 
M84: =IF((IFERROR(RIGHT($A84,2),"")="KI"),Azonosítás!$A$9,"") ->  | Y84: =IFERROR( IF(VLOOKUP($M84,Partnerek!$A$9:$K$108,11,FALSE)="","",VLOOKUP($M84,Partnerek!$A$9:$K$108,11,FALSE)),"") ->  | Z84: =IFERROR( IF(VLOOKUP($N84,Partnerek!$A$9:$K$108,11,FALSE)="","",VLOOKUP($N84,Partnerek!$A$9:$K$108,11,FALSE)),"") ->  | AA84: =IFERROR(VLOOKUP(Z84,ráták!$A$3:$AR$6,MATCH($Q84,ráták!$C$2:$AR$2,1)+2,FALSE),"") -> 
M85: =IF((IFERROR(RIGHT($A85,2),"")="KI"),Azonosítás!$A$9,"") ->  | Y85: =IFERROR( IF(VLOOKUP($M85,Partnerek!$A$9:$K$108,11,FALSE)="","",VLOOKUP($M85,Partnerek!$A$9:$K$108,11,FALSE)),"") ->  | Z85: =IFERROR( IF(VLOOKUP($N85,Partnerek!$A$9:$K$108,11,FALSE)="","",VLOOKUP($N85,Partnerek!$A$9:$K$108,11,FALSE)),"") ->  | AA85: =IFERROR(VLOOKUP(Z85,ráták!$A$3:$AR$6,MATCH($Q85,ráták!$C$2:$AR$2,1)+2,FALSE),"") -> 
M86: =IF((IFERROR(RIGHT($A86,2),"")="KI"),Azonosítás!$A$9,"") ->  | Y86: =IFERROR( IF(VLOOKUP($M86,Partnerek!$A$9:$K$108,11,FALSE)="","",VLOOKUP($M86,Partnerek!$A$9:$K$108,11,FALSE)),"") ->  | Z86: =IFERROR( IF(VLOOKUP($N86,Partnerek!$A$9:$K$108,11,FALSE)="","",VLOOKUP($N86,Partnerek!$A$9:$K$108,11,FALSE)),"") ->  | AA86: =IFERROR(VLOOKUP(Z86,ráták!$A$3:$AR$6,MATCH($Q86,ráták!$C$2:$AR$2,1)+2,FALSE),"") -> 
M87: =IF((IFERROR(RIGHT($A87,2),"")="KI"),Azonosítás!$A$9,"") ->  | Y87: =IFERROR( IF(VLOOKUP($M87,Partnerek!$A$9:$K$108,11,FALSE)="","",VLOOKUP($M87,Partnerek!$A$9:$K$108,11,FALSE)),"") ->  | Z87: =IFERROR( IF(VLOOKUP($N87,Partnerek!$A$9:$K$108,11,FALSE)="","",VLOOKUP($N87,Partnerek!$A$9:$K$108,11,FALSE)),"") ->  | AA87: =IFERROR(VLOOKUP(Z87,ráták!$A$3:$AR$6,MATCH($Q87,ráták!$C$2:$AR$2,1)+2,FALSE),"") -> 
M88: =IF((IFERROR(RIGHT($A88,2),"")="KI"),Azonosítás!$A$9,"") ->  | Y88: =IFERROR( IF(VLOOKUP($M88,Partnerek!$A$9:$K$108,11,FALSE)="","",VLOOKUP($M88,Partnerek!$A$9:$K$108,11,FALSE)),"") ->  | Z88: =IFERROR( IF(VLOOKUP($N88,Partnerek!$A$9:$K$108,11,FALSE)="","",VLOOKUP($N88,Partnerek!$A$9:$K$108,11,FALSE)),"") ->  | AA88: =IFERROR(VLOOKUP(Z88,ráták!$A$3:$AR$6,MATCH($Q88,ráták!$C$2:$AR$2,1)+2,FALSE),"") -> 
M89: =IF((IFERROR(RIGHT($A89,2),"")="KI"),Azonosítás!$A$9,"") ->  | Y89: =IFERROR( IF(VLOOKUP($M89,Partnerek!$A$9:$K$108,11,FALSE)="","",VLOOKUP($M89,Partnerek!$A$9:$K$108,11,FALSE)),"") ->  | Z89: =IFERROR( IF(VLOOKUP($N89,Partnerek!$A$9:$K$108,11,FALSE)="","",VLOOKUP($N89,Partnerek!$A$9:$K$108,11,FALSE)),"") ->  | AA89: =IFERROR(VLOOKUP(Z89,ráták!$A$3:$AR$6,MATCH($Q89,ráták!$C$2:$AR$2,1)+2,FALSE),"") -> 
M90: =IF((IFERROR(RIGHT($A90,2),"")="KI"),Azonosítás!$A$9,"") ->  | Y90: =IFERROR( IF(VLOOKUP($M90,Partnerek!$A$9:$K$108,11,FALSE)="","",VLOOKUP($M90,Partnerek!$A$9:$K$108,11,FALSE)),"") ->  | Z90: =IFERROR( IF(VLOOKUP($N90,Partnerek!$A$9:$K$108,11,FALSE)="","",VLOOKUP($N90,Partnerek!$A$9:$K$108,11,FALSE)),"") ->  | AA90: =IFERROR(VLOOKUP(Z90,ráták!$A$3:$AR$6,MATCH($Q90,ráták!$C$2:$AR$2,1)+2,FALSE),"") -> 
M91: =IF((IFERROR(RIGHT($A91,2),"")="KI"),Azonosítás!$A$9,"") ->  | Y91: =IFERROR( IF(VLOOKUP($M91,Partnerek!$A$9:$K$108,11,FALSE)="","",VLOOKUP($M91,Partnerek!$A$9:$K$108,11,FALSE)),"") ->  | Z91: =IFERROR( IF(VLOOKUP($N91,Partnerek!$A$9:$K$108,11,FALSE)="","",VLOOKUP($N91,Partnerek!$A$9:$K$108,11,FALSE)),"") ->  | AA91: =IFERROR(VLOOKUP(Z91,ráták!$A$3:$AR$6,MATCH($Q91,ráták!$C$2:$AR$2,1)+2,FALSE),"") -> 
M92: =IF((IFERROR(RIGHT($A92,2),"")="KI"),Azonosítás!$A$9,"") ->  | Y92: =IFERROR( IF(VLOOKUP($M92,Partnerek!$A$9:$K$108,11,FALSE)="","",VLOOKUP($M92,Partnerek!$A$9:$K$108,11,FALSE)),"") ->  | Z92: =IFERROR( IF(VLOOKUP($N92,Partnerek!$A$9:$K$108,11,FALSE)="","",VLOOKUP($N92,Partnerek!$A$9:$K$108,11,FALSE)),"") ->  | AA92: =IFERROR(VLOOKUP(Z92,ráták!$A$3:$AR$6,MATCH($Q92,ráták!$C$2:$AR$2,1)+2,FALSE),"") -> 
M93: =IF((IFERROR(RIGHT($A93,2),"")="KI"),Azonosítás!$A$9,"") ->  | Y93: =IFERROR( IF(VLOOKUP($M93,Partnerek!$A$9:$K$108,11,FALSE)="","",VLOOKUP($M93,Partnerek!$A$9:$K$108,11,FALSE)),"") ->  | Z93: =IFERROR( IF(VLOOKUP($N93,Partnerek!$A$9:$K$108,11,FALSE)="","",VLOOKUP($N93,Partnerek!$A$9:$K$108,11,FALSE)),"") ->  | AA93: =IFERROR(VLOOKUP(Z93,ráták!$A$3:$AR$6,MATCH($Q93,ráták!$C$2:$AR$2,1)+2,FALSE),"") -> 
M94: =IF((IFERROR(RIGHT($A94,2),"")="KI"),Azonosítás!$A$9,"") ->  | Y94: =IFERROR( IF(VLOOKUP($M94,Partnerek!$A$9:$K$108,11,FALSE)="","",VLOOKUP($M94,Partnerek!$A$9:$K$108,11,FALSE)),"") ->  | Z94: =IFERROR( IF(VLOOKUP($N94,Partnerek!$A$9:$K$108,11,FALSE)="","",VLOOKUP($N94,Partnerek!$A$9:$K$108,11,FALSE)),"") ->  | AA94: =IFERROR(VLOOKUP(Z94,ráták!$A$3:$AR$6,MATCH($Q94,ráták!$C$2:$AR$2,1)+2,FALSE),"") -> 
M95: =IF((IFERROR(RIGHT($A95,2),"")="KI"),Azonosítás!$A$9,"") ->  | Y95: =IFERROR( IF(VLOOKUP($M95,Partnerek!$A$9:$K$108,11,FALSE)="","",VLOOKUP($M95,Partnerek!$A$9:$K$108,11,FALSE)),"") ->  | Z95: =IFERROR( IF(VLOOKUP($N95,Partnerek!$A$9:$K$108,11,FALSE)="","",VLOOKUP($N95,Partnerek!$A$9:$K$108,11,FALSE)),"") ->  | AA95: =IFERROR(VLOOKUP(Z95,ráták!$A$3:$AR$6,MATCH($Q95,ráták!$C$2:$AR$2,1)+2,FALSE),"") -> 
M96: =IF((IFERROR(RIGHT($A96,2),"")="KI"),Azonosítás!$A$9,"") ->  | Y96: =IFERROR( IF(VLOOKUP($M96,Partnerek!$A$9:$K$108,11,FALSE)="","",VLOOKUP($M96,Partnerek!$A$9:$K$108,11,FALSE)),"") ->  | Z96: =IFERROR( IF(VLOOKUP($N96,Partnerek!$A$9:$K$108,11,FALSE)="","",VLOOKUP($N96,Partnerek!$A$9:$K$108,11,FALSE)),"") ->  | AA96: =IFERROR(VLOOKUP(Z96,ráták!$A$3:$AR$6,MATCH($Q96,ráták!$C$2:$AR$2,1)+2,FALSE),"") -> 
M97: =IF((IFERROR(RIGHT($A97,2),"")="KI"),Azonosítás!$A$9,"") ->  | Y97: =IFERROR( IF(VLOOKUP($M97,Partnerek!$A$9:$K$108,11,FALSE)="","",VLOOKUP($M97,Partnerek!$A$9:$K$108,11,FALSE)),"") ->  | Z97: =IFERROR( IF(VLOOKUP($N97,Partnerek!$A$9:$K$108,11,FALSE)="","",VLOOKUP($N97,Partnerek!$A$9:$K$108,11,FALSE)),"") ->  | AA97: =IFERROR(VLOOKUP(Z97,ráták!$A$3:$AR$6,MATCH($Q97,ráták!$C$2:$AR$2,1)+2,FALSE),"") -> 
M98: =IF((IFERROR(RIGHT($A98,2),"")="KI"),Azonosítás!$A$9,"") ->  | Y98: =IFERROR( IF(VLOOKUP($M98,Partnerek!$A$9:$K$108,11,FALSE)="","",VLOOKUP($M98,Partnerek!$A$9:$K$108,11,FALSE)),"") ->  | Z98: =IFERROR( IF(VLOOKUP($N98,Partnerek!$A$9:$K$108,11,FALSE)="","",VLOOKUP($N98,Partnerek!$A$9:$K$108,11,FALSE)),"") ->  | AA98: =IFERROR(VLOOKUP(Z98,ráták!$A$3:$AR$6,MATCH($Q98,ráták!$C$2:$AR$2,1)+2,FALSE),"") -> 
M99: =IF((IFERROR(RIGHT($A99,2),"")="KI"),Azonosítás!$A$9,"") ->  | Y99: =IFERROR( IF(VLOOKUP($M99,Partnerek!$A$9:$K$108,11,FALSE)="","",VLOOKUP($M99,Partnerek!$A$9:$K$108,11,FALSE)),"") ->  | Z99: =IFERROR( IF(VLOOKUP($N99,Partnerek!$A$9:$K$108,11,FALSE)="","",VLOOKUP($N99,Partnerek!$A$9:$K$108,11,FALSE)),"") ->  | AA99: =IFERROR(VLOOKUP(Z99,ráták!$A$3:$AR$6,MATCH($Q99,ráták!$C$2:$AR$2,1)+2,FALSE),"") -> 
M100: =IF((IFERROR(RIGHT($A100,2),"")="KI"),Azonosítás!$A$9,"") ->  | U100: =IFERROR( IF( ((RIGHT(A100,2)="KI")*(Y100="HU")*(Z100<>"HU"))+((RIGHT(A100,2)="BE")*(Y100<>"HU")*(Z100="HU")), IF(A100<>"",AA100,""),""),"") ->  | Y100: =IFERROR( IF(VLOOKUP($M100,Partnerek!$A$9:$K$108,11,FALSE)="","",VLOOKUP($M100,Partnerek!$A$9:$K$108,11,FALSE)),"") ->  | Z100: =IFERROR( IF(VLOOKUP($N100,Partnerek!$A$9:$K$108,11,FALSE)="","",VLOOKUP($N100,Partnerek!$A$9:$K$108,11,FALSE)),"") ->  | AA100: =IFERROR(VLOOKUP(Z100,ráták!$A$3:$AR$6,MATCH($Q100,ráták!$C$2:$AR$2,1)+2,FALSE),"") -> 
M101: =IF((IFERROR(RIGHT($A101,2),"")="KI"),Azonosítás!$A$9,"") ->  | Y101: =IFERROR( IF(VLOOKUP($M101,Partnerek!$A$9:$K$108,11,FALSE)="","",VLOOKUP($M101,Partnerek!$A$9:$K$108,11,FALSE)),"") ->  | Z101: =IFERROR( IF(VLOOKUP($N101,Partnerek!$A$9:$K$108,11,FALSE)="","",VLOOKUP($N101,Partnerek!$A$9:$K$108,11,FALSE)),"") ->  | AA101: =IFERROR(VLOOKUP(Z101,ráták!$A$3:$AR$6,MATCH($Q101,ráták!$C$2:$AR$2,1)+2,FALSE),"") -> 
M102: =IF((IFERROR(RIGHT($A102,2),"")="KI"),Azonosítás!$A$9,"") ->  | Y102: =IFERROR( IF(VLOOKUP($M102,Partnerek!$A$9:$K$108,11,FALSE)="","",VLOOKUP($M102,Partnerek!$A$9:$K$108,11,FALSE)),"") ->  | Z102: =IFERROR( IF(VLOOKUP($N102,Partnerek!$A$9:$K$108,11,FALSE)="","",VLOOKUP($N102,Partnerek!$A$9:$K$108,11,FALSE)),"") ->  | AA102: =IFERROR(VLOOKUP(Z102,ráták!$A$3:$AR$6,MATCH($Q102,ráták!$C$2:$AR$2,1)+2,FALSE),"") -> 
M103: =IF((IFERROR(RIGHT($A103,2),"")="KI"),Azonosítás!$A$9,"") ->  | Y103: =IFERROR( IF(VLOOKUP($M103,Partnerek!$A$9:$K$108,11,FALSE)="","",VLOOKUP($M103,Partnerek!$A$9:$K$108,11,FALSE)),"") ->  | Z103: =IFERROR( IF(VLOOKUP($N103,Partnerek!$A$9:$K$108,11,FALSE)="","",VLOOKUP($N103,Partnerek!$A$9:$K$108,11,FALSE)),"") ->  | AA103: =IFERROR(VLOOKUP(Z103,ráták!$A$3:$AR$6,MATCH($Q103,ráták!$C$2:$AR$2,1)+2,FALSE),"") -> 
M104: =IF((IFERROR(RIGHT($A104,2),"")="KI"),Azonosítás!$A$9,"") ->  | Y104: =IFERROR( IF(VLOOKUP($M104,Partnerek!$A$9:$K$108,11,FALSE)="","",VLOOKUP($M104,Partnerek!$A$9:$K$108,11,FALSE)),"") ->  | Z104: =IFERROR( IF(VLOOKUP($N104,Partnerek!$A$9:$K$108,11,FALSE)="","",VLOOKUP($N104,Partnerek!$A$9:$K$108,11,FALSE)),"") ->  | AA104: =IFERROR(VLOOKUP(Z104,ráták!$A$3:$AR$6,MATCH($Q104,ráták!$C$2:$AR$2,1)+2,FALSE),"") -> 
M105: =IF((IFERROR(RIGHT($A105,2),"")="KI"),Azonosítás!$A$9,"") ->  | Y105: =IFERROR( IF(VLOOKUP($M105,Partnerek!$A$9:$K$108,11,FALSE)="","",VLOOKUP($M105,Partnerek!$A$9:$K$108,11,FALSE)),"") ->  | Z105: =IFERROR( IF(VLOOKUP($N105,Partnerek!$A$9:$K$108,11,FALSE)="","",VLOOKUP($N105,Partnerek!$A$9:$K$108,11,FALSE)),"") ->  | AA105: =IFERROR(VLOOKUP(Z105,ráták!$A$3:$AR$6,MATCH($Q105,ráták!$C$2:$AR$2,1)+2,FALSE),"") -> 
M106: =IF((IFERROR(RIGHT($A106,2),"")="KI"),Azonosítás!$A$9,"") ->  | Y106: =IFERROR( IF(VLOOKUP($M106,Partnerek!$A$9:$K$108,11,FALSE)="","",VLOOKUP($M106,Partnerek!$A$9:$K$108,11,FALSE)),"") ->  | Z106: =IFERROR( IF(VLOOKUP($N106,Partnerek!$A$9:$K$108,11,FALSE)="","",VLOOKUP($N106,Partnerek!$A$9:$K$108,11,FALSE)),"") ->  | AA106: =IFERROR(VLOOKUP(Z106,ráták!$A$3:$AR$6,MATCH($Q106,ráták!$C$2:$AR$2,1)+2,FALSE),"") -> 
M107: =IF((IFERROR(RIGHT($A107,2),"")="KI"),Azonosítás!$A$9,"") ->  | Y107: =IFERROR( IF(VLOOKUP($M107,Partnerek!$A$9:$K$108,11,FALSE)="","",VLOOKUP($M107,Partnerek!$A$9:$K$108,11,FALSE)),"") ->  | Z107: =IFERROR( IF(VLOOKUP($N107,Partnerek!$A$9:$K$108,11,FALSE)="","",VLOOKUP($N107,Partnerek!$A$9:$K$108,11,FALSE)),"") ->  | AA107: =IFERROR(VLOOKUP(Z107,ráták!$A$3:$AR$6,MATCH($Q107,ráták!$C$2:$AR$2,1)+2,FALSE),"") -> 
M108: =IF((IFERROR(RIGHT($A108,2),"")="KI"),Azonosítás!$A$9,"") ->  | Y108: =IFERROR( IF(VLOOKUP($M108,Partnerek!$A$9:$K$108,11,FALSE)="","",VLOOKUP($M108,Partnerek!$A$9:$K$108,11,FALSE)),"") ->  | Z108: =IFERROR( IF(VLOOKUP($N108,Partnerek!$A$9:$K$108,11,FALSE)="","",VLOOKUP($N108,Partnerek!$A$9:$K$108,11,FALSE)),"") ->  | AA108: =IFERROR(VLOOKUP(Z108,ráták!$A$3:$AR$6,MATCH($Q108,ráták!$C$2:$AR$2,1)+2,FALSE),"") -> 

Sheet Pénzügyi elszámolás
B1: =IF(Azonosítás!A3="","",Azonosítás!A3) -> 
B3: Intézmény neve: | D3: =IF(Azonosítás!A9="","",Azonosítás!A9) -> 
B4: Szerződésszám: | D4: =Azonosítás!A6 -> 0
E5: Hallgatók | H5: Oktatói, személyzeti mobilitás | K5: Felkészítés | L5: Mobilitás szervezése | M5: Összesen
B6: Szerződéses adatok | E6: Tanulmányok | F6: Gyakorlat | G6: Nyári egyetem | H6: Oktatás | I6: Konferencia, tréning | J6: Intézménylátogatás
B7: Megítélt támogatás összege | E7: =VLOOKUP($D$4,Alapadatok,6,FALSE) ->  | F7: =VLOOKUP($D$4,Alapadatok,7,FALSE) ->  | G7: =VLOOKUP($D$4,Alapadatok,8,FALSE) ->  | H7: =VLOOKUP($D$4,'Pályázói adatok'!A2:BG10,9,FALSE) ->  | I7: =VLOOKUP($D$4,'Pályázói adatok'!A2:BG10,10,FALSE) ->  | J7: =VLOOKUP($D$4,'Pályázói adatok'!A2:BG10,11,FALSE) ->  | K7: =VLOOKUP($D$4,Alapadatok,12,FALSE) ->  | L7: =VLOOKUP($D$4,'Pályázói adatok'!A2:BG10,13,FALSE) ->  | M7: =VLOOKUP($D$4,'Pályázói adatok'!A2:BG10,14,FALSE) -> 
B8: Évközi módosítás összege (+/-) | E8: 0 | F8: 0 | G8: 0 | H8: 0 | I8: 0 | K8: 0 | L8: 0 | M8: =SUM(E8:L8) -> 0
B9: Megítélt összesen | E9: =E7+E8 -> 
B10: Megkötött szerződés(ek) összege (FOI - TKA) | M10: =SUM(E10:L10) -> 0
C11: ="-ig a Miniszterelnökségtől átutalt összesen" -> -ig a Miniszterelnökségtől átutalt összesen
B13: Jóváhagyott be- és kiutazói létszám | E13: =VLOOKUP($D$4,Alapadatok,18,FALSE)+VLOOKUP($D$4,Alapadatok,20,FALSE) ->  | F13: =VLOOKUP($D$4,Alapadatok,22,FALSE)+VLOOKUP($D$4,Alapadatok,24,FALSE) ->  | G13: =VLOOKUP($D$4,Alapadatok,26,FALSE)+VLOOKUP($D$4,Alapadatok,28,FALSE) ->  | H13: =VLOOKUP($D$4,'Pályázói adatok'!A2:BG10,30,FALSE)+VLOOKUP($D$4,'Pályázói adatok'!A2:BG10,32,FALSE) ->  | I13: =VLOOKUP($D$4,'Pályázói adatok'!A2:BG10,34,FALSE)+VLOOKUP($D$4,'Pályázói adatok'!A2:BG10,36,FALSE) ->  | J13: =VLOOKUP($D$4,'Pályázói adatok'!A2:BG10,38,FALSE)+VLOOKUP($D$4,'Pályázói adatok'!A2:BG10,40,FALSE) ->  | K13: =VLOOKUP($D$4,Alapadatok,59,FALSE) ->  | M13: =VLOOKUP($D$4,'Pályázói adatok'!A2:BG10,42,FALSE) -> 
B14: Megkötött szerződések szerinti be- és kiutazói létszám | E14: =SUM(IF((('Ki- és beutazó hallgatók'!$A$9:$A$108="SMS_KI")+('Ki- és beutazó hallgatók'!$A$9:$A$108="SMS_BE"))*('Ki- és beutazó hallgatók'!$B$9:$B$108<>""),1,0)) -> 0 | F14: =SUM(IF((('Ki- és beutazó hallgatók'!$A$9:$A$108="SMP_KI")+('Ki- és beutazó hallgatók'!$A$9:$A$108="SMP_BE"))*('Ki- és beutazó hallgatók'!$B$9:$B$108<>""),1,0)) -> 0 | G14: =SUM(IF((('Ki- és beutazó hallgatók'!$A$9:$A$108="SMS_SU_KI")+('Ki- és beutazó hallgatók'!$A$9:$A$108="SMS_SU_BE"))*('Ki- és beutazó hallgatók'!$B$9:$B$108<>""),1,0)) -> 0 | H14: =SUM(IF((('Ki- és beutazó okt, személyzet'!$A$9:$A$108="STA_KI")+('Ki- és beutazó okt, személyzet'!$A$9:$A$108="STA_BE"))*('Ki- és beutazó okt, személyzet'!$B$9:$B$108="Oktatás")*('Ki- és beutazó okt, személyzet'!$C$9:$C$108<>""),1,0)) -> 0 | I14: =SUM(IF(('Ki- és beutazó okt, személyzet'!$A$9:$A$108<>"")*('Ki- és beutazó okt, személyzet'!$B$9:$B$108="Konferencia/Szeminárium/Tréning")*('Ki- és beutazó okt, személyzet'!$C$9:$C$108<>""),1,0)) -> 0 | J14: =SUM(IF(('Ki- és beutazó okt, személyzet'!$A$9:$A$108<>"")*('Ki- és beutazó okt, személyzet'!$B$9:$B$108="Intézménylátogatás")*('Ki- és beutazó okt, személyzet'!$C$9:$C$108<>""),1,0)) -> 0 | K14: =SUM(IF(('Ki- és beutazó hallgatók'!$AA$9:$AA$108="Y")*('Ki- és beutazó hallgatók'!$B$9:$B$108<>""),1,0)) -> 0 | M14: =SUM(E14:J14) -> 0
B15: További tervezett be- és kiutazói létszám | E15: =SUM(IF((('Ki- és beutazó hallgatók'!$A$9:$A$108="SMS_KI")+('Ki- és beutazó hallgatók'!$A$9:$A$108="SMS_BE")),1,0)) -> 0 | F15: =SUM(IF((('Ki- és beutazó hallgatók'!$A$9:$A$108="SMP_KI")+('Ki- és beutazó hallgatók'!$A$9:$A$108="SMP_BE")),1,0)) -> 0 | G15: =SUM(IF((('Ki- és beutazó hallgatók'!$A$9:$A$108="SMS_SU_KI")+('Ki- és beutazó hallgatók'!$A$9:$A$108="SMS_SU_BE")),1,0)) -> 0 | H15: =SUM(IF((('Ki- és beutazó okt, személyzet'!$A$9:$A$108="STA_KI")+('Ki- és beutazó okt, személyzet'!$A$9:$A$108="STA_BE"))*('Ki- és beutazó okt, személyzet'!$B$9:$B$108="Oktatás"),1,0)) -> 0 | I15: =SUM(IF(('Ki- és beutazó okt, személyzet'!$A$9:$A$108<>"")*('Ki- és beutazó okt, személyzet'!$B$9:$B$108="Konferencia,Szeminárium,Tréning"),1,0)) -> 0 | J15: =SUM(IF(('Ki- és beutazó okt, személyzet'!$A$9:$A$108<>"")*('Ki- és beutazó okt, személyzet'!$B$9:$B$108="Intézménylátogatás"),1,0)) -> 0 | K15: =SUM(IF(('Ki- és beutazó hallgatók'!$AA$9:$AA$108="Y"),1,0)) -> 0 | M15: =SUM(E15:J15) -> 0
B17: Felhasználható támogatás | E17: =E9 -> 
B19: Elszámolás | L19: =IF(((M14)*100)>L17,"Támogatási szerződésen túli mobilitás-szervezési igény:","Nem jogosult mobilitásszervezési költség:") ->  | M19: =IF(((M14)*100)>L17,(M14-M13)*100,(M13-M14)*100) -> 
B20: Elszámolható támogatás | E20: =E17 ->  | I20: =I17 ->  | J20: =J17 ->  | K20: =K17 ->  | L20: =IF(M14>M13,L17,L17-M19) ->  | M20: =SUM(H20+I20+J20+L20) -> 
B21: Megkötött szerződésben elszámolt támogatás | E21: =SUM(IF((('Ki- és beutazó hallgatók'!$A$9:$A$108="SMS_KI")+('Ki- és beutazó hallgatók'!$A$9:$A$108="SMS_BE"))*('Ki- és beutazó hallgatók'!$B$9:$B$108<>""),'Ki- és beutazó hallgatók'!$AB$9:$AB$108,0)) -> 0 | F21: =SUM(IF((('Ki- és beutazó hallgatók'!$A$9:$A$108="SMP_KI")+('Ki- és beutazó hallgatók'!$A$9:$A$108="SMP_BE"))*('Ki- és beutazó hallgatók'!$B$9:$B$108<>""),'Ki- és beutazó hallgatók'!$AB$9:$AB$108,0)) -> 0 | G21: =SUM(IF((('Ki- és beutazó hallgatók'!$A$9:$A$108="SMS_SU_KI")+('Ki- és beutazó hallgatók'!$A$9:$A$108="SMS_SU_BE"))*('Ki- és beutazó hallgatók'!$B$9:$B$108<>""),'Ki- és beutazó hallgatók'!$AB$9:$AB$108,0)) -> 0 | H21: =SUM(IF((('Ki- és beutazó okt, személyzet'!$A$9:$A$108="STA_KI")+('Ki- és beutazó okt, személyzet'!$A$9:$A$108="STA_BE"))*('Ki- és beutazó okt, személyzet'!$B$9:$B$108="Oktatás")*('Ki- és beutazó okt, személyzet'!$C$9:$C$108<>""),'Ki- és beutazó okt, személyzet'!$U$9:$U$108,0)) -> 0 | I21: =SUM(IF(('Ki- és beutazó okt, személyzet'!$A$9:$A$108<>"")*('Ki- és beutazó okt, személyzet'!$B$9:$B$108="Konferencia,Szeminárium,Tréning")*('Ki- és beutazó okt, személyzet'!$C$9:$C$108<>""),'Ki- és beutazó okt, személyzet'!$U$9:$U$108,0)) -> 0 | J21: =SUM(IF(('Ki- és beutazó okt, személyzet'!$A$9:$A$108<>"")*('Ki- és beutazó okt, személyzet'!$B$9:$B$108="Intézménylátogatás")*('Ki- és beutazó okt, személyzet'!$C$9:$C$108<>""),'Ki- és beutazó okt, személyzet'!$U$9:$U$108,0)) -> 0 | K21: =SUM(IF(('Ki- és beutazó hallgatók'!$AA$9:$AA$108="Y")*('Ki- és beutazó hallgatók'!$B$9:$B$108<>""),100,0)) -> 0 | L21: =M14*100 -> 0 | M21: =SUM(E21:L21) -> 0
B22: 1901-02-28 | C22: ="-ig ténylegesen kifizetett" -> -ig ténylegesen kifizetett | M22: 0
B23: Átutalási kérelem összege | M23: =IF(M22>M11,M22-M11,0) -> 0
B24: =IF(OR(B1="Erasmus évközi beszámoló 2013/2014", B1="Erasmus módosított évközi beszámoló 2013/2014"), "Várható maradvány","Maradvány") -> Maradvány | E24: =(E20-E21)-#REF! ->  | F24: =(F20-F21)-#REF! ->  | G24: =(G20-G21)-#REF! ->  | H24: =H20-H21 ->  | I24: =I20-I21 ->  | J24: =J20-J21 ->  | K24: =(K20-K21)-#REF! ->  | L24: =L20-L21 ->  | M24: =H24+I24+J24+L24 -> 
B26: Megjegyzés:
H29: Hivatalos képviselő:
C30: =IF(COUNTBLANK(B36:B42)<7,"HIBÁS BESZÁMOLÓ NEM KÜLDHETŐ BE!","") -> HIBÁS BESZÁMOLÓ NEM KÜLDHETŐ BE! | H30: Beosztása:
H31: Kelt:
L32: P.H.
B35: =IF(COUNTBLANK(B36:B46)<11,"HIBALISTA","") -> HIBALISTA
B36: =IF('Pénzügyi elszámolás'!B11="","Dátum hiányzik a B11-es cellában","") -> Dátum hiányzik a B11-es cellában
B37: =IF('Pénzügyi elszámolás'!M11="","Miniszterelnökségtől átutalt összeg hiányzik a M11-es cellában", "") -> Miniszterelnökségtől átutalt összeg hiányzik a M11-es cellában
B38: =IF('Pénzügyi elszámolás'!B22="","Dátum hiányzik a B22-es cellában", "") -> 
B39: =IF('Pénzügyi elszámolás'!H22="","A ténylegesen kifizetett összeg hiányzik a H22-es cellában", "") -> A ténylegesen kifizetett összeg hiányzik a H22-es cellában
B40: =IF('Pénzügyi elszámolás'!I22="","A ténylegesen kifizetett összeg hiányzik az I22-es cellában", "") -> A ténylegesen kifizetett összeg hiányzik az I22-es cellában
B41: =IF('Pénzügyi elszámolás'!J22="","A ténylegesen kifizetett összeg hiányzik a J22-es cellában", "") -> A ténylegesen kifizetett összeg hiányzik a J22-es cellában
B42: =IF('Pénzügyi elszámolás'!L22="","A ténylegesen kifizetett összeg hiányzik az L22-es cellában", "") -> A ténylegesen kifizetett összeg hiányzik az L22-es cellában
B43: =IF('Pénzügyi elszámolás'!H21=H22,"", "A H21-es és a H22-es cella értékei nem egyeznek") -> 
B44: =IF('Pénzügyi elszámolás'!I21=I22,"", "Az I21-es és az I22-es cella értékei nem egyeznek") -> 
B45: =IF('Pénzügyi elszámolás'!J21=J22,"", "A J21-es és a J22-es cella értékei nem egyeznek") -> 
B46: =IF('Pénzügyi elszámolás'!L21=L22,"", "Az L21-es és az L22-es cella értékei nem egyeznek") -> 

Sheet Pályázói adatok (hidden)
A1: Szerzodesszam | B1: Erasmus_ID | C1: Intezmeny | D1: Város | E1: EUC_szam | F1: SMS | G1: SMP | H1: SMS SU | I1: Oktatás | J1: Konferencia, szeminárium, tréning | K1: Intézmény-látogatás | L1: Felkészítési ktg | M1: Mobilitás-szervezés | N1: Összes elnyert | O1: 80% | P1: 0.1 | Q1: Utolsó részlet | R1: Jóváhagyott fő (SMS_KI) | S1: Elvárt hó (SMS_KI) | T1: Jóváhagyott fő (SMS_BE) | U1: Elvárt hó (SMS_BE) | V1: Jóváhagyott fő (SMP_KI) | W1: Elvárt hó (SMP_KI) | X1: Jóváhagyott fő (SMP_BE) | Y1: Elvárt hó (SMP_BE) | Z1: Jóváhagyott fő (SMS_SU_KI) | AA1: Elvárt hó (SMS_SU_ki) | AB1: Jóváhagyott fő (SMS_SU_BE) | AC1: Elvárt hó (SMS_SU_BE) | AD1: Jóváhagyott fő (oktatás_ki) | AE1: Elvárt nap (oktatás_ki) | AF1: Jóváhagyott fő (oktatás_be) | AG1: Elvárt nap (oktatás_be) | AH1: Jóváhagyott fő (konf_ki) | AI1: Elvárt nap (konf_ki) | AJ1: Jóváhagyott fő (konf_be) | AK1: Elvárt nap (konf_be) | AL1: Jóváhagyott fő (int.lát_ki) | AM1: Elvárt nap (int.lát_ki) | AN1: Jóváhagyott fő (int.lát_be) | AO1: Elvárt nap (int.lát_be) | AP1: Jóváhagyott fő ÖSSZES | AQ1: Mobilitas Azonosito | AR1: Eloiranyzat Azonosito | AS1: Appid | AT1: Intézmény- típus | AU1: Működési forma | AV1: Jogi státusz | AW1: Gazdasági szektor | AX1: Méret (dolgozók) | AY1: Méret (tanulók) | AZ1: Kapcsolattartó telefon | BA1: Kapcsolattartó E-mail | BB1: Irányítószám | BC1: Város | BD1: Ország | BE1: Régió | BF1: Projektkód | BG1: Felkészítés
A2: EGT/156/M3-0006 | C2: Baranya Megyei Önkormányzat Közegészségügyi, Narkomán Fiatalokat Gyógyító- Foglalkoztató Közalapítványa (Indít Alapítvány) | D2: Pécs | I2: 0 | J2: 1458 | K2: 6500 | M2: 700 | N2: 8658 | O2: 6926 | AD2: 0 | AE2: 0 | AF2: 0 | AG2: 0 | AH2: 0 | AI2: 0 | AJ2: 2 | AK2: 4 | AL2: 5 | AM2: 7 | AN2: 0 | AO2: 0 | AP2: 7 | AQ2: 2027479826 | AR2: -94631510 | AS2: d80140e2-27e6-4768-af89-b26017bcca4d_2013 | AZ2: 3672315083 | BA2: inditkozalap@gmail.com | BB2: 7623 | BC2: Pécs | BD2: HU
A3: EGT/156/M3-0007 | C3: Magyar Cukrász Iparosok Országos Ipartestülete | D3: Budapest | I3: 14056 | J3: 0 | K3: 18882 | M3: 2200 | N3: 35138 | O3: 28110 | AD3: 8 | AE3: 11 | AF3: 0 | AG3: 0 | AH3: 0 | AI3: 0 | AJ3: 0 | AK3: 0 | AL3: 6 | AM3: 12 | AN3: 8 | AO3: 8 | AP3: 22 | AQ3: -30675898 | AR3: -94631510 | AS3: c580e703-7283-4bb9-9492-3fa406afde8c_2013 | AZ3: 3612664165 | BA3: avojtek20@gmail.com | BB3: 1053 | BC3: Budapest | BD3: HU
A4: EGT/156/M3-0008 | C4: Balassi Bálint Nyolcévfolyamos Gimnázium | D4: Budapest | I4: 0 | J4: 0 | K4: 2100 | M4: 100 | N4: 2200 | O4: 1760 | AD4: 0 | AE4: 0 | AF4: 0 | AG4: 0 | AH4: 0 | AI4: 0 | AJ4: 0 | AK4: 0 | AL4: 1 | AM4: 14 | AN4: 0 | AO4: 0 | AP4: 1 | AQ4: 102318837 | AR4: -94631510 | AS4: 8c504fa2-ae5c-44f2-a2bf-8708d8d855b4_2013 | AZ4: 36 16322858 | BA4: andi3560@gmail.com | BB4: 1174 | BC4: Budapest | BD4: HU
A5: EGT/156/M3-0009 | C5: Georgikon Görögkatolikus Mezőgazdasági és Élelmiszeripari Szakgimnázium, Szakközépiskola és Kollégium | D5: Sátoraljaújhely | I5: 0 | J5: 0 | K5: 11700 | M5: 900 | N5: 12600 | O5: 10080 | AD5: 0 | AE5: 0 | AF5: 0 | AG5: 0 | AH5: 0 | AI5: 0 | AJ5: 0 | AK5: 0 | AL5: 9 | AM5: 7 | AN5: 0 | AO5: 0 | AP5: 9 | AQ5: 73533959 | AR5: -94631510 | AS5: 08318f39-1944-4184-9190-a4af2d3d7cce_2013 | AZ5: 3647523340 | BA5: szanozsu@gmail.com | BB5: 3980 | BC5: Sátoraljaújhely | BD5: HU
A6: EGT/156/M3-0010 | C6: Váci Szakképzési Centrum Petzelt József Szakközépiskolája és Szakiskolája | D6: Szentendre | I6: 0 | J6: 0 | K6: 13200 | M6: 1200 | N6: 14400 | O6: 11520 | AD6: 0 | AE6: 0 | AF6: 0 | AG6: 0 | AH6: 0 | AI6: 0 | AJ6: 0 | AK6: 0 | AL6: 6 | AM6: 7 | AN6: 6 | AO6: 7 | AP6: 12 | AQ6: -815439015 | AR6: -94631510 | AS6: 67b12a59-58a8-48f3-a7f4-944e9de6c96f_2013 | AZ6: 3626312167 | BA6: projekt@petzeltj.hu | BB6: 2000 | BC6: Szentendre | BD6: HU
A7: EGT/156/M3-0011 | C7: Andrássy György Katolikus Közgazdasági Középiskola | D7: Eger | I7: 0 | J7: 3058 | K7: 8300 | M7: 900 | N7: 12258 | O7: 9806 | AD7: 0 | AE7: 0 | AF7: 1 | AG7: 0 | AH7: 2 | AI7: 9 | AJ7: 0 | AK7: 0 | AL7: 5 | AM7: 7 | AN7: 2 | AO7: 7 | AP7: 9 | AZ7: +3636510060 | BA7: kiralykr@gmail.com | BB7: 3300 | BC7: Eger
A8: EGT/156/M3-0012 | C8: Magyar Hegesztéstechnikai és Anyagvizsgálati Egyesülés | D8: Budapest | I8: 0 | J8: 0 | K8: 18570 | M8: 2000 | N8: 20570 | O8: 16456 | AD8: 0 | AE8: 0 | AF8: 0 | AG8: 0 | AH8: 0 | AI8: 0 | AJ8: 0 | AK8: 0 | AL8: 10 | AM8: 5 | AN8: 10 | AO8: 5 | AP8: 20 | AZ8: 3617690056 | BA8: benedekj@mhte.hu | BB8: 1148 | BC8: Budapest | BD8: HU
A9: EGT/156/M3-0013 | C9: Athéné Idegenforgalmi, Informatikai és Üzletemberképző Szakképző Iskola | D9: Budapest | I9: 0 | J9: 0 | K9: 5656 | M9: 400 | N9: 6056 | O9: 4845 | AD9: 0 | AE9: 0 | AF9: 0 | AG9: 0 | AH9: 0 | AI9: 0 | AJ9: 0 | AK9: 0 | AL9: 4 | AM9: 8 | AN9: 0 | AO9: 0 | AP9: 4 | AZ9: 3618872300 | BA9: t.siptaragi@gmail.com | BB9: 1073 | BC9: Budapest | BD9: HU
A10: EGT/156/M3-0014 | C10: Jászsági Általános Iskola Bercsényi Miklós Általános Iskolai Tagintézménye | D10: Jászberény | I10: 0 | J10: 0 | K10: 18300 | M10: 1500 | N10: 19800 | O10: 15840 | AD10: 0 | AE10: 0 | AF10: 0 | AG10: 0 | AH10: 0 | AI10: 0 | AJ10: 0 | AK10: 0 | AL10: 12 | AM10: 7 | AN10: 3 | AO10: 7 | AP10: 15 | AZ10: 3657501730 | BA10: atikis@freemail.hu | BB10: 5100 | BC10: Jászberény | BD10: HU

Sheet Segédadatok
C1: MOBILITY TYPE | D1: Description | F1: Erasmus országkód | G1: Országkód | H1: Ország | I1: Country | J1: Code | K1: Description | L1: Code | M1: Lang | N1: ISO_orszagkodok | O1: NACE1 | P1: Description | Q1: Napkezdes
C2: SMS | D2: ERASMUS Student Mobility for Studies | F2: HU | G2: HU | H2: Magyarország | I2: Hungary | J2: HU | K2: Hungary | L2: EN | M2: English | N2: AT | O2: A | P2: AGRICULTURE, FORESTRY AND FISHING | Q2: 2014-08-01
C3: SMP | D3: ERASMUS Student Mobility for Placements | F3: IS | G3: IS | H3: Izland | I3: Iceland | J3: IS | K3: Iceland | L3: DE | M3: German | N3: BE | O3: B | P3: MINING AND QUARRYING | Q3: 2014-08-02
C4: STA | D4: ERASMUS Staff Mobility | F4: LI | G4: LI | H4: Lichtenstein | I4: Liechtenstein | J4: LI | K4: Liechtenstein | L4: IS | M4: Icelandic | N4: BG | O4: C | P4: MANUFACTURING | Q4: 2014-08-03
C5: STT | D5: ERASMUS Staff Mobility | F5: NO | G5: NO | H5: Norvégia | I5: Norway | J5: NO | K5: Norway | L5: NO | M5: Norwegian | N5: CH | O5: D | P5: ELECTRICITY, GAS, STEAM AND AIR CONDITIONING SUPPLY | Q5: 2014-08-04
J6: XX | K6: other | L6: HU | M6: Hungarian | N6: CY | O6: E | P6: WATER SUPPLY; SEWERAGE, WASTE MANAGEMENT AND REMEDIATION ACTIVITIES | Q6: 2014-08-05
C7: GENDER | D7: Description | L7: AA | M7: Afar | N7: CZ | O7: F | P7: CONSTRUCTION | Q7: 2014-08-06
C8: F | D8: Female | L8: AB | M8: Abkhazian | N8: DE | O8: G | P8: WHOLESALE AND RETAIL TRADE; REPAIR OF MOTOR VEHICLES AND MOTORCYCLES | Q8: 2014-08-07
C9: M | D9: Male | L9: AE | M9: Avestan | N9: DK | O9: H | P9: TRANSPORTATION AND STORAGE | Q9: 2014-08-08
L10: AF | M10: Afrikaans | N10: EE | O10: I | P10: ACCOMMODATION AND FOOD SERVICE ACTIVITIES | Q10: 2014-08-09
C11: TYPE OF PARTICIPANT | D11: Description | L11: AK | M11: Akan | N11: ES | O11: J | P11: INFORMATION AND COMMUNICATION | Q11: 2014-08-10
C12: STA_KI | D12: Teaching staff out | L12: AM | M12: Amharic | N12: FI | O12: K | P12: FINANCIAL AND INSURANCE ACTIVITIES | Q12: 2014-08-11
C13: STA_BE | D13: Teaching staff in | L13: AN | M13: Aragonese | N13: FL | O13: L | P13: REAL ESTATE ACTIVITIES | Q13: 2014-08-12
C14: STT_KI | D14: Non-teaching staff out | L14: AR | M14: Arabic | N14: FR | O14: M | P14: PROFESSIONAL, SCIENTIFIC AND TECHNICAL ACTIVITIES | Q14: 2014-08-13
C15: STT_BE | D15: Non-teaching staff in | L15: AS | M15: Assamese | N15: GR | O15: N | P15: ADMINISTRATIVE AND SUPPORT SERVICE ACTIVITIES | Q15: 2014-08-14
L16: AV | M16: Avaric | N16: HR | O16: O | P16: PUBLIC ADMINISTRATION AND DEFENCE; COMPULSORY SOCIAL SECURITY | Q16: 2014-08-15
C17: Level of Study or Teaching | D17: Description | L17: AY | M17: Aymara | N17: HU | O17: P | P17: EDUCATION | Q17: 2014-08-16
C18: 1 | D18: First Cycle | L18: AZ | M18: Azerbaijani | N18: IE | O18: Q | P18: HUMAN HEALTH AND SOCIAL WORK ACTIVITIES | Q18: 2014-08-17
C19: 2 | D19: Second Cycle | L19: BA | M19: Bashkir | N19: IS | O19: R | P19: ARTS, ENTERTAINMENT AND RECREATION | Q19: 2014-08-18
C20: 3 | D20: Third Cycle | L20: BE | M20: Belarusian | N20: IT | O20: S | P20: OTHER SERVICE ACTIVITIES | Q20: 2014-08-19
C21: S | D21: Short Cycle | L21: BG | M21: Bulgarian | N21: LT | O21: T | P21: ACTIVITIES OF HOUSEHOLDS AS EMPLOYERS; UNDIFFERENTIATED GOODS- AND SERVICES-PRODUCING ACTIVITIES OF HOUSEHOLDS FOR OWN USE | Q21: 2014-08-20
C22: M | D22: Multiple Cycles | L22: BH | M22: Bihari | N22: LU | O22: U | P22: ACTIVITIES OF EXTRATERRITORIAL ORGANIZATIONS AND BODIES | Q22: 2014-08-21
L23: BI | M23: Bislama | N23: LV | Q23: 2014-08-22
C24: Type of Activity | D24: Description | L24: BM | M24: Bambara | N24: MK | Q24: 2014-08-23
C25: Oktatás | D25: Oktatás | L25: BN | M25: Bengali | N25: MT | Q25: 2014-08-24
C26: Konferencia,Szeminárium,Tréning | D26: Konferencia,Szeminárium,Tréning | L26: BO | M26: Tibetan | N26: NL | Q26: 2014-08-25
C27: Intézménylátogatás | D27: Intézménylátogatás | L27: BR | M27: Breton | N27: NO | Q27: 2014-08-26
C28: Category of Work | D28: Description | L28: BS | M28: Bosnian | N28: PL | Q28: 2014-08-27
C29: Cont.Edu | D29: Continuing Education | L29: CA | M29: Catalan | N29: PT | Q29: 2014-08-28
C30: Fin | D30: Finance | L30: CE | M30: Chechen | N30: RO | Q30: 2014-08-29
C31: Gen.Adm | D31: General Admin and Technical | L31: CH | M31: Chamorro | N31: SE | Q31: 2014-08-30
C32: Int.Off | D32: International Office | L32: CO | M32: Corsican | N32: SI | Q32: 2014-08-31
C33: Oth | D33: Other | L33: CR | M33: Cree | N33: SK | Q33: 2014-09-01
C34: Stud.Inf | D34: Student Information | L34: CU | M34: Church Slavic | N34: TR | Q34: 2014-09-02
C35: Man | D35: Manager | L35: CV | M35: Chuvash | N35: UK | Q35: 2014-09-03
C36: Res/Teach/Tr | D36: Researcher/Teacher/Trainer | L36: CY | M36: Welsh | N36: XX | Q36: 2014-09-04
C37: Techn | D37: Technical | L37: CS | M37: Czech | Q37: 2014-09-05
C38: Admin | D38: Administrative | L38: DA | M38: Danish | Q38: 2014-09-06
C39: Activities | D39: Description | L39: DV | M39: Divehi | Q39: 2014-09-07
C40: E | D40: Workshop | L40: DZ | M40: Dzongkha | Q40: 2014-09-08
C41: O | D41: Other | L41: EE | M41: Ewe | Q41: 2014-09-09
C42: W | D42: Job shadowing or work placement | L42: EL | M42: Greek | Q42: 2014-09-10
C43: T | D43: Training | L43: EO | M43: Esperanto | Q43: 2014-09-11
C44: A | D44: Teaching | L44: ES | M44: Spanish | Q44: 2014-09-12
L45: ET | M45: Estonian | Q45: 2014-09-13
C46: Seniority | D46: Description | L46: EU | M46: Basque | Q46: 2014-09-14
C47: J | D47: Junior (approx. < 10 years of experience) | L47: FA | M47: Persian | Q47: 2014-09-15
C48: I | D48: Intermediate (approx. > 10 and < 20 years of experience) | L48: FF | M48: Fulah | Q48: 2014-09-16
C49: S | D49: Senior (approx. > 20 years of experience) | L49: FI | M49: Finnish | Q49: 2014-09-17
L50: FJ | M50: Fijian | Q50: 2014-09-18
C51: Type of Organisation | D51: Description | L51: FO | M51: Faroese | Q51: 2014-09-19
C52: EPLUS-EDU-HEI | D52: Higher education institution (tertiary level) | L52: FR | M52: French | Q52: 2014-09-20
C53: EPLUS-EDU-GEN-PRE | D53: School/Institute/Educational centre – General education (pre-primary level) | L53: FY | M53: Frisian | Q53: 2014-09-21
C54: EPLUS-EDU-GEN-PRI | D54: School/Institute/Educational centre – General education (primary level) | L54: GA | M54: Irish | Q54: 2014-09-22
C55: EPLUS-EDU-GEN-SEC | D55: School/Institute/Educational centre – General education (secondary level) | L55: GD | M55: Gaelic (Scots) | Q55: 2014-09-23
C56: EPLUS-EDU-VOC-SEC | D56: School/Institute/Educational centre – Vocational Training (secondary level) | L56: GL | M56: Gallegan | Q56: 2014-09-24
C57: EPLUS-EDU-VOC-TER | D57: School/Institute/Educational centre – Vocational Training (tertiary level) | L57: GN | M57: Guarani | Q57: 2014-09-25
C58: EPLUS-EDU-ADULT | D58: School/Institute/Educational centre – Adult education | L58: GU | M58: Gujarati | Q58: 2014-09-26
C59: EPLUS-BODY-PUB-NAT | D59: National Public body | L59: HR | M59: Croatian | Q59: 2014-09-27
C60: EPLUS-BODY-PUB-REG | D60: Regional Public body | L60: IA | M60: Interlingua (International Auxiliary Language Association) | Q60: 2014-09-28
C61: EPLUS-BODY-PUB-LOC | D61: Local Public body | L61: II | M61: Sichuan Yi | Q61: 2014-09-29
C62: EPLUS-ENT-SME | D62: Small and medium sized enterprise | L62: IK | M62: Inupiaq | Q62: 2014-09-30
C63: EPLUS-ENT-LARGE | D63: Large enterprise | L63: IO | M63: Ido | Q63: 2014-10-01
C64: EPLUS-NGO | D64: Non-governmental organisation/association/social enterprise | L64: IT | M64: Italian | Q64: 2014-10-02
C65: EPLUS-FOUND | D65: Foundation | L65: IU | M65: Inuktitut | Q65: 2014-10-03
C66: EPLUS-SOCIAL | D66: Social partner or other representative of working life (chambers of commerce, trade union, trade association) | L66: JA | M66: Japanese | Q66: 2014-10-04
C67: EPLUS-RES | D67: Research Institute/Centre | L67: JV | M67: Javanese | Q67: 2014-10-05
C68: EPLUS-YOUTH-COUNCIL | D68: National Youth Council | L68: KA | M68: Georgian | Q68: 2014-10-06
C69: EPLUS-ENGO | D69: European NGO | L69: KG | M69: Kongo | Q69: 2014-10-07
C70: EPLUS-NET-EU | D70: EU-wide network | L70: KI | M70: Kikuyu | Q70: 2014-10-08
C71: EPLUS-YOUTH-GROUP | D71: Group of young people active in youth work | L71: KJ | M71: Kuanyama | Q71: 2014-10-09
C72: EPLUS-EURO-GROUP-COOP | D72: European grouping of territorial cooperation | L72: KK | M72: Kazakh | Q72: 2014-10-10
C73: EPLUS-BODY-ACCRED | D73: Accreditation, certification or qualification body | L73: KL | M73: Kalaallisut | Q73: 2014-10-11
C74: EPLUS-BODY-CONS | D74: Counselling body | L74: KM | M74: Khmer | Q74: 2014-10-12
C75: EPLUS-INTER | D75: International organisation under public law | L75: KN | M75: Kannada | Q75: 2014-10-13
C76: EPLUS-SPORT-PARTIAL | D76: Organisation or association representing (parts of) the sport sector | L76: KO | M76: Korean | Q76: 2014-10-14
C77: EPLUS-SPORT-FED | D77: Sport federation | L77: KR | M77: Kanuri | Q77: 2014-10-15
C78: EPLUS-SPORT-LEAGUE | D78: Sport league | L78: KS | M78: Kashmiri | Q78: 2014-10-16
C79: EPLUS-SPORT-CLUB | D79: Sport club | L79: KU | M79: Kurdish | Q79: 2014-10-17
C80: OTH | D80: Other | L80: KV | M80: Komi | Q80: 2014-10-18
L81: KW | M81: Cornish | Q81: 2014-10-19
C82: Commercial Orientation | D82: Description | L82: KY | M82: Kirghiz | Q82: 2014-10-20
C83: P | D83: Profit | L83: LA | M83: Latin | Q83: 2014-10-21
C84: NP | D84: Not for profit | L84: LB | M84: Letzeburgesch | Q84: 2014-10-22
L85: LG | M85: Ganda | Q85: 2014-10-23
C86: Legal Status | D86: Description | L86: LI | M86: Limburgan; Limburger; Limburgish | Q86: 2014-10-24
C87: PR | D87: Private | L87: LN | M87: Lingala | Q87: 2014-10-25
C88: PB | D88: Public | L88: LO | M88: Lao | Q88: 2014-10-26
L89: LT | M89: Lithuanian | Q89: 2014-10-27
C90: Type of work at Enterprise | D90: Description | L90: LU | M90: Luba-Katanga | Q90: 2014-10-28
C91: M | D91: Manager | L91: LV | M91: Latvian | Q91: 2014-10-29
C92: R | D92: Researcher/Teacher/Trainer | L92: ME | M92: Montenegrin | Q92: 2014-10-30
C93: T | D93: Technical | L93: MG | M93: Malagasy | Q93: 2014-10-31
C94: A | D94: Administrativ | L94: MH | M94: Marshall | Q94: 2014-11-01
L95: MI | M95: Maori | Q95: 2014-11-02
C96: Hallgatói mobilitás jellege | D96: Description | L96: MK | M96: Macedonian | Q96: 2014-11-03
C97: SMS_KI | D97: Kiutazó tanulmányi célú | L97: ML | M97: Malayalam | Q97: 2014-11-04
C98: SMS_BE | D98: Beutazó tanulmányi célú | L98: MN | M98: Mongolian | Q98: 2014-11-05
C99: SMP_KI | D99: Kiutazó szakmai gyakorlat | L99: MO | M99: Moldavian | Q99: 2014-11-06
C100: SMP_BE | D100: Beutazó szakmai gyakorlat | L100: MR | M100: Marathi | Q100: 2014-11-07
C101: SMS_SU_KI | D101: Kiutazó nyári egyetem | L101: MS | M101: Malay | Q101: 2014-11-08
C102: SMS_SU_BE | D102: Beutazó nyári egyetem | L102: MT | M102: Maltese | Q102: 2014-11-09
L103: MY | M103: Burmese | Q103: 2014-11-10
C104: Hallgatói mobilitás jellege | D104: Description | L104: NA | M104: Nauru | Q104: 2014-11-11
C105: Pre-prim | D105: Óvodai | L105: NB | M105: Norwegian Bokmael | Q105: 2014-11-12
C106: Prim | D106: Általános | L106: ND | M106: Ndebele, North | Q106: 2014-11-13
C107: Sec | D107: Középiskolai | L107: NE | M107: Nepali | Q107: 2014-11-14
C108: Voc | D108: Felső középfokú szakképzés (szakközépiskola, szakiskola) | L108: NG | M108: Ndonga | Q108: 2014-11-15
C109: Postsec | D109: Posztszekunder, nem felsőfokú szakképzés (szakközépiskolai érettségi utáni szakképző évfolyamok | L109: NL | M109: Dutch | Q109: 2014-11-16
C110: Adult | D110: Felnőttoktatás | L110: NN | M110: Norwegian Nynorsk | Q110: 2014-11-17
C111: Other | D111: Egyéb | L111: NR | M111: Ndebele, South | Q111: 2014-11-18
L112: NV | M112: Navajo | Q112: 2014-11-19
C113: NUTS code | D113: Description | E113: Description total | L113: NY | M113: Chichewa | Q113: 2014-11-20
C114: HU1 | D114: KÖZÉP-MAGYARORSZÁG | E114: HU1 - KÖZÉP-MAGYARORSZÁG | L114: OC | M114: Occitan (post 1500) | Q114: 2014-11-21
C115: HU10 | D115: Közép-Magyarország | E115: HU10 - Közép-Magyarország | L115: OJ | M115: Ojibwa | Q115: 2014-11-22
C116: HU101 | D116: Budapest | E116: HU101 - Budapest | L116: OM | M116: Oromo | Q116: 2014-11-23
C117: HU102 | D117: Pest | E117: HU102 - Pest | L117: OR | M117: Oriya | Q117: 2014-11-24
C118: HU2 | D118: DUNÁNTÚL | E118: HU2 - DUNÁNTÚL | L118: OS | M118: Ossetian | Q118: 2014-11-25
C119: HU21 | D119: Közép-Dunántúl | E119: HU21 - Közép-Dunántúl | L119: PA | M119: Panjabi | Q119: 2014-11-26
C120: HU211 | D120: Fejér | E120: HU211 - Fejér | L120: PI | M120: Pali | Q120: 2014-11-27
C121: HU212 | D121: Komárom-Esztergom | E121: HU212 - Komárom-Esztergom | L121: PL | M121: Polish | Q121: 2014-11-28
C122: HU213 | D122: Veszprém | E122: HU213 - Veszprém | L122: PS | M122: Pushto | Q122: 2014-11-29
C123: HU22 | D123: Nyugat-Dunántúl | E123: HU22 - Nyugat-Dunántúl | L123: PT | M123: Portuguese | Q123: 2014-11-30
C124: HU221 | D124: Győr-Moson-Sopron | E124: HU221 - Győr-Moson-Sopron | L124: QU | M124: Quechua | Q124: 2014-12-01
C125: HU222 | D125: Vas | E125: HU222 - Vas | L125: RM | M125: Raeto-Romance | Q125: 2014-12-02
C126: HU223 | D126: Zala | E126: HU223 - Zala | L126: RN | M126: Rundi | Q126: 2014-12-03
C127: HU23 | D127: Dél-Dunántúl | E127: HU23 - Dél-Dunántúl | L127: RO | M127: Romanian | Q127: 2014-12-04
C128: HU231 | D128: Baranya | E128: HU231 - Baranya | L128: RU | M128: Russian | Q128: 2014-12-05
C129: HU232 | D129: Somogy | E129: HU232 - Somogy | L129: RW | M129: Kinyarwanda | Q129: 2014-12-06
C130: HU233 | D130: Tolna | E130: HU233 - Tolna | L130: SA | M130: Sanskrit | Q130: 2014-12-07
C131: HU3 | D131: ALFÖLD ÉS ÉSZAK | E131: HU3 - ALFÖLD ÉS ÉSZAK | L131: SC | M131: Sardinian | Q131: 2014-12-08
C132: HU31 | D132: Észak-Magyarország | E132: HU31 - Észak-Magyarország | L132: SD | M132: Sindhi | Q132: 2014-12-09
C133: HU311 | D133: Borsod-Abaúj-Zemplén | E133: HU311 - Borsod-Abaúj-Zemplén | L133: SE | M133: Northern Sami | Q133: 2014-12-10
C134: HU312 | D134: Heves | E134: HU312 - Heves | L134: SG | M134: Sango | Q134: 2014-12-11
C135: HU313 | D135: Nógrád | E135: HU313 - Nógrád | L135: SH | M135: Serbo-Croatian | Q135: 2014-12-12
C136: HU32 | D136: Észak-Alföld | E136: HU32 - Észak-Alföld | L136: SI | M136: Sinhalese | Q136: 2014-12-13
C137: HU321 | D137: Hajdú-Bihar | E137: HU321 - Hajdú-Bihar | L137: SK | M137: Slovak | Q137: 2014-12-14
C138: HU322 | D138: Jász-Nagykun-Szolnok | E138: HU322 - Jász-Nagykun-Szolnok | L138: SL | M138: Slovenian | Q138: 2014-12-15
C139: HU323 | D139: Szabolcs-Szatmár-Bereg | E139: HU323 - Szabolcs-Szatmár-Bereg | L139: SM | M139: Samoan | Q139: 2014-12-16
C140: HU33 | D140: Dél-Alföld | E140: HU33 - Dél-Alföld | L140: SN | M140: Shona | Q140: 2014-12-17
C141: HU331 | D141: Bács-Kiskun | E141: HU331 - Bács-Kiskun | L141: SO | M141: Somali | Q141: 2014-12-18
C142: HU332 | D142: Békés | E142: HU332 - Békés | L142: SQ | M142: Albanian | Q142: 2014-12-19
C143: HU333 | D143: Csongrád | E143: HU333 - Csongrád | L143: SS | M143: Swati | Q143: 2014-12-20
C144: HUZ | D144: EXTRA-REGIO NUTS 1 | E144: HUZ - EXTRA-REGIO NUTS 1 | L144: ST | M144: Sotho, Southern | Q144: 2014-12-21
C145: HUZZ | D145: Extra-Regio NUTS 2 | E145: HUZZ - Extra-Regio NUTS 2 | L145: SU | M145: Sundanese | Q145: 2014-12-22
C146: HUZZZ | D146: Extra-Regio | E146: HUZZZ - Extra-Regio | L146: SV | M146: Swedish | Q146: 2014-12-23
C147: IS | D147: Iceland | E147: IS - Iceland | L147: SW | M147: Swahili | Q147: 2014-12-24
C148: IS0 | D148: ÍSLAND | E148: IS0 - ÍSLAND | L148: TA | M148: Tamil | Q148: 2014-12-25
C149: IS00 | D149: Ísland | E149: IS00 - Ísland | L149: TE | M149: Telugu | Q149: 2014-12-26
C150: IS001 | D150: Höfuðborgarsvæði | E150: IS001 - Höfuðborgarsvæði | L150: TG | M150: Tajik | Q150: 2014-12-27
C151: IS002 | D151: Landsbyggð | E151: IS002 - Landsbyggð | L151: TH | M151: Thai | Q151: 2014-12-28
C152: NO | D152: Norway | E152: NO - Norway | L152: TK | M152: Turkmen | Q152: 2014-12-29
C153: NO0 | D153: NORGE | E153: NO0 - NORGE | L153: TL | M153: Tagalog | Q153: 2014-12-30
C154: NO01 | D154: Oslo og Akershus | E154: NO01 - Oslo og Akershus | L154: TN | M154: Tswana | Q154: 2014-12-31
C155: NO011 | D155: Oslo | E155: NO011 - Oslo | L155: TR | M155: Turkish | Q155: 2015-01-01
C156: NO012 | D156: Akershus | E156: NO012 - Akershus | L156: TS | M156: Tsonga | Q156: 2015-01-02
C157: NO02 | D157: Hedmark og Oppland | E157: NO02 - Hedmark og Oppland | L157: TT | M157: Tatar | Q157: 2015-01-03
C158: NO021 | D158: Hedmark | E158: NO021 - Hedmark | L158: TW | M158: Twi | Q158: 2015-01-04
C159: NO022 | D159: Oppland | E159: NO022 - Oppland | L159: TY | M159: Tahitian | Q159: 2015-01-05
C160: NO03 | D160: Sør-Østlandet | E160: NO03 - Sør-Østlandet | L160: UG | M160: Uighur | Q160: 2015-01-06
C161: NO031 | D161: Østfold | E161: NO031 - Østfold | L161: UK | M161: Ukrainian | Q161: 2015-01-07
C162: NO032 | D162: Buskerud | E162: NO032 - Buskerud | L162: UN | M162: Un-identified | Q162: 2015-01-08
C163: NO033 | D163: Vestfold | E163: NO033 - Vestfold | L163: UR | M163: Urdu | Q163: 2015-01-09
C164: NO034 | D164: Telemark | E164: NO034 - Telemark | L164: UZ | M164: Uzbek | Q164: 2015-01-10
C165: NO04 | D165: Agder og Rogaland | E165: NO04 - Agder og Rogaland | L165: VE | M165: Venda | Q165: 2015-01-11
C166: NO041 | D166: Aust-Agder | E166: NO041 - Aust-Agder | L166: VI | M166: Vietnamese | Q166: 2015-01-12
C167: NO042 | D167: Vest-Agder | E167: NO042 - Vest-Agder | L167: VO | M167: Volapok | Q167: 2015-01-13
C168: NO043 | D168: Rogaland | E168: NO043 - Rogaland | L168: WA | M168: Walloon | Q168: 2015-01-14
C169: NO05 | D169: Vestlandet | E169: NO05 - Vestlandet | L169: WO | M169: Wolof | Q169: 2015-01-15
C170: NO051 | D170: Hordaland | E170: NO051 - Hordaland | L170: XH | M170: Xhosa | Q170: 2015-01-16
C171: NO052 | D171: Sogn og Fjordane | E171: NO052 - Sogn og Fjordane | L171: YI | M171: Yiddish | Q171: 2015-01-17
C172: NO053 | D172: Møre og Romsdal | E172: NO053 - Møre og Romsdal | L172: ZA | M172: Zhuang | Q172: 2015-01-18
C173: NO06 | D173: Trøndelag | E173: NO06 - Trøndelag | L173: ZH | M173: Chinese | Q173: 2015-01-19
C174: NO061 | D174: Sør-Trøndelag | E174: NO061 - Sør-Trøndelag | L174: ZU | M174: Zulu | Q174: 2015-01-20
C175: NO062 | D175: Nord-Trøndelag | E175: NO062 - Nord-Trøndelag | Q175: 2015-01-21
C176: NO07 | D176: Nord-Norge | E176: NO07 - Nord-Norge | Q176: 2015-01-22
C177: NO071 | D177: Nordland | E177: NO071 - Nordland | Q177: 2015-01-23
C178: NO072 | D178: Troms | E178: NO072 - Troms | Q178: 2015-01-24
C179: NO073 | D179: Finnmark | E179: NO073 - Finnmark | Q179: 2015-01-25
C180: LI | D180: Liechtenstein | E180: LI - Liechtenstein | Q180: 2015-01-26
C181: LI0 | D181: LIECHTENSTEIN | E181: LI0 - LIECHTENSTEIN | Q181: 2015-01-27
C182: LI00 | D182: Liechtenstein | E182: LI00 - Liechtenstein | Q182: 2015-01-28
C183: LI000 | D183: Liechtenstein | E183: LI000 - Liechtenstein | Q183: 2015-01-29
Q184: 2015-01-30
Q185: 2015-01-31
Q186: 2015-02-01
Q187: 2015-02-02
Q188: 2015-02-03
Q189: 2015-02-04
Q190: 2015-02-05
Q191: 2015-02-06
Q192: 2015-02-07
Q193: 2015-02-08
Q194: 2015-02-09
Q195: 2015-02-10
Q196: 2015-02-11
Q197: 2015-02-12
Q198: 2015-02-13
Q199: 2015-02-14
Q200: 2015-02-15
... 805 more rows

Sheet Segédadatok2
A1: Code | B1: Description | C1: Magyarul | D1: Former ERASMUS Codes | F1: ERASMUS Code | G1: Subject Area Description | H1: Magyarul | I1: EquivalentISCED97 | J1: ISCED
A2: 0 | B2: General Programmes | C2: Általános program | F2: 01.00 | G2: Agriculture | H2: Mezőgazdaságtan, Mezőgazdasági tudományok | I2: NO 001 | J2: 6, 62, 620, 621, 622, 623, 624, 629, 64, 640
A3: 1 | B3: Basic/broad, general programmes | C3: Alapozó, keretprogramok | F3: 01.10 | G3: Anthropology | H3: Antropológia | I3: NO 002 | J3: 31, 312
A4: 10 | B4: Basic/broad, general programmes | C4: Alapozó, keretprogramok | F4: 01.20 | G4: Archaeology | H4: Régészet | I4: NO 003 | J4: 225
A5: 9 | B5: Personal skills | C5: Személyiségfejlesztés | F5: 01.30 | G5: Architecture, design and applied arts | H5: Építészet, dizájn és alkalmazott művészetek | I5: NO 004 | J5: 58, 581, 214, 215, 219
A6: 90 | B6: Personal skills | C6: Személyiségfejlesztés | F6: 01.40 | G6: Area studies | H6: Regionális tanulmányok | I6: NO 005 | J6: 3, 310, 313, 319
A7: 1 | B7: Education | C7: Oktatás | F7: 01.50 | G7: Business | H7: Üzleti tudományok | I7: NO 006 | J7: 34, 340, 341, 342, 343, 344, 345, 346, 347, 349
A8: 14 | B8: Teacher training and education science | C8: Tanárképzés, oktatástudomány | F8: 01.60 | G8: Chemistry | H8: Kémia | I8: NO 007 | J8: 4, 442
A9: 140 | B9: Teacher training and education science (broad programmes) | C9: Tanárképzés, oktatástudomány | D9: 05.0; 05.1 | F9: 01.70 | G9: Computer sciences | H9: Informatika | I9: NO 008 | J9: 48, 481, 482, 489
A10: 141 | B10: Teaching and training | C10: Tanárképzés | F10: 01.80 | G10: Cultural studies and ethnic studies | H10: Kulturális és etnikai tanulmányok | I10: NO 009 | J10: 3, 312
A11: 142 | B11: Education science | C11: Oktatástudomány | D11: 05.7; 05.8 | F11: 01.90 | G11: Earth sciences | H11: Földtudományok | I11: NO 010 | J11: 4, 443
A12: 143 | B12: Training for pre-school teachers | C12: Óvodapedagógusok képzése | F12: 02.00 | G12: Economics | H12: Közgazdaságtan | I12: NO 011 | J12: 3, 314
A13: 144 | B13: Training for teachers at basic levels | C13: Alapfokú oktatásban tanító pedagógusok képzése | D13: 05.2; 05.5; 05.6 | F13: 02.10 | G13: Education (including teacher training/education) | H13: Oktatás (tanárképzés is) | I13: NO 012 | J13: 1, 14, 140,141, 142, 143, 144, 145, 146, 149
A14: 145 | B14: Training for teachers with subject specialisation | C14: Szakosodott oktatók (szaktanárok) képzése | D14: 05.3 | F14: 02.20 | G14: Engineering | H14: Mérnöktudományok | I14: NO 013 | J14: 5, 52, 520, 521, 522, 523, 524, 525, 529, 54, 540
A15: 146 | B15: Training for teachers of vocational subjects | C15: Szakoktató képzés | D15: 05.4 | F15: 02.30 | G15: Environmental studies and Forestry | H15: Környezetvédelem és erdészet | I15: NO 014 | J15: 422, 6, 62, 620, 623, 624, 629, 64, 640
A16: 149 | B16: Teacher training and education science (others) | C16: Tanárképzés, oktatástudomány (egyéb) | D16: 05.9 | F16: 02.40 | G16: Family and consumer science | H16: Család és háztartástan | I16: NO 015 | J16: 319, 729
A17: 2 | B17: Humanities and Arts | C17: Humán tudományok és művészetek | F17: 02.50 | G17: Gender and sexuality studies | H17: Gender studies | I17: NO 016 | J17: 312
A18: 21 | B18: Arts | C18: Művészetek | F18: 02.60 | G18: Geography | H18: Földrajz, földtan | I18: NO 017 | J18: 4, 443
A19: 210 | B19: Arts (broad programmes) | C19: Művészetek | D19: 03.0 | F19: 02.90 | G19: Health sciences (medicine, nursing, dentistry, etc.) | H19: Egészségtudományok | I19: NO 018 | J19: 7, 72, 720, 721, 723, 724, 725, 726, 727, 729
A20: 211 | B20: Fine arts | C20: Képzőművészet, szépművészet | D20: 03.1 | F20: 03.00 | G20: History | H20: Történelem | I20: NO 019 | J20: 2, 225
A21: 212 | B21: Music and performing arts | C21: Zene- és előadóművészetek | D21: 03.2; 03.3 | F21: 03.10 | G21: Journalism, media and communication | H21: Média és kommunikáció | I21: NO 020 | J21: 32, 321, 322, 329
A22: 213 | B22: Audio-visual techniques and media production | C22: Audiovizuális módszerek és szakismeretek, média | D22: 03.4 | F22: 03.20 | G22: Languages and linguistics | H22: Nyelvek és nyelvészet | I22: NO 021 | J22: 22, 222, 223, 229
A23: 214 | B23: Design | C23: Formatervezés | D23: 02.2; 03.5 | F23: 03.30 | G23: Law | H23: Jog | I23: NO 022 | J23: 3, 38, 380
A24: 215 | B24: Craft skills | C24: Kézművesség | F24: 03.40 | G24: Library and museum studies | H24: Könyvtári tudományok és muzeológia | I24: NO 023 | J24: 3, 322
A25: 219 | B25: Arts (others) | C25: Művészetek (egyéb) | D25: 03.9 | F25: 03.50 | G25: Life science (including biology) | H25: Természettudományok (biológia is) | I25: NO 024 | J25: 42, 421, 422, 429
A26: 22 | B26: Humanities | C26: Humán tudományok | F26: 03.60 | G26: Literature | H26: Irodalom | I26: NO 025 | J26: 220, 222, 223, 229
A27: 220 | B27: Humanities (broad programmes) | C27: Humán tudományok | D27: 08.0 | F27: 03.90 | G27: Mathematics | H27: Matematika | I27: NO 026 | J27: 4, 46, 461, 462, 469
A28: 221 | B28: Religion | C28: Vallási ismeretek | D28: 08.2 | F28: 04.00 | G28: Military sciences | H28: Honvédelem | I28: NO 027 | J28: 86, 860, 861, 862, 863, 869
A29: 222 | B29: Foreign languages | C29: Idegen nyelvek | D29: 09.0; 09.2; 09.5; 09.6; 09.9 | F29: 04.10 | G29: Performing arts | H29: Előadóművészet | I29: NO 028 | J29: 2, 210, 212
A30: 223 | B30: Mother tongue | C30: Anyanyelvi képzés | D30: 09.1; 09.3; 09.4; 09.7; 09.8 | F30: 04.20 | G30: Philosophy | H30: Filozófia | I30: NO 029 | J30: 2, 226
A31: 225 | B31: History and archaeology | C31: Történelem és régészet | D31: 03.6; 08.3; 08.4 | F31: 04.30 | G31: Physics | H31: Fizika | I31: NO 030 | J31: 44, 440, 441, 449
A32: 226 | B32: Philosophy and ethics | C32: Filozófia és etika | D32: 08.1 | F32: 04.40 | G32: Political science | H32: Politikatudomány | I32: NO 031 | J32: 313
A33: 3 | B33: Social sciences, Business and Law | C33: Társadalomtudományok, gazdaság, jog | F33: 04.50 | G33: Psychology | H33: Pszichológia | I33: NO 032 | J33: 31, 311
A34: 31 | B34: Social and behavioural science | C34: Társadalom- és viselkedéstudomány | F34: 04.60 | G34: Public affairs | H34: Közigazgatás | I34: NO 033 | J34: 38, 313
A35: 310 | B35: Social and behavioural science (broad programmes) | C35: Társadalom- és viselkedéstudomány | D35: 14.0 | F35: 04.70 | G35: Religion | H35: Vallás | I35: NO 034 | J35: 221
A36: 311 | B36: Psychology | C36: Pszichológia | D36: 14.4 | F36: 04.90 | G36: Social work | H36: Szociális munka | I36: NO 035 | J36: 76, 761, 762, 769
A37: 312 | B37: Sociology and cultural studies | C37: Szociológia és kulturális tanulmányok | D37: 14.2; 14.7; 14.8 | F37: 05.00 | G37: Sociology | H37: Szociológia | I37: NO 036 | J37: 312
A38: 313 | B38: Political science and civics | C38: Politikai és civil társadalmi tanulmányok | D38: 14.1; 14.6 | F38: 05.10 | G38: Space sciences | H38: Űrtudományok | I38: NO 037 | J38: 44
A39: 314 | B39: Economics | C39: Közgazdaságtan | D39: 14.3 | F39: 05.20 | G39: Systems science | H39: Rendszertanulmányok | I39: NO 038 | J39: 481
A40: 319 | B40: Social and behavioural science (others) | D40: 14.9 | F40: 05.30 | G40: Theology | H40: Teológia | I40: NO 039 | J40: 221
A41: 32 | B41: Journalism and information | C41: Újságírás és más információ szolgáltatás | F41: 05.40 | G41: Transportation | H41: Szállítás | I41: NO 040 | J41: 8, 84, 840
A42: 321 | B42: Journalism and reporting | C42: Újságírás és riporter- képzés | D42: 15.0; 15.1; 15.2 | F42: 05.50 | G42: Visual arts | H42: Képzőművészetek | I42: NO 041 | J42: 210, 211, 213, 214, 215
A43: 869 | B43: Security services (others)
A44: 99 | B44: Not known or unspecified | D44: 16.0; 16.9

Sheet ráták
A1: Személyzet
A2: Célország | B2: Heti ráta | C2: 1 | D2: 2 | E2: 3 | F2: 4 | G2: 5 | H2: 6 | I2: 7 | J2: 8 | K2: 9 | L2: 10 | M2: 11 | N2: 12 | O2: 13 | P2: 14 | Q2: 15 | R2: 16 | S2: 17 | T2: 18 | U2: 19 | V2: 20 | W2: 21 | X2: 22 | Y2: 23 | Z2: 24 | AA2: 25 | AB2: 26 | AC2: 27 | AD2: 28 | AE2: 29 | AF2: 30 | AG2: 31 | AH2: 32 | AI2: 33 | AJ2: 34 | AK2: 35 | AL2: 36 | AM2: 37 | AN2: 38 | AO2: 39 | AP2: 40 | AQ2: 41 | AR2: 42
A3: IS | B3: 800 | C3: 614 | D3: 729 | E3: 843 | F3: 957 | G3: 1071 | H3: 1186 | I3: 1300 | J3: 1414 | K3: 1529 | L3: 1642 | M3: 1757 | N3: 1871 | O3: 1986 | P3: 2100 | Q3: 2214 | R3: 2329 | S3: 2443 | T3: 2557 | U3: 2671 | V3: 2786 | W3: 2900 | X3: 3014 | Y3: 3129 | Z3: 3243 | AA3: 3357 | AB3: 3471 | AC3: 3586 | AD3: 3700 | AE3: 3814 | AF3: 3929 | AG3: 4043 | AH3: 4157 | AI3: 4271 | AJ3: 4386 | AK3: 4500 | AL3: 4614 | AM3: 4729 | AN3: 4843 | AO3: 4957 | AP3: 5071 | AQ3: 5186 | AR3: 5200
A4: LI | B4: 800 | C4: 614 | D4: 729 | E4: 843 | F4: 957 | G4: 1071 | H4: 1186 | I4: 1300 | J4: 1414 | K4: 1529 | L4: 1642 | M4: 1757 | N4: 1871 | O4: 1986 | P4: 2100 | Q4: 2214 | R4: 2329 | S4: 2443 | T4: 2557 | U4: 2671 | V4: 2786 | W4: 2900 | X4: 3014 | Y4: 3129 | Z4: 3243 | AA4: 3357 | AB4: 3471 | AC4: 3586 | AD4: 3700 | AE4: 3814 | AF4: 3929 | AG4: 4043 | AH4: 4157 | AI4: 4271 | AJ4: 4386 | AK4: 4500 | AL4: 4614 | AM4: 4729 | AN4: 4843 | AO4: 4957 | AP4: 5071 | AQ4: 5186 | AR4: 5200
A5: NO | B5: 800 | C5: 614 | D5: 729 | E5: 843 | F5: 957 | G5: 1071 | H5: 1186 | I5: 1300 | J5: 1414 | K5: 1529 | L5: 1642 | M5: 1757 | N5: 1871 | O5: 1986 | P5: 2100 | Q5: 2214 | R5: 2329 | S5: 2443 | T5: 2557 | U5: 2671 | V5: 2786 | W5: 2900 | X5: 3014 | Y5: 3129 | Z5: 3243 | AA5: 3357 | AB5: 3471 | AC5: 3586 | AD5: 3700 | AE5: 3814 | AF5: 3929 | AG5: 4043 | AH5: 4157 | AI5: 4271 | AJ5: 4386 | AK5: 4500 | AL5: 4614 | AM5: 4729 | AN5: 4843 | AO5: 4957 | AP5: 5071 | AQ5: 5186 | AR5: 5200
A6: HU | B6: 400 | C6: 557 | D6: 614 | E6: 671 | F6: 729 | G6: 786 | H6: 843 | I6: 900 | J6: 957 | K6: 1014 | L6: 1071 | M6: 1129 | N6: 1186 | O6: 1243 | P6: 1300 | Q6: 1357 | R6: 1414 | S6: 1471 | T6: 1529 | U6: 1586 | V6: 1643 | W6: 1700 | X6: 1757 | Y6: 1814 | Z6: 1871 | AA6: 1929 | AB6: 1986 | AC6: 2043 | AD6: 2100 | AE6: 2157 | AF6: 2214 | AG6: 2271 | AH6: 2329 | AI6: 2386 | AJ6: 2443 | AK6: 2500 | AL6: 2557 | AM6: 2614 | AN6: 2671 | AO6: 2729 | AP6: 2786 | AQ6: 2843 | AR6: 2900
A8: Hallgatók
A9: Célország | B9: Havi ráta | C9: 0.25 | D9: 0.5 | E9: 0.75 | F9: 1 | G9: 1.25 | H9: 1.5 | I9: 1.75 | J9: 2 | K9: 2.25 | L9: 2.5 | M9: 2.75 | N9: 3 | O9: 3.25 | P9: 3.5 | Q9: 3.75 | R9: 4 | S9: 4.25 | T9: 4.5 | U9: 4.75 | V9: 5 | W9: 5.25 | X9: 5.5 | Y9: 5.75 | Z9: 6 | AA9: 6.25 | AB9: 6.5 | AC9: 6.75 | AD9: 7 | AE9: 7.25 | AF9: 7.5 | AG9: 7.75 | AH9: 8 | AI9: 8.25 | AJ9: 8.5 | AK9: 8.75 | AL9: 9 | AM9: 9.25 | AN9: 9.5 | AO9: 9.75 | AP9: 10 | AQ9: 10.25 | AR9: 10.5 | AS9: 10.75 | AT9: 11 | AU9: 11.25 | AV9: 11.5 | AW9: 11.75 | AX9: 12
A10: IS | B10: 900 | C10: 725 | D10: 950 | E10: 1175 | F10: 1400 | G10: =F10+C10-500 -> 1625 | H10: =F10+D10-500 -> 1850 | I10: =F10+E10-500 -> 2075 | J10: 2300 | K10: =J10+C10-500 -> 2525 | L10: =J10+D10-500 -> 2750 | M10: =J10+E10-500 -> 2975 | N10: 3200 | O10: =N10+C10-500 -> 3425 | P10: =N10+D10-500 -> 3650 | Q10: =N10+E10-500 -> 3875 | R10: 4100 | S10: =R10+C10-500 -> 4325 | T10: =R10+D10-500 -> 4550 | U10: =R10+E10-500 -> 4775 | V10: 5000 | W10: =V10+C10-500 -> 5225 | X10: =V10+D10-500 -> 5450 | Y10: =V10+E10-500 -> 5675 | Z10: 5900 | AA10: =Z10+C10-500 -> 6125 | AB10: =Z10+D10-500 -> 6350 | AC10: =Z10+E10-500 -> 6575 | AD10: 6800 | AE10: =AD10+C10-500 -> 7025 | AF10: =AD10+D10-500 -> 7250 | AG10: =AD10+E10-500 -> 7475 | AH10: 7700 | AI10: =AH10+C10-500 -> 7925 | AJ10: =AH10+D10-500 -> 8150 | AK10: =AH10+E10-500 -> 8375 | AL10: 8600 | AM10: =AL10+C10-500 -> 8825 | AN10: =AL10+D10-500 -> 9050 | AO10: =AL10+E10-500 -> 9275 | AP10: 9500 | AQ10: =AP10+C10-500 -> 9725 | AR10: =AP10+D10-500 -> 9950 | AS10: =AP10+E10-500 -> 10175 | AT10: 10400 | AU10: =AT10+C10-500 -> 10625 | AV10: =AT10+D10-500 -> 10850 | AW10: =AT10+E10-500 -> 11075 | AX10: 11300
A11: LI | B11: 900 | C11: 725 | D11: 950 | E11: 1175 | F11: 1400 | G11: =F11+C11-500 -> 1625 | H11: =F11+D11-500 -> 1850 | I11: =F11+E11-500 -> 2075 | J11: 2300 | K11: =J11+C11-500 -> 2525 | L11: =J11+D11-500 -> 2750 | M11: =J11+E11-500 -> 2975 | N11: 3200 | O11: =N11+C11-500 -> 3425 | P11: =N11+D11-500 -> 3650 | Q11: =N11+E11-500 -> 3875 | R11: 4100 | S11: =R11+C11-500 -> 4325 | T11: =R11+D11-500 -> 4550 | U11: =R11+E11-500 -> 4775 | V11: 5000 | W11: =V11+C11-500 -> 5225 | X11: =V11+D11-500 -> 5450 | Y11: =V11+E11-500 -> 5675 | Z11: 5900 | AA11: =Z11+C11-500 -> 6125 | AB11: =Z11+D11-500 -> 6350 | AC11: =Z11+E11-500 -> 6575 | AD11: 6800 | AE11: =AD11+C11-500 -> 7025 | AF11: =AD11+D11-500 -> 7250 | AG11: =AD11+E11-500 -> 7475 | AH11: 7700 | AI11: =AH11+C11-500 -> 7925 | AJ11: =AH11+D11-500 -> 8150 | AK11: =AH11+E11-500 -> 8375 | AL11: 8600 | AM11: =AL11+C11-500 -> 8825 | AN11: =AL11+D11-500 -> 9050 | AO11: =AL11+E11-500 -> 9275 | AP11: 9500 | AQ11: =AP11+C11-500 -> 9725 | AR11: =AP11+D11-500 -> 9950 | AS11: =AP11+E11-500 -> 10175 | AT11: 10400 | AU11: =AT11+C11-500 -> 10625 | AV11: =AT11+D11-500 -> 10850 | AW11: =AT11+E11-500 -> 11075 | AX11: 11300
A12: NO | B12: 900 | C12: 725 | D12: 950 | E12: 1175 | F12: 1400 | G12: 1625 | H12: 1850 | I12: 2075 | J12: 2300 | K12: 2525 | L12: 2750 | M12: 2975 | N12: 3200 | O12: 3425 | P12: 3650 | Q12: 3875 | R12: 4100 | S12: 4325 | T12: 4550 | U12: 4775 | V12: 5000 | W12: 5225 | X12: 5450 | Y12: 5675 | Z12: 5900 | AA12: 6125 | AB12: 6350 | AC12: 6575 | AD12: 6800 | AE12: 7025 | AF12: 7250 | AG12: 7475 | AH12: 7700 | AI12: 7925 | AJ12: 8150 | AK12: 8375 | AL12: 8600 | AM12: 8825 | AN12: 9050 | AO12: 9275 | AP12: 9500 | AQ12: 9725 | AR12: 9950 | AS12: 10175 | AT12: 10400 | AU12: 10625 | AV12: 10850 | AW12: 11075 | AX12: 11300
A13: HU | B13: 400 | C13: 600 | D13: 700 | E13: 800 | F13: 900 | G13: 1000 | H13: 1100 | I13: 1200 | J13: 1300 | K13: 1400 | L13: 1500 | M13: 1600 | N13: 1700 | O13: 1800 | P13: 1900 | Q13: 2000 | R13: 2100 | S13: 2200 | T13: 2300 | U13: 2400 | V13: 2500 | W13: 2600 | X13: 2700 | Y13: 2800 | Z13: 2900 | AA13: 3000 | AB13: 3100 | AC13: 3200 | AD13: 3300 | AE13: 3400 | AF13: 3500 | AG13: 3600 | AH13: 3700 | AI13: 3800 | AJ13: 3900 | AK13: 4000 | AL13: 4100 | AM13: 4200 | AN13: 4300 | AO13: 4400 | AP13: 4500 | AQ13: 4600 | AR13: 4700 | AS13: 4800 | AT13: 4900 | AU13: 5000 | AV13: 5100 | AW13: 5200 | AX13: 5300
A47: HU

Sheet Erasmus_kodok (hidden)
A1: EUC Reference | B1: Organisation | C1: ID CODE | D1: PIC | E1: Country | F1: CITY CON | G1: ID CODE-orig
A2: 29904-EPP-1-2014-1-IS-EPPKA3-ECHE | B2: HASKOLINN A AKUREYRI | C2: IS AKUREYR01 | D2: 998776409 | E2: IS | F2: AKUREYRI | G2: IS AKUREYR01
A3: 28340-EPP-1-2014-1-IS-EPPKA3-ECHE | B3: HASKOLINN A BIFROST | C3: IS BORGARN01 | D3: 949615451 | E3: IS | F3: BORGARNES | G3: IS BORGARN01
A4: 219520-EPP-1-2014-1-IS-EPPKA3-ECHE | B4: LANDBUNADARHASKOLI ISLANDS | C4: IS BORGARN02 | D4: 988542036 | E4: IS | F4: BORGARNES | G4: IS BORGARN02
A5: 28332-EPP-1-2014-1-IS-EPPKA3-ECHE | B5: HASKOLI ISLANDS | C5: IS REYKJAV01 | D5: 999884246 | E5: IS | F5: REYKJAVIK | G5: IS REYKJAV01
A6: 210431-EPP-1-2014-1-IS-EPPKA3-ECHE | B6: HASKOLINN I REYKJAVIK EHF | C6: IS REYKJAV05 | D6: 966834406 | E6: IS | F6: REYKJAVIK | G6: IS REYKJAV05
A7: 28354-EPP-1-2014-1-IS-EPPKA3-ECHE | B7: ICELAND ACADEMY OF THE ARTS | C7: IS REYKJAV06 | D7: 950429378 | E7: IS | F7: REYKJAVIK | G7: IS REYKJAV06
A8: 239835-EPP-1-2014-1-IS-EPPKA3-ECHE | B8: HOLAR UNIVERSITY COLLEGE | C8: IS SAUDARK01 | D8: 969226426 | E8: IS | F8: SAUDARKORKUR | G8: IS SAUDARK01
A9: 28700-EPP-1-2014-1-LI-EPPKA3-ECHE | B9: UNIVERSITAT LIECHTENSTEIN | C9: LI VADUZ01 | D9: 974688496 | E9: LI | F9: Liechtenstein | G9: LI VADUZ01
A10: 218548-EPP-1-2014-1-NO-EPPKA3-ECHE | B10: HØGSKOLEN I ÅLESUND | C10: N ALESUND01 | D10: 949513310 | E10: NO | F10: AALESUND | G10: N ALESUND01
A11: 231111-EPP-1-2014-1-NO-EPPKA3-ECHE | B11: NORGES MILJO-OG BIOVITENSKAPLIGE UNIVERSITET | C11: N AS02 | D11: 999902967 | E11: NO | F11: AS | G11: N AS02
A12: 269986-EPP-1-2015-1-NO-EPPKA3-ECHE | B12: Norwegian University of Life sciences | C12: N AS03 | D12: 944678345 | E12: NO | F12: Aas | G12: N AS03
A13: 29643-EPP-1-2014-1-NO-EPPKA3-ECHE | B13: UNIVERSITETET I BERGEN | C13: N BERGEN01 | D13: 999974456 | E13: NO | F13: BERGEN | G13: N BERGEN01
A14: 29636-EPP-1-2014-1-NO-EPPKA3-ECHE | B14: NORGES HANDELSHØYSKOLE | C14: N BERGEN02 | D14: 949667443 | E14: NO | F14: BERGEN | G14: N BERGEN02
A15: 29669-EPP-1-2014-1-NO-EPPKA3-ECHE | B15: KUNST- OG DESIGNHOEGSKOLEN I BERGEN | C15: N BERGEN04 | D15: 949639216 | E15: NO | F15: BERGEN | G15: N BERGEN04
A16: 29630-EPP-1-2014-1-NO-EPPKA3-ECHE | B16: HOGSKOLEN I BERGEN | C16: N BERGEN05 | D16: 996081555 | E16: NO | F16: BERGEN | G16: N BERGEN05
A17: 239773-EPP-1-2014-1-NO-EPPKA3-ECHE | B17: HARALDSPLASS DEACONESS UNIVERSITY COLLEGE | C17: N BERGEN11 | D17: 949160909 | E17: NO | F17: BERGEN | G17: N BERGEN11
A18: 46918-EPP-1-2014-1-NO-EPPKA3-ECHE | B18: NLA HØGSKOLEN | C18: N BERGEN12 | D18: 949671614 | E18: NO | F18: BERGEN | G18: N BERGEN12
A19: 210351-EPP-1-2014-1-NO-EPPKA3-ECHE | B19: BERGEN ARKITEKTHØGSKOLE | C19: N BERGEN13 | D19: 949634075 | E19: NO | F19: BERGEN | G19: N BERGEN13
A20: 29625-EPP-1-2014-1-NO-EPPKA3-ECHE | B20: UNIVERSITETET I NORDLAND | C20: N BODO04 | D20: 998222927 | E20: NO | F20: BODO | G20: N BODO04
A21: 29682-EPP-1-2014-1-NO-EPPKA3-ECHE | B21: HOGSKOLEN I HEDMARK | C21: N ELVERUM01 | D21: 998027860 | E21: NO | F21: ELVERUM | G21: N ELVERUM01
A22: 219226-EPP-1-2014-1-NO-EPPKA3-ECHE | B22: HØGSKOLEN BETANIEN AS | C22: N FYLLING01 | D22: 949350447 | E22: NO | F22: FYLLINGSDALEN | G22: N FYLLING01
A23: 100293-EPP-1-2014-1-NO-EPPKA3-ECHE | B23: HOGSKOLEN I GJOVIK | C23: N GJOVIK01 | D23: 999639418 | E23: NO | F23: GJOVIK | G23: N GJOVIK01
A24: 29655-EPP-1-2014-1-NO-EPPKA3-ECHE | B24: HOGSKOLEN I OSTFOLD | C24: N HALDEN02 | D24: 975398439 | E24: NO | F24: HALDEN | G24: N HALDEN02
A25: 29664-EPP-1-2014-1-NO-EPPKA3-ECHE | B25: HOGSKOLEN I HARSTAD | C25: N HARSTAD01 | D25: 956344244 | E25: NO | F25: HARSTAD | G25: N HARSTAD01
A26: 269728-EPP-1-2015-1-NO-EPPKA3-ECHE | B26: HOGSKOLEN I BUSKERUD OG VESTFOLD | C26: N KONGSBE02 | D26: 948463091 | E26: NO | F26: DRAMMEN | G26: N KONGSBE02
A27: 29646-EPP-1-2014-1-NO-EPPKA3-ECHE | B27: UNIVERSITETET I AGDER | C27: N KRISTIA01 | D27: 949671711 | E27: NO | F27: KRISTIANSAND | G27: N KRISTIA01
A28: 228041-EPP-1-2014-1-NO-EPPKA3-ECHE | B28: ANSGAR TEOLOGISKE HØGSKOLE | C28: N KRISTIA04 | D28: 944123505 | E28: NO | F28: KRISTIANSAND | G28: N KRISTIA04
A29: 29627-EPP-1-2014-1-NO-EPPKA3-ECHE | B29: HOGSKOLEN I LILLEHAMMER | C29: N LILLEHA01 | D29: 997519386 | E29: NO | F29: LILLEHAMMER | G29: N LILLEHA01
A30: 29726-EPP-1-2014-1-NO-EPPKA3-ECHE | B30: HØGSKOLEN I MOLDE - VITENSKAPELIG HØGSKOLE I LOGISTIKK | C30: N MOLDE01 | D30: 949671420 | E30: NO | F30: MOLDE | G30: N MOLDE01
A31: 29642-EPP-1-2014-1-NO-EPPKA3-ECHE | B31: HØGSKOLEN I NARVIK | C31: N NARVIK01 | D31: 949613317 | E31: NO | F31: NARVIK | G31: N NARVIK01
A32: 269836-EPP-1-2015-1-NO-EPPKA3-ECHE | B32: HOGSKOLEN I NESNA | C32: N NESNA01 | D32: 953330745 | E32: NO | F32: NESNA | G32: N NESNA01
A33: 29714-EPP-1-2014-1-NO-EPPKA3-ECHE | B33: UNIVERSITETET I OSLO | C33: N OSLO01 | D33: 999975814 | E33: NO | F33: OSLO | G33: N OSLO01
A34: 29708-EPP-1-2014-1-NO-EPPKA3-ECHE | B34: ARKITEKTUR- OG DESIGNHØGSKOLEN I OSLO | C34: N OSLO02 | D34: 968780226 | E34: NO | F34: OSLO | G34: N OSLO02
A35: 29670-EPP-1-2014-1-NO-EPPKA3-ECHE | B35: NORGES MUSIKKHØGSKOLE | C35: N OSLO03 | D35: 949344336 | E35: NO | F35: OSLO | G35: N OSLO03
A36: 29663-EPP-1-2014-1-NO-EPPKA3-ECHE | B36: NORGES IDRETTSHOGSKOLE | C36: N OSLO04 | D36: 998301303 | E36: NO | F36: OSLO | G36: N OSLO04
A37: 29659-EPP-1-2014-1-NO-EPPKA3-ECHE | B37: KUNSTHØGSKOLEN I OSLO | C37: N OSLO07 | D37: 949598961 | E37: NO | F37: OSLO | G37: N OSLO07
A38: 29629-EPP-1-2014-1-NO-EPPKA3-ECHE | B38: DIAKONHJEMMETS HOGSKOLE | C38: N OSLO32 | D38: 998369494 | E38: NO | F38: OSLO | G38: N OSLO32
A39: 29650-EPP-1-2014-1-NO-EPPKA3-ECHE | B39: NORGES VETERINAERHOGSKOLE | C39: N OSLO39 | D39: 999879493 | E39: NO | F39: OSLO | G39: N OSLO39
A40: 29689-EPP-1-2014-1-NO-EPPKA3-ECHE | B40: MF NORWEGIAN SCHOOL OF THEOLOGY | C40: N OSLO40 | D40: 949670547 | E40: NO | F40: OSLO | G40: N OSLO40
A41: 252954-EPP-1-2014-1-NO-EPPKA3-ECHE | B41: NORGES DANSEHØYSKOLE | C41: N OSLO42 | D41: 949089808 | E41: NO | F41: OSLO | G41: N OSLO42
A42: 252079-EPP-1-2014-1-NO-EPPKA3-ECHE | B42: LOVISENBERG DEACONAL UNIVERSITY COLLEGE | C42: N OSLO53 | D42: 949293314 | E42: NO | F42: OSLO | G42: N OSLO53
A43: 222731-EPP-1-2014-1-NO-EPPKA3-ECHE | B43: WESTERDALS HØYSKOLE - OSLO SCHOOL OF ARTS, COMMUNICATION AND TECHNOLOGY AS | C43: N OSLO56 | D43: 949450163 | E43: NO | F43: OSLO | G43: N OSLO56
A44: 253194-EPP-1-2014-1-NO-EPPKA3-ECHE | B44: DIAKONOVA UNIVERSITY COLLEGE | C44: N OSLO57 | D44: 946106767 | E44: NO | F44: OSLO | G44: N OSLO57
A45: 257489-EPP-1-2014-1-NO-EPPKA3-ECHE | B45: HØYSKOLEN CAMPUS KRISTIANIA | C45: N OSLO58 | D45: 949422324 | E45: NO | F45: OSLO | G45: N OSLO58
A46: 259588-EPP-1-2014-1-NO-EPPKA3-ECHE | B46: WESTERDALS HØYSKOLE AS | C46: N OSLO59 | D46: 948278112 | E46: NO | F46: OSLO | G46: N OSLO59
A47: 262768-EPP-1-2014-1-NO-EPPKA3-ECHE | B47: HOGSKOLEN I OSLO OG AKERSHUS | C47: N OSLO60 | D47: 954982461 | E47: NO | F47: OSLO | G47: N OSLO60
A48: 267345-EPP-1-2014-1-NO-EPPKA3-ECHE | B48: HOYSKOLEN FOR LEDELSE OG TEOLOGI | C48: N OSLO61 | D48: 949546775 | E48: NO | F48: STABEKK | G48: N OSLO61
A49: 268677-EPP-1-2014-1-NO-EPPKA3-ECHE | B49: NISS HØYSKOLE AS | C49: N OSLO62 | D49: 949483822 | E49: NO | F49: OSLO | G49: N OSLO62
A50: 269997-EPP-1-2015-1-NO-EPPKA3-ECHE | B50: MUSIKKTEATERHØYSKOLEN | C50: N OSLO63 | D50: 938958643 | E50: NO | F50: Oslo | G50: N OSLO63
A51: 270282-EPP-1-2015-1-NO-EPPKA3-ECHE | B51: POLITIHØGSKOLEN (NORWEGIAN POLICE UNIVERSITY COLLEGE) | C51: N OSLO64 | D51: 940703673 | E51: NO | F51: OSLO | G51: N OSLO64
A52: 29702-EPP-1-2014-1-NO-EPPKA3-ECHE | B52: HOGSKOLEN I TELEMARK | C52: N PORSGRU01 | D52: 951413540 | E52: NO | F52: PORSGRUNN | G52: N PORSGRU01
A53: 29667-EPP-1-2014-1-NO-EPPKA3-ECHE | B53: HØGSKOLEN STORD/HAUGESUND | C53: N ROMMETV01 | D53: 949646006 | E53: NO | F53: STORD | G53: N ROMMETV01
A54: 29717-EPP-1-2014-1-NO-EPPKA3-ECHE | B54: STIFTELSEN HANDELSHOYSKOLEN BI | C54: N SANDVIK02 | D54: 986269617 | E54: NO | F54: OSLO | G54: N SANDVIK02
A55: 29626-EPP-1-2014-1-NO-EPPKA3-ECHE | B55: HOGSKULEN I SOGN OG FJORDANE | C55: N SOGNDAL01 | D55: 950046325 | E55: NO | F55: SOGNDAL | G55: N SOGNDAL01
A56: 29666-EPP-1-2014-1-NO-EPPKA3-ECHE | B56: UNIVERSITETET I STAVANGER | C56: N STAVANG01 | D56: 998023689 | E56: NO | F56: STAVANGER | G56: N STAVANG01
A57: 224072-EPP-1-2014-1-NO-EPPKA3-ECHE | B57: MISJONSHØGSKOLEN | C57: N STAVANG07 | D57: 949662787 | E57: NO | F57: STAVANGER | G57: N STAVANG07
A58: 270165-EPP-1-2015-1-NO-EPPKA3-ECHE | B58: Høgskulen for landbruk og bygdeutvikling | C58: N STAVANG09 | D58: 947349628 | E58: NO | F58: Klepp Stasjon | G58: N STAVANG09
A59: 29652-EPP-1-2014-1-NO-EPPKA3-ECHE | B59: HOGSKOLEN I NORD TRONDELAG | C59: N STEINKJ01 | D59: 997461283 | E59: NO | F59: STEINKJER | G59: N STEINKJ01
A60: 29724-EPP-1-2014-1-NO-EPPKA3-ECHE | B60: UNIVERSITETET I TROMSOE | C60: N TROMSO01 | D60: 999874643 | E60: NO | F60: TROMSO | G60: N TROMSO01
A61: 29704-EPP-1-2014-1-NO-EPPKA3-ECHE | B61: NORGES TEKNISK-NATURVITENSKAPELIGE UNIVERSITET NTNU | C61: N TRONDHE01 | D61: 999977851 | E61: NO | F61: TRONDHEIM | G61: N TRONDHE01
A62: 29684-EPP-1-2014-1-NO-EPPKA3-ECHE | B62: HOGSKOLEN I SOR-TRONDELAG | C62: N TRONDHE03 | D62: 997606104 | E62: NO | F62: TRONDHEIM | G62: N TRONDHE03
A63: 29676-EPP-1-2014-1-NO-EPPKA3-ECHE | B63: DRONNING MAUDS MINNE HØGSKOLE FOR BARNEHAGELÆRERUTDANNING | C63: N TRONDHE06 | D63: 952744380 | E63: NO | F63: TRONDHEIM | G63: N TRONDHE06
A64: 66311-EPP-1-2014-1-NO-EPPKA3-ECHE | B64: HØGSKULEN I VOLDA | C64: N VOLDA01 | D64: 949661235 | E64: NO | F64: VOLDA | G64: N VOLDA01

Sheet Munka1
